Workbook

Sheet Données ménage
A1: TRUE
F3: Case jaune = | G3: à remplir
D5: Données sur le ménage
B7: Coordonnées du ménage visité
C9: Nom de famille : | F9: Prénom :
C10: N° du contact | F10: Civilité
C11: N° et nom de la voie : | F11: Commune :
C12: Code Postal : | F12: Région: | H12: Lorraine
C13: N° appartement : | F13: Bâtiment :
C14: Palier : | F14: Digicode :
C15: Téléphone fixe : | F15: Téléphone portable :
B18: Intervenants conseillers energie
C20: Chargé de visite n° 1 : | D20: Amélie LOMBARD / ROY MATHIS | F20: Chargé de visite n° 2 :
I21: FALSE
C22: Date de 1ère visite : | D22: 2023-07-21 | F22: Date de 2ème visite :
B25: Occupation du logement
C27: Nombre d'occupants | F27: Profil du ménage
C28: Dont enfants de moins de 12 ans
C29: Dont personne de + de 60 ans
C30: Problèmes respiratoires | E30: Nb de personnes concernées:
E31: Dont enfants:
C32: Présence continue en journée :
C33: Nb de semaines d'abscence par an | E33: Soit une présence (en j/an) de: | G33: =365-(D33*7) -> 365
B36: Statut d’occupation
C38: Statut d’occupation | D38: Locataire social | F38: Nom du bailleur: | G38: VOSGELIS
C39: Date d'entrée dans le logement :
B43: Situation sociale et économique du ménage
C45: Revenu annuel disponible : | E45: Montant du revenu annuel:
E46: Nombre personnes rattachés:
C47: Autres revenus (CAF, RSA, etc) | E47: Montant annuel autres revenus:
C48: Suivi par un travailleur social : | E48: Nom du travailleur social:
E49: Structure travailleur social:
E50: Téléphone travailleur social:
C51: Aides énergie perçues (FSL): | E51: Année de la dernière aide perçue:
C52: CMU Complémentaire | E52: Eligible CMU-C | H52: =IF(OR(D45="",D45="Non",H45="",D27=""),"Inconnu",IF(AND(D45="Oui",S98>0,H45<S98),"Eligible",IF(AND(D45="Oui",S98>0,H45>S98),"Non éligible","Inconnu"))) -> Inconnu
C53: ACS (Aide à la Complémentaire Santé) | E53: Eligible ACS | H53: =IF(OR(D45="",D45="Non",H45="",D27=""),"Inconnu",IF(AND(D45="Oui",T98>0,H45<T98),"Eligible",IF(AND(D45="Oui",T98>0,H45>T98),"Non éligible","Inconnu"))) -> Inconnu
E54: Eligible aides ANAH | H54: =IF(OR(D45="Non",D45="",H45=""),"Inconnu",IF(AND(D45="Oui",D38="Propriétaire",H45=""),"Inconnu",IF(AND(D45="Non",D38="Propriétaire"),"Inconnu",IF(D38<>"Propriétaire","Non éligible",IF(AND(D45="Oui",R98>0,D38="Propriétaire",H45<R98),"Eligible",IF(AND(D45="Oui",R98>0,H45>R98),"Non éligible","Inconnu")))))) -> Inconnu
E55: Eligible PACTE Energie Solidarité | H55: =IF(OR(D45="Non",D45="",H45=""),"Inconnu",IF(OR('Données bâti'!E17<>"Individuel",'Données bâti'!H14<>"Non"),"Non éligible",IF(AND('Données bâti'!E17="Individuel",'Données bâti'!H14="Non",H45<R98),"Eligible",IF(OR(H45>R98,'Données bâti'!E17="Collectif",'Données bâti'!H14="Oui"),"Non éligible","Inconnu")))) -> Inconnu
Q61: Données à ne pas modifier
Q62: Civilité | R62: Nb occupants | S62: Nb Enfants/pers. Agées | T62: Semaines absence | U62: Statut occupation | V62: Choix | W62: Date entrée | X62: Profil ménage
Q63: Mme | R63: 1 | S63: 0 | T63: 0 | U63: Locataire privé | V63: Oui | W63: < 5 ans | X63: Personne seule
Q64: M. | R64: 2 | S64: 1 | T64: 1 | U64: Locataire social | V64: Non | W64: Entre 5 et 10 ans | X64: Adulte avec enfants
Q65: Mlle | R65: 3 | S65: 2 | T65: 2 | U65: Propriétaire | W65: Entre 10 et 20 ans | X65: Couple avec enfants
R66: 4 | S66: 3 | T66: 3 | U66: Logé gratuitement | W66: > 20 ans | X66: Couple sans enfants
R67: 5 | S67: 4 | T67: 4 | X67: Autre
R68: 6 | S68: 5 | T68: 5
R69: 7 | S69: 6 | T69: 6
R70: 8 | S70: 7 | T70: 7
R71: 9 | S71: 8 | T71: 8
R72: 10 | S72: 9 | T72: 9
R73: 11 | S73: 10 | T73: 10
R74: 12 | T74: 11
R75: 13 | T75: 12
R76: 14
R77: 15
W78: DH (19°C)
Q79: Eléments de calcul | V79: Alsace | W79: 81000
Q80: Plafond ressources aides ANAH/CMU-C/ACS | V80: Aquitaine | W80: 60000
Q81: nb pers | R81: ANAH | S81: CMU-C | T81: ACS | V81: Auvergne | W81: 75000
Q82: 1 | R82: =IF('MAJ Données'!$C$30='MAJ Données'!$C$31,'MAJ Données'!D33,IF('MAJ Données'!$C$30='MAJ Données'!$E$31,'MAJ Données'!F33,'MAJ Données'!D33)) -> 24094 | S82: ='MAJ Données'!C20 -> 9719 | T82: ='MAJ Données'!C9 -> 13120 | V82: Basse Normandie | W82: 75000
Q83: 2 | R83: =IF('MAJ Données'!$C$30='MAJ Données'!$C$31,'MAJ Données'!D34,IF('MAJ Données'!$C$30='MAJ Données'!$E$31,'MAJ Données'!F34,'MAJ Données'!D34)) -> 35362 | S83: ='MAJ Données'!C21 -> 14578 | T83: ='MAJ Données'!C10 -> 19680 | V83: Bourgogne | W83: 75000
Q84: 3 | R84: =IF('MAJ Données'!$C$30='MAJ Données'!$C$31,'MAJ Données'!D35,IF('MAJ Données'!$C$30='MAJ Données'!$E$31,'MAJ Données'!F35,'MAJ Données'!D35)) -> 42471 | S84: ='MAJ Données'!C22 -> 17494 | T84: ='MAJ Données'!C11 -> 23616 | V84: Bretagne | W84: 69000
Q85: 4 | R85: =IF('MAJ Données'!$C$30='MAJ Données'!$C$31,'MAJ Données'!D36,IF('MAJ Données'!$C$30='MAJ Données'!$E$31,'MAJ Données'!F36,'MAJ Données'!D36)) -> 49592 | S85: ='MAJ Données'!C23 -> 20409 | T85: ='MAJ Données'!C12 -> 27533 | V85: Centre | W85: 73000
Q86: 5 | R86: =IF('MAJ Données'!$C$30='MAJ Données'!$C$31,'Données ménage'!R85+'MAJ Données'!$D$38,IF('MAJ Données'!$C$30='MAJ Données'!$E$31,'Données ménage'!R85+'MAJ Données'!$F$38,'Données ménage'!R85+'MAJ Données'!$D$38)) -> 56724 | S86: =S85+'MAJ Données'!$C$24 -> 24296 | T86: =T85+'MAJ Données'!$C$13 -> 32781 | V86: Champagne-Ardenne | W86: 81000
Q87: 6 | R87: =IF('MAJ Données'!$C$30='MAJ Données'!$C$31,'Données ménage'!R86+'MAJ Données'!$D$38,IF('MAJ Données'!$C$30='MAJ Données'!$E$31,'Données ménage'!R86+'MAJ Données'!$F$38,'Données ménage'!R86+'MAJ Données'!$D$38)) -> 63856 | S87: =S86+'MAJ Données'!$C$24 -> 28183 | T87: =T86+'MAJ Données'!$C$13 -> 38029 | V87: Corse | W87: 41000
Q88: 7 | R88: =IF('MAJ Données'!$C$30='MAJ Données'!$C$31,'Données ménage'!R87+'MAJ Données'!$D$38,IF('MAJ Données'!$C$30='MAJ Données'!$E$31,'Données ménage'!R87+'MAJ Données'!$F$38,'Données ménage'!R87+'MAJ Données'!$D$38)) -> 70988 | S88: =S87+'MAJ Données'!$C$24 -> 32070 | T88: =T87+'MAJ Données'!$C$13 -> 43277 | V88: Franche-Comté | W88: 80000
Q89: 8 | R89: =IF('MAJ Données'!$C$30='MAJ Données'!$C$31,'Données ménage'!R88+'MAJ Données'!$D$38,IF('MAJ Données'!$C$30='MAJ Données'!$E$31,'Données ménage'!R88+'MAJ Données'!$F$38,'Données ménage'!R88+'MAJ Données'!$D$38)) -> 78120 | S89: =S88+'MAJ Données'!$C$24 -> 35957 | T89: =T88+'MAJ Données'!$C$13 -> 48525 | V89: Haute Normandie | W89: 81000
Q90: 9 | R90: =IF('MAJ Données'!$C$30='MAJ Données'!$C$31,'Données ménage'!R89+'MAJ Données'!$D$38,IF('MAJ Données'!$C$30='MAJ Données'!$E$31,'Données ménage'!R89+'MAJ Données'!$F$38,'Données ménage'!R89+'MAJ Données'!$D$38)) -> 85252 | S90: =S89+'MAJ Données'!$C$24 -> 39844 | T90: =T89+'MAJ Données'!$C$13 -> 53773 | V90: Ile-de-France | W90: 69500
Q91: 9 | R91: =IF('MAJ Données'!$C$30='MAJ Données'!$C$31,'Données ménage'!R90+'MAJ Données'!$D$38,IF('MAJ Données'!$C$30='MAJ Données'!$E$31,'Données ménage'!R90+'MAJ Données'!$F$38,'Données ménage'!R90+'MAJ Données'!$D$38)) -> 92384 | S91: =S90+'MAJ Données'!$C$24 -> 43731 | T91: =T90+'MAJ Données'!$C$13 -> 59021 | V91: Languedoc-Roussillon | W91: 50000
Q92: 10 | R92: =IF('MAJ Données'!$C$30='MAJ Données'!$C$31,'Données ménage'!R91+'MAJ Données'!$D$38,IF('MAJ Données'!$C$30='MAJ Données'!$E$31,'Données ménage'!R91+'MAJ Données'!$F$38,'Données ménage'!R91+'MAJ Données'!$D$38)) -> 99516 | S92: =S91+'MAJ Données'!$C$24 -> 47618 | T92: =T91+'MAJ Données'!$C$13 -> 64269 | V92: Limousin | W92: 73000
Q93: 11 | R93: =IF('MAJ Données'!$C$30='MAJ Données'!$C$31,'Données ménage'!R92+'MAJ Données'!$D$38,IF('MAJ Données'!$C$30='MAJ Données'!$E$31,'Données ménage'!R92+'MAJ Données'!$F$38,'Données ménage'!R92+'MAJ Données'!$D$38)) -> 106648 | S93: =S92+'MAJ Données'!$C$24 -> 51505 | T93: =T92+'MAJ Données'!$C$13 -> 69517 | V93: Lorraine | W93: 82000
Q94: 12 | R94: =IF('MAJ Données'!$C$30='MAJ Données'!$C$31,'Données ménage'!R93+'MAJ Données'!$D$38,IF('MAJ Données'!$C$30='MAJ Données'!$E$31,'Données ménage'!R93+'MAJ Données'!$F$38,'Données ménage'!R93+'MAJ Données'!$D$38)) -> 113780 | S94: =S93+'MAJ Données'!$C$24 -> 55392 | T94: =T93+'MAJ Données'!$C$13 -> 74765 | V94: Midi-Pyrénées | W94: 60000
Q95: 13 | R95: =IF('MAJ Données'!$C$30='MAJ Données'!$C$31,'Données ménage'!R94+'MAJ Données'!$D$38,IF('MAJ Données'!$C$30='MAJ Données'!$E$31,'Données ménage'!R94+'MAJ Données'!$F$38,'Données ménage'!R94+'MAJ Données'!$D$38)) -> 120912 | S95: =S94+'MAJ Données'!$C$24 -> 59279 | T95: =T94+'MAJ Données'!$C$13 -> 80013 | V95: Nord-Pas-de-Calais | W95: 81000
Q96: 14 | R96: =IF('MAJ Données'!$C$30='MAJ Données'!$C$31,'Données ménage'!R95+'MAJ Données'!$D$38,IF('MAJ Données'!$C$30='MAJ Données'!$E$31,'Données ménage'!R95+'MAJ Données'!$F$38,'Données ménage'!R95+'MAJ Données'!$D$38)) -> 128044 | S96: =S95+'MAJ Données'!$C$24 -> 63166 | T96: =T95+'MAJ Données'!$C$13 -> 85261 | V96: Pays de la Loire | W96: 65000
Q97: 15 | R97: =IF('MAJ Données'!$C$30='MAJ Données'!$C$31,'Données ménage'!R96+'MAJ Données'!$D$38,IF('MAJ Données'!$C$30='MAJ Données'!$E$31,'Données ménage'!R96+'MAJ Données'!$F$38,'Données ménage'!R96+'MAJ Données'!$D$38)) -> 135176 | S97: =S96+'MAJ Données'!$C$24 -> 67053 | T97: =T96+'MAJ Données'!$C$13 -> 90509 | V97: Picardie | W97: 82500
R98: =IF(AND(D45="oui",H45<>"",H46<>""),VLOOKUP(H46,Q82:U97,2),IF(AND(D45="oui",H45<>"",H46=""),VLOOKUP(D27,Q82:U97,2),0)) -> 0 | S98: =IF(AND(D45="oui",H45<>"",H46<>""),VLOOKUP(H46,Q82:U97,3),IF(AND(D45="oui",H45<>"",H46=""),VLOOKUP(D27,Q82:U97,3),0)) -> 0 | T98: =IF(AND(D45="oui",H45<>"",H46<>""),VLOOKUP(H46,Q82:U97,4),IF(AND(D45="oui",H45<>"",H46=""),VLOOKUP(D27,Q82:U97,4),0)) -> 0 | V98: Poitou-Charentes | W98: 59000
V99: Provence-Alpes-Côte-d'Azur | W99: 38500
R100: Eligible | S100: Bénéficie | U100: =IF(AND(R101="non",R102="non"),"Non éligible",IF(AND(T101<>"-",T102<>"-"),"Eligible au TSS et TPN et n'en bénéficie pas",IF(AND(T101<>"-",T102="-"),"Eligible au TSS et n'en bénéficie pas",IF(AND(T101="-",T102<>"-"),"Eligible au TPN et n'en bénéficie pas",IF('Consommation et énergies'!D22="Les 2","Bénéficie du TPN et TSS",'Consommation et énergies'!D22))))) -> Non éligible | V100: Rhône-Alpes | W100: 72000
Q101: TSS | R101: =IF(AND(OR('Consommation et énergies'!D8="Gaz naturel",'Consommation et énergies'!D11="Gaz naturel"),OR('Données ménage'!D52="oui",'Données ménage'!D53="oui")),"oui","non") -> non | S101: =IF(OR('Consommation et énergies'!D22='Consommation et énergies'!AW96,'Consommation et énergies'!D22='Consommation et énergies'!AW97),"En bénéficie","non") -> non | T101: =IF(AND(R101="oui",S101="non"),"Eligible au TSS et n'en bénéficie pas","-") -> - | W101: =AVERAGE(W79:W100) -> 69250
Q102: TPN | R102: =IF(OR('Données ménage'!D52="Oui",'Données ménage'!D53="Oui"),"oui","non") -> non | S102: =IF(OR('Consommation et énergies'!D22='Consommation et énergies'!AW95,'Consommation et énergies'!D22='Consommation et énergies'!AW97),"En bénéficie","non") -> non | T102: =IF(AND(R102="oui",S102="non"),"Eligible au TPN et n'en bénéficie pas","-") -> -

Sheet Données bâti
E3: Nom du/ des chargé(s) de visite | G3: =IF('Données ménage'!D20<>"",'Données ménage'!D20&IF('Données ménage'!H20<>"","/ "&'Données ménage'!H20,"")) -> Amélie LOMBARD / ROY MATHIS | L3: Case jaune = | M3: à remplir
E4: Nom de la famille | G4: =IF('Données ménage'!$D$9<>"",'Données ménage'!D9,"") -> 
H6: Données du bâti
B8: Caractéristiques du bâti
C10: Général | G10: Individuel | L10: Collectif
C11: Nombre d'occupants | E11: ='Données ménage'!D27 -> 0 | G11: Nombre de niveaux | L11: Position
C12: Nb semaines d'abscence | E12: ='Données ménage'!D33 -> 0 | G12: Mitoyenneté | L12: Forme
C13: Nombre de pièces | G13: Forme | H13: Compact | L13: Nombre de lots | M13: > 50 lots
C14: Surface habitable (m²) | G14: Combles aménagées | H14: Non | L14: Rénovation | M14: Oui
C15: Hauteur sous plafond | E15: 2.5 | G15: Rénovation réalisée | H15: Oui | I15: Année des travaux | M15: Année des travaux | N15: < 5 ans
C16: Année de construction | I16: Travaux réalisés 1 | M16: Travaux réalisés 1 | N16: Isolation murs
C17: Type d'habitation | E17: Collectif | I17: Travaux réalisés 2 | M17: Travaux réalisés 2 | N17: Changement fenêtres
I18: Travaux réalisés 3 | M18: Travaux réalisés 3 | N18: Ravalement de façade
B23: Etat général extérieur
C25: Avez-vous pris des photos de l'extérieur du bâti? | I25: Non
C26: Météo extérieure | I26: Pluvieux/ humide
C27: Température extérieure mesurée
C28: Taux d'humidité extérieur mesuré | I28: 0.93
C29: La toiture paraît-elle en bon état ? | I29: Oui
C30: Le dispositif d'évacuation des eaux (chénaux, gouttières) est-il en bon état ? | I30: Oui
C31: L’immeuble ou la maison est-il protégé des remontées d’eau ? | I31: Oui
B35: Etat général intérieur
C37: Avez-vous pris des photos de l'intérieur du logement ? | G37: Non
C38: Le logement est-il difficile à chauffer?
C39: Murs vers l'extérieur froid au toucher en hiver
C40: Sensation de confort dans le logement perçu par le chargé de visite | G40: Normal
C41: Niveau de confort perçu par l'occupant en hiver (0 nul à 5 très bon)
C42: Niveau d'humidité perçu par l'occupant (0 nul à 5 très humide)
C43: Type de ventilation
C44: Présence de bouches d'extraction d'air
C45: Etat des menuiseries | G45: Bon
C46: Température mesurée du mur
C47: Température mesurée dans la pièce principale
C48: Taux d'humidité mesuré dans la pièce principale (en %) | G48: 60
C50: Observations
C51: FALSE | D51: Surface de la pièce principale inférieure à 9m² | H51: FALSE | I51: Pas d'alimentation en eau potable
C52: FALSE | D52: Logement très sombre la journée | H52: FALSE | I52: Installation électrique dangereuse/défectueuse
C53: FALSE | D53: Présence d'insectes ou rongeurs | H53: FALSE | I53: Absence de chauffage
C54: FALSE | D54: Peinture écaillée à l'ancienne | H54: FALSE | I54: Absence de WC dans le logement
C55: FALSE | D55: Fortes odeurs d'humidité | I55: Absence de salle d'eau
C56: FALSE | D56: Fortes odeurs de canalisation | H56: FALSE | I56: Absence d'eau chaude
C57: FALSE | D57: Fenêtre(s) cassée(s), laissant passer l'air | H57: FALSE | I57: Absence de fenêtres dans les pièces principales
D59: Le logement paraît-il insalubre? | G59: Non
D60: Procédure d'insalubrité en cours?
R71: Données à ne pas modifier
R72: Listes déroulantes
R73: Année construction | S73: Nb Pièces | T73: Type logement | U73: Nb niveaux individuel | V73: Mitoyenneté | W73: Travaux | X73: Forme | Y73: Position | Z73: Ancienneté travaux | AA73: nombre de lots | AB73: Confort ressenti | AC73: Niveau confort/humidité | AD73: Meteo | AE73: Type de ventilation | AF73: menuiseries | AG73: Choix 1 | AH73: Choix 2
R74: Inconnue | S74: 1 | T74: Individuel | U74: 1 | V74: Indépendante | W74: Isolation toiture | X74: Compact | Y74: Sous les toits | Z74: < 5 ans | AA74: < 10 lots | AB74: Trop chaud | AC74: 0 | AD74: Pluvieux/ humide | AE74: Naturelle | AF74: Bon | AG74: Oui | AH74: Inconnu
R75: <1949 | S75: 2 | T75: Collectif | U75: 1.5 | V75: 1 petit côté | W75: Isolation murs | X75: Allongé | Y75: Etage intermédiaire | Z75: Entre 5 et 10 ans | AA75: 10 - 50 lots | AB75: Trop froid | AC75: 1 | AD75: Temps sec | AE75: VMC | AF75: Moyen | AG75: Non | AH75: Oui
R76: 1950-1974 | S76: 3 | U76: 2 | V76: 2 petits côtés | W76: Isolation plancher | X76: Autre | Y76: Rez-de-chaussée | Z76: Entre 11 et 20 ans | AA76: > 50 lots | AB76: Normal | AC76: 2 | AE76: Inconnu | AF76: Dégradées | AH76: Non
R77: 1975-1981 | S77: 4 | U77: 2.5 | V77: 1 grand côté | W77: Changement fenêtres | Z77: > de 20 ans | AB77: Non pertinent (hors saison de chauffe) | AC77: 3 | AF77: Très dégradées
R78: 1982-1989 | S78: 5 | U78: 3 | V78: 1 grand côté + 1 petit côté | W78: Changement chaudière | AC78: 4
R79: 1990-1999 | S79: 6 | V79: 2 grands côtés | W79: Ravalement de façade | AC79: 5
R80: 2000-2005 | S80: 7
R81: >2005
R85: Eléments de calcul
R86: Calcul des apports de chaleur internes et externes
R88: Apports solaire/ appareils électriques, éclairage, cuisine | S88: Date construction | T88: Taux apports selon âge | U88: Collectif - Coef G selon date construction | V88: Individuel - Coef G selon date construction | W88: Travaux réalisés | X88: Individuel | Y88: Collectif | Z88: Nb occupants | AA88: Apport
R89: 0.25 | S89: Inconnue | T89: 0.18 | U89: 1.4 | V89: 1.6 | W89: Isolation toiture | X89: =IF(OR($J$16=W89,$J$17=W89,$J$18=W89,$N$16=W89,$N$17=W89,$N$18=W89),0.17,0) -> 0 | Y89: =IF(AND($E$17=$T$75,$M$11<>Y74),X89/2,X89) -> 0 | Z89: 1 | AA89: 0.015
S90: <1949 | T90: 0.03 | U90: 2.2 | V90: 2.5 | W90: Isolation murs | X90: =IF(OR($J$16=W90,$J$17=W90,$J$18=W90,$N$16=W90,$N$17=W90,$N$18=W90),0.11,0) -> 0.11 | Y90: =IF(AND(OR($J$16=W90,$J$17=W90,$J$18=W90,$N$16=W90,$N$17=W90,$N$18=W90),M11=Y75),0.16,IF(OR($J$16=W90,$J$17=W90,$J$18=W90,$N$16=W90,$N$17=W90,$N$18=W90),0.12,0)) -> 0.12 | Z90: 2 | AA90: =AA89+0.025 -> 0.04
S91: 1950-1974 | T91: 0.065 | U91: 1.8 | V91: 2 | W91: Isolation plancher | X91: =IF(OR($J$16=W91,$J$17=W91,$J$18=W91,$N$16=W91,$N$17=W91,$N$18=W91),0.09,0) -> 0 | Y91: =IF(AND($E$17=$T$75,$M$11<>Y76),X91/2,X91) -> 0 | Z91: 3 | AA91: =AA90+0.025 -> 0.065
S92: 1975-1981 | T92: 0.17 | U92: 1.4 | V92: 1.5 | W92: Changement fenêtres | X92: =IF(OR($J$16=W92,$J$17=W92,$J$18=W92,$N$16=W92,$N$17=W92,$N$18=W92),0.06,0) -> 0.06 | Y92: =X92 -> 0.06 | Z92: 4 | AA92: 0.09
S93: 1982-1989 | T93: 0.28 | U93: 1 | V93: 1.1 | W93: Changement chaudière | Z93: 5 | AA93: 0.115
S94: 1990-1999 | T94: 0.33 | U94: 0.8 | V94: 0.85 | W94: Ravalement de façade | Z94: 6 | AA94: 0.14
S95: 2000-2005 | T95: 0.37 | U95: 0.75 | V95: 0.75 | Z95: 7 | AA95: 0.165
S96: >2005 | T96: 0.39 | U96: 0.55 | V96: 0.6 | Z96: 8 | AA96: 0.19
Z97: 9 | AA97: 0.215
S98: Tx travaux réalisés | Z98: 10 | AA98: 0.24
S99: =IF(E17=T74,SUM(X89:X92),SUM(Y89:Y92)) -> 0.18 | Z99: 11 | AA99: 0.265
S100: Taux d'occupation: | Z100: 12 | AA100: 0.29
S101: ='Données ménage'!G33/365 -> 1 | Z101: 13 | AA101: 0.315
S102: Taux présence: | Z102: 14 | AA102: 0.34
S103: =IF('Données ménage'!D32="Non",0.85,1) -> 1 | Z103: 15 | AA103: 0.365
S104: Tx récupération apports totaux
S105: =(1-R89)-(VLOOKUP(E16,S89:T96,2,FALSE)+VLOOKUP('Données bâti'!E11,'Données bâti'!Z89:AA103,2,FALSE)+S99) ->  | T105: =R89+(VLOOKUP(E16,S89:T96,2,FALSE)+VLOOKUP('Données bâti'!E11,'Données bâti'!Z89:AA103,2,FALSE)+S99) -> 

Sheet Consommation et énergies
D3: Nom du/ des chargé(s) de visite | I3: =IF('Données ménage'!D20<>"",'Données ménage'!D20&IF('Données ménage'!H20<>"","/ "&'Données ménage'!H20,"")) -> Amélie LOMBARD / ROY MATHIS | Q3: Case jaune = | V3: à remplir
D4: Nom de la famille | I4: =IF('Données ménage'!$D$9<>"",'Données ménage'!D9,"") -> 
B6: Les énergies
C8: Energie pour le chauffage: | I8: Type de chaudière: | S8: Type de compteur:
I9: Age de la chaudière:
C10: Type d'émetteurs | I10: Robinets thermostatiques
C11: Energie pour l'eau chaude: | I11: Type de production: | S11: Type de compteur:
C12: Energie pour la cuisson: | S12: Type de compteur:
C14: Présence chauffage d'appoint: | I14: Type d'appoint: | S14: Utilisation:
I15: Nombre d'appoint(s): | S15: Raison d'utilisation:
V17: Vous privez vous de chauffage l'hiver? | W17: Non
B20: Les consommations d'énergie
C22: Tarifs sociaux:
C24: Electricité
C26: Difficultés à payer les factures | I26: En situation d'impayé | S26: Montant de l'impayé:
C28: Factures électricité disponibles: | M28: Fournisseur: | U28: Coût kWh | Z28: =IF(P29="",AG111,IF(P29=BB110,AG111,VLOOKUP(P29,AG126:AO140,9,FALSE))) -> 0.2228
J29: Type d'abonnement | K29: Type d'abonnement: | U29: Coût abonnement | Z29: =IF(P29="",0,IF(P29=BB110,0,VLOOKUP(P29,AG126:AN140,2,FALSE))) -> 0
J30: Conso annuelle (en kWh) | P30: =IF(D28<>"Oui","",IF(X34<>"",X34,IF(H34="","Indiquer une période",IF(AND(OR(H34<>"",H34<>"Autres"),G37=""),"Renseigner les consos",IF(H34="Annuel",AVERAGE(G37:Z37),IF(H34="Bi-annuel",AVERAGE(G37:Z37)*2,IF(H34="Tous les 2 mois",AVERAGE(G37:Z37)*6,IF(H34="Mensuel",AVERAGE(G37:Z37)*12,"Renseigner les cases jaunes")))))))) ->  | U30: Coût annuel | Z30: =IF(OR(D28="",D28="Non"),0,IF(OR(P30="Indiquer une période",P30="Renseigner les consos",P30="Renseigner les cases jaunes"),0,IF(OR(P29="",P29=BB110),Z28*P30-IF(AX129="Oui",AW129,0),IF(P30<>"",(P30*Z28)+Z29,0)-IF(AX129="Oui",AW129,0)))) -> 0
U31: Adéquation abonnement | Z31: =IF(OR(P29="",P29=BB110,P30="Indiquer une période",P30="Renseigner les consos",P30="Renseigner les cases jaunes"),"-",IF(AND(P29<>AR139,AR140="oui"),"non",VLOOKUP(P29,AG126:AP140,10,FALSE))) -> -
D32: Répartion HP/HC connue
D34: Période historique | H34: Autres | M34: Entrer directement la conso annuelle estimée en kWh:
G35: Historique consommations (kWh):
D36: Mois | G36: 2000-11-01 | H36: 2013-01-01 | J36: =IF($H$34="Mensuel",EDATE(G36,1),IF($H$34="Tous les 2 mois",EDATE(G36,2),IF($H$34="Annuel",G36,IF($H$34="Bi-annuel",EDATE(G36,6),"")))) ->  | K36: =IF(AND(G36=$AT$106,$H$34="Tous les 2 mois"),EDATE(H36,12),IF(AND(G36=$AT$105,$H$34="Tous les 2 mois"),EDATE(H36,13),IF(AND(G36=$AT$106,$H$34="Mensuel"),EDATE(H36,13),IF($H$34="Annuel",EDATE(H36,12),IF($H$34="Bi-annuel",EDATE(H36,6),IF($H$34="Autres","",H36)))))) ->  | M36: =IF($H$34="Mensuel",EDATE(J36,1),IF($H$34="Tous les 2 mois",EDATE(J36,2),IF($H$34="Annuel",G36,IF($H$34="Bi-annuel",EDATE(J36,6),"")))) ->  | N36: =IF(AND(J36=AT106,H34="Tous les 2 mois"),EDATE(K36,12),IF(AND(J36=AT105,H34="Tous les 2 mois"),EDATE(K36,13),IF(AND(J36=AT106,H34="Mensuel"),EDATE(K36,13),IF(H34="Annuel",EDATE(K36,12),IF(H34="Bi-annuel",EDATE(K36,6),IF(H34="Autres","",K36)))))) ->  | P36: =IF($H$34="Mensuel",EDATE(M36,1),IF($H$34="Tous les 2 mois",EDATE(M36,2),IF($H$34="Annuel",G36,IF($H$34="Bi-annuel",EDATE(M36,6),"")))) ->  | Q36: =IF(AND(M36=AT106,H34="Tous les 2 mois"),EDATE(N36,12),IF(AND(M36=AT105,H34="Tous les 2 mois"),EDATE(N36,13),IF(AND(M36=AT106,H34="Mensuel"),EDATE(N36,13),IF(H34="Annuel",EDATE(N36,12),IF(H34="Bi-annuel",EDATE(N36,6),IF(H34="Autres","",N36)))))) ->  | S36: =IF($H$34="Mensuel",EDATE(P36,1),IF($H$34="Tous les 2 mois",EDATE(P36,2),IF($H$34="Annuel",G36,IF($H$34="Bi-annuel",EDATE(P36,6),"")))) ->  | T36: =IF(AND(P36=AT106,H34="Tous les 2 mois"),EDATE(Q36,12),IF(AND(P36=AT105,H34="Tous les 2 mois"),EDATE(Q36,13),IF(AND(P36=AT106,H34="Mensuel"),EDATE(Q36,13),IF(H34="Annuel",EDATE(Q36,12),IF(H34="Bi-annuel",EDATE(Q36,6),IF(H34="Autres","",Q36)))))) ->  | V36: =IF($H$34="Mensuel",EDATE(S36,1),IF($H$34="Tous les 2 mois",EDATE(S36,2),IF($H$34="Annuel",G36,IF($H$34="Bi-annuel",EDATE(S36,6),"")))) ->  | W36: =IF(AND(S36=AT106,H34="Tous les 2 mois"),EDATE(T36,12),IF(AND(S36=AT105,H34="Tous les 2 mois"),EDATE(T36,13),IF(AND(S36=AT106,H34="Mensuel"),EDATE(T36,13),IF(H34="Annuel",EDATE(T36,12),IF(H34="Bi-annuel",EDATE(T36,6),IF(H34="Autres","",T36)))))) ->  | Y36: =IF($H$34="Mensuel",EDATE(V36,1),IF($H$34="Tous les 2 mois",EDATE(V36,2),IF($H$34="Annuel",G36,IF($H$34="Bi-annuel",EDATE(V36,6),"")))) ->  | Z36: =IF(AND(V36=AT106,H34="Tous les 2 mois"),EDATE(W36,12),IF(AND(V36=AT105,H34="Tous les 2 mois"),EDATE(W36,13),IF(AND(V36=AT106,H34="Mensuel"),EDATE(W36,13),IF(H34="Annuel",EDATE(W36,12),IF(H34="Bi-annuel",EDATE(W36,6),IF(H34="Autres","",W36)))))) -> 
D37: Consommation
D39: % conso Heures Pleines | N39: % conso Heures creuses | S39: =1-G39 -> 1
C41: Autre facture d'énergie
C43: Autres factures disponibles: | I43: En situation d'impayé | S43: Montant de l'impayé:
C45: Difficultés à payer les factures | J45: Energie: | U45: Coût kWh | Z45: =IF(O45=BD102,AL116,IF(O45="","-",IF(O45<>BD95,VLOOKUP(O45,AF111:AG121,2,FALSE),IF(AND(O45=BD95,O48=""),AG112,IF(O48=BE99,AG112,IF(O45=BD95,VLOOKUP(O48,AF148:AH151,3,FALSE))))))) -> -
J46: Fournisseur | U46: Coût abonnement | Z46: =IF(O48="",0,IF(O48=BE99,"-",IF(O48<>"",VLOOKUP(O48,AF148:AH151,2,FALSE),"-"))) -> 0
J47: Type de besoins | U47: Coût annuel: | Z47: =IF(OR(D43="",D43="Non"),0,IF(OR(O49="Indiquer une période",O49="Renseigner les consos",O49="Renseigner les cases jaunes"),0,IF(OR(O48="",O48=BE99),Z45*O49-IF(AP152="Oui",AO152,0),IF(O49<>"",(Z45*O49)+Z46,"")-IF(AP152="Oui",AO152,0)))) -> 0
J48: Type d'abonnement | U48: Adéquation abonnement | Z48: =IF(OR(O48=BE99,O48=""),"-",IF(AND(OR(O47=AS96,O47=AS97,O47=AS98,O47=AS95),OR(O48=BE97,O48=BE98)),"Oui",IF(AND(OR(O47=AS100,O47=AS101,O47=AS95),O48=BE96),"Oui",IF(AND(O47=AS99,O48=BE95),"Oui","Non")))) -> -
J49: Conso annuelle (en kWh) | O49: =IF(D43<>"Oui","",IF(H51="","Indiquer une période",IF(AND(H51="Autres",X51<>""),X51,IF(AND(H51="Autres",X51=""),"Renseigner les consos",IF(AND(OR(H51<>"",H51<>"Autres"),G54=""),"Renseigner les consos",IF(H51="Annuel",AVERAGE(G54:Z54),IF(H51="Bi-annuel",AVERAGE(G54:Z54)*2,IF(H51="Tous les 2 mois",AVERAGE(G54:Z54)*6,IF(H51="Mensuel",AVERAGE(G54:Z54)*12,"Renseigner les cases jaunes"))))))))) -> 
D51: Période historique | M51: Entrer directement la conso annuelle estimée en kWh | X51: 10000
D53: Mois | G53: 2000-11-01 | H53: 2017-01-01 | J53: =IF($H$51="Mensuel",EDATE(G53,1),IF($H$51="Tous les 2 mois",EDATE(G53,2),IF($H$51="Annuel",G53,IF($H$51="Bi-annuel",EDATE(G53,6),"")))) ->  | K53: =IF(AND(G53=$AT$106,$H$51="Tous les 2 mois"),EDATE(H53,12),IF(AND(G53=$AT$105,$H$51="Tous les 2 mois"),EDATE(H53,13),IF(AND(G53=$AT$106,$H$51="Mensuel"),EDATE(H53,13),IF($H$51="Annuel",EDATE(H53,12),IF($H$51="Bi-annuel",EDATE(H53,6),IF($H$51="Autres","",H53)))))) -> 2017-01-01 | M53: =IF($H$51="Mensuel",EDATE(J53,1),IF($H$51="Tous les 2 mois",EDATE(J53,2),IF($H$51="Annuel",J53,IF($H$51="Bi-annuel",EDATE(J53,6),"")))) ->  | N53: =IF(AND(J53=$AT$106,$H$51="Tous les 2 mois"),EDATE(K53,12),IF(AND(J53=$AT$105,$H$51="Tous les 2 mois"),EDATE(K53,13),IF(AND(J53=$AT$106,$H$51="Mensuel"),EDATE(K53,13),IF($H$51="Annuel",EDATE(K53,12),IF($H$51="Bi-annuel",EDATE(K53,6),IF($H$51="Autres","",K53)))))) -> 2017-01-01 | P53: =IF($H$51="Mensuel",EDATE(M53,1),IF($H$51="Tous les 2 mois",EDATE(M53,2),IF($H$51="Annuel",M53,IF($H$51="Bi-annuel",EDATE(M53,6),"")))) ->  | Q53: =IF(AND(M53=$AT$106,$H$51="Tous les 2 mois"),EDATE(N53,12),IF(AND(M53=$AT$105,$H$51="Tous les 2 mois"),EDATE(N53,13),IF(AND(M53=$AT$106,$H$51="Mensuel"),EDATE(N53,13),IF($H$51="Annuel",EDATE(N53,12),IF($H$51="Bi-annuel",EDATE(N53,6),IF($H$51="Autres","",N53)))))) -> 2017-01-01 | S53: =IF($H$51="Mensuel",EDATE(P53,1),IF($H$51="Tous les 2 mois",EDATE(P53,2),IF($H$51="Annuel",P53,IF($H$51="Bi-annuel",EDATE(P53,6),"")))) ->  | T53: =IF(AND(P53=$AT$106,$H$51="Tous les 2 mois"),EDATE(Q53,12),IF(AND(P53=$AT$105,$H$51="Tous les 2 mois"),EDATE(Q53,13),IF(AND(P53=$AT$106,$H$51="Mensuel"),EDATE(Q53,13),IF($H$51="Annuel",EDATE(Q53,12),IF($H$51="Bi-annuel",EDATE(Q53,6),IF($H$51="Autres","",Q53)))))) -> 2017-01-01 | V53: =IF($H$51="Mensuel",EDATE(S53,1),IF($H$51="Tous les 2 mois",EDATE(S53,2),IF($H$51="Annuel",S53,IF($H$51="Bi-annuel",EDATE(S53,6),"")))) ->  | W53: =IF(AND(S53=$AT$106,$H$51="Tous les 2 mois"),EDATE(T53,12),IF(AND(S53=$AT$105,$H$51="Tous les 2 mois"),EDATE(T53,13),IF(AND(S53=$AT$106,$H$51="Mensuel"),EDATE(T53,13),IF($H$51="Annuel",EDATE(T53,12),IF($H$51="Bi-annuel",EDATE(T53,6),IF($H$51="Autres","",T53)))))) -> 2017-01-01 | Y53: =IF($H$51="Mensuel",EDATE(V53,1),IF($H$51="Tous les 2 mois",EDATE(V53,2),IF($H$51="Annuel",V53,IF($H$51="Bi-annuel",EDATE(V53,6),"")))) ->  | Z53: =IF(AND(V53=$AT$106,$H$51="Tous les 2 mois"),EDATE(W53,12),IF(AND(V53=$AT$105,$H$51="Tous les 2 mois"),EDATE(W53,13),IF(AND(V53=$AT$106,$H$51="Mensuel"),EDATE(W53,13),IF($H$51="Annuel",EDATE(W53,12),IF($H$51="Bi-annuel",EDATE(W53,6),IF($H$51="Autres","",W53)))))) -> 2017-01-01
D54: Consommation
B57: Les consommations d'eau
C59: Consommation d'eau disponible: | J59: Conso annuelle m³: | U59: Prix m³: | Y59: ='MAJ Données'!C113 -> 4
U60: Coût annuel: | Y60: =IF(P59<>"",P59*Y59,"-") -> -
C61: Type de compteur eau froide | D61: Individuel
B64: Les relevés de compteurs
C66: Accès compteur électrique | D66: Non | H66: Relevé Heures Pleines: | R66: Relevé Heures creuses:
C68: Accès compteur chauffage: | D68: Non | J68: Relevé compteur:
C70: Accès au compteur eau chaude: | D70: Non | J70: Relevé compteur:
C71: Accès au compteur eau froide: | D71: Non | J71: Relevé compteur:
I74: Type d'abonnement
AF91: Données à na pas modifier
AF92: Listes déroulantes:
AF94: Energie chauffage/ECS | AG94: Energie cuisson | AH94: Type chaudière | AI94: Type compteur | AJ94: Emetteurs | AK94: Age chaudière | AL94: Type ECS | AM94: Choix | AN94: Type appoint | AO94: utilisation appoint | AP94: Raison utilisation | AQ94: Nb Appoints | AR94: commutateur jour/nuit | AS94: Type besoin fac. Chauffage | AT94: Mois facture | AU94: Année facture | AV94: Historique facture | AW94: Tarifs sociaux | AX94: Fournisseur facture | AY94: Type abonnement électrique | AZ94: Difficultés factures | BA94: Types besoins facture électricité | BB94: Type abonnement élec | BC94: % HP/HC | BD94: Type énergie (facture) | BE94: Type abonnement gaz
AF95: Electricité | AG95: Electricité | AH95: Individuelle | AI95: Individuel | AJ95: Radiateurs haute température | AK95: A condensation | AL95: Individuel instantanné | AM95: Oui | AN95: Convecteur électrique mobile | AO95: Unique moyen de chauffage | AP95: Système de chauffage insuffisant | AQ95: 1 | AR95: Non présent | AS95: Chauffage uniquement | AT95: 2000-01-01 | AU95: 2007-01-01 | AV95: Mensuel | AW95: TPN (électricité) | AX95: EDF | AY95: Base | AZ95: Jamais | BA95: Electricité spécifique + chauffage + ECS | BB95: 3 kVa (Base) | BC95: 0.1 | BD95: Gaz naturel | BE95: GN base < 1000kWh
AF96: Gaz naturel | AG96: Gaz naturel | AH96: Collective | AI96: Collectif | AJ96: Radiateurs basse température | AK96: Basse température | AL96: Individuel accumulation | AM96: Non | AN96: Poêle à pétrole | AO96: Fréquente | AP96: Pour une meilleure maîtrise des coûts | AQ96: 2 | AR96: Présent marche forcé | AS96: Chauffage + ECS + Cuisson | AT96: 2000-02-01 | AU96: 2008-01-01 | AV96: Tous les 2 mois | AW96: TSS (gaz) | AX96: GDF | AY96: Simple tarif | AZ96: Parfois | BA96: Electricité spécifique + chauffage | BB96: 6 kVa (Base) | BC96: 0.15 | BD96: Gaz propane en citerne | BE96: B0 zone 1
AF97: Gaz propane en citerne | AG97: Gaz bouteille | AI97: Inconnu | AJ97: Convecteurs < 20ans | AK97: < 5 ans | AL97: Collectif | AN97: Poêle à gaz | AO97: Occasionnelle | AP97: Chauffage insuffisant ET maîtrise des coûts | AQ97: 3 | AR97: Présent marche auto | AS97: Chauffage + ECS | AT97: 2000-03-01 | AU97: 2009-01-01 | AV97: Annuel | AW97: Les 2 | AX97: Autre | AY97: Double tarif HP/HC | AZ97: Souvent | BA97: Electricité spécifique + ECS | BB97: 9 kVa (Base) | BC97: 0.2 | BD97: Gaz bouteille | BE97: B1 zone 1
AF98: Fioul domestique | AG98: Gaz propane en citerne | AJ98: Convecteurs > 20ans | AK98: entre 5 et 10 ans | AL98: Inconnu | AN98: Radiateur bain d'huile | AP98: Autre | AQ98: 4 | AS98: Chauffage + Cuisson | AT98: 2000-04-01 | AU98: 2010-01-01 | AV98: Bi-annuel | AW98: Aucun | AY98: Ne sais pas | BA98: Electricité spécifique | BB98: 12 kVa (Base) | BC98: 0.25 | BD98: Fioul domestique | BE98: B2i zone 1
AF99: Réseau de chaleur | AG99: Bois | AJ99: Plancher chauffant | AK99: Entre 10 et 15 ans | AN99: Plusieurs types dont poêle | AQ99: >4 | AS99: Cuisson uniquement | AT99: 2000-05-01 | AU99: 2011-01-01 | AV99: Autres | BB99: 15 kVa (Base) | BC99: 0.3 | BD99: Réseau de chaleur | BE99: Inconnu
AF100: Bois (granulés) | AG100: Aucune | AJ100: Autre | AK100: > 15 ans | AN100: Plusieurs types (hors poêle) | AS100: Cuisson + ECS | AT100: 2000-06-01 | AU100: 2012-01-01 | BB100: 6 kVa (HP/HC) | BC100: 0.35 | BD100: Bois (granulés)
AF101: Bois (bûches) | AG101: Autre | AK101: Inconnu | AN101: Autre | AS101: ECS uniquement | AT101: 2000-07-01 | AU101: 2013-01-01 | BB101: 9 kVa (HP/HC) | BC101: 0.4 | BD101: Bois (bûches)
AF102: Aucune | AG102: Inconnue | AN102: Inconnu | AT102: 2000-08-01 | AU102: 2014-01-01 | BB102: 12 kVa (HP/HC) | BC102: 0.45 | BD102: Chauffage d'appoint
AF103: Autre | AT103: 2000-09-01 | AU103: 2015-01-01 | BB103: 15 kVa (HP/HC) | BC103: 0.5 | BD103: Autre
AF104: Inconnue | AT104: 2000-10-01 | AU104: 2015-01-01 | BB104: 18 kVa (HP/HC) | BC104: 0.55
AF105: Chauffage d'appoint uniquement | AT105: 2000-11-01 | AU105: 2015-01-01 | BB105: 24 kVa (HP/HC) | BC105: 0.6
AT106: 2000-12-01 | AU106: 2017-01-01 | BB106: 9 kVa (Tempo) | BC106: 0.65
AU107: 2018-01-01 | BB107: 12 kVa (Tempo) | BC107: 0.7
AF108: Eléments de calcul | AU108: 2019-01-01 | BB108: 30 kVa (Tempo) | BC108: 0.75
AN109: Calcul Ich | BB109: 36 kVa (Tempo) | BC109: 0.8
AF110: Coût moyen kWh 2013 par type d'énergie | AI110: Chauffage appoint | AJ110: Prix kWh chauffage d'appoint | AK110: Ich chauffage appoint | AN110: Energie | AO110: Ich | BB110: Inconnu | BC110: 0.85
AF111: Electricité | AG111: ='MAJ Données'!C101 -> 0.2228 | AI111: Convecteur électrique mobile | AJ111: =AG111 -> 0.2228 | AK111: 1.1 | AN111: Electricité | AO111: =IF(D10=AJ98,1.2,1.1) -> 1.1 | BC111: 0.9
AF112: Gaz naturel | AG112: ='MAJ Données'!C102 -> 0.1043 | AI112: Poêle à pétrole | AJ112: =AG118 -> 0.197 | AK112: 1.6 | AN112: Gaz naturel | AO112: =(IF(N9=AK95,1.35,IF(N9=AK96,1.4,IF(N9=AK97,1.45,IF(N9=AK98,1.55,IF(N9=AK99,1.7,IF(N9=AK100,1.85,1.74)-IF(N10=AM95,0.05,0))))))) -> 1.74 | BC112: 0.95
AF113: Gaz propane en citerne | AG113: ='MAJ Données'!C103 -> 0.1465 | AI113: Poêle à gaz | AJ113: =AG118 -> 0.197 | AK113: 1.6 | AN113: Gaz propane en citerne | AO113: =(IF(N9=AK95,1.35,IF(N9=AK96,1.4,IF(N9=AK97,1.45,IF(N9=AK98,1.55,IF(N9=AK99,1.7,IF(N9=AK100,1.85,1.74)-IF(N10=AM95,0.05,0))))))) -> 1.74 | BC113: 1
AF114: Fioul domestique | AG114: ='MAJ Données'!C104 -> 1.257 | AI114: Radiateur bain d'huile | AJ114: =AJ111 -> 0.2228 | AK114: 1.06 | AN114: Fioul domestique | AO114: =(IF(N9=AK95,1.5,IF(N9=AK96,1.6,IF(N9=AK97,1.7,IF(N9=AK98,1.8,IF(N9=AK99,1.9,IF(N9=AK100,2,1.9)-IF(N10=AM95,0.05,0))))))) -> 1.9
AF115: Réseau de chaleur | AG115: ='MAJ Données'!C105 -> 0.086255 | AI115: Plusieurs types dont poêle | AJ115: =AG118 -> 0.197 | AK115: 1.5 | AL115: Prix kWh ménage | AN115: Réseau de chaleur | AO115: 1.6
AF116: Bois (granulés) | AG116: ='MAJ Données'!C106 -> 0.05675 | AI116: Plusieurs types (hors poêle) | AJ116: =AG111 -> 0.2228 | AK116: 1.1 | AL116: =IF(N14="",0,IF(OR(N14=AN95,N14=AN98,N14=AN100,N14=AN101,N14=AN102),AJ111,AJ112)) -> 0 | AN116: Bois (granulés) | AO116: 1.7
AF117: Bois (bûches) | AG117: ='MAJ Données'!C107 -> 0.04 | AI117: Autre | AJ117: =AJ114 -> 0.2228 | AK117: 1.1 | AN117: Bois (bûches) | AO117: 2.3
AF118: Gaz bouteille | AG118: ='MAJ Données'!C108 -> 0.197 | AI118: Inconnu | AJ118: =AJ117 -> 0.2228 | AK118: 1.1 | AN118: Aucune | AO118: 0
AF119: Aucune | AG119: ='MAJ Données'!C109 -> 0 | AN119: Autre | AO119: 1.5
AF120: Autre | AG120: ='MAJ Données'!C110 -> 0.1 | AN120: Inconnue | AO120: 1.5
AF121: Inconnue | AG121: ='MAJ Données'!C111 -> 0.1 | AN121: Chauffage d'appoint uniquement | AO121: =IF(N14<>"",VLOOKUP(N14,AI111:AK118,3,FALSE),0) -> 0
AG124: Abonnement électricité
AF125: Prix selon abonnement | AG125: Puissance souscrite (kVA) | AH125: Abonnement annuel TTC (euros) | AI125: Prix du kWh TTC (euros) Heures Pleines | AJ125: Prix du kWh TTC (euros) Heures Creuses | AK125: Blanc HP | AL125: Blanc HC | AM125: Rouge HP | AN125: Rouge HC | AO125: Tarif moyen kWh | AP125: Adéquation abonnement | AR125: Calcul TPN
AF126: =IF(OR($D$28="",$D$28="Non"),0,IF(OR($P$30="Indiquer une période",$P$30="Renseigner les consos",$P$30="Renseigner les cases jaunes"),0,IF(OR($P$29="",$P$29=$BB$110),0,IF($P$30<>"",($P$30*AO126)+AH126,0)-IF($AX$129="Oui",$AW$129,0)))) -> 0 | AG126: 3 kVa (Base) | AH126: ='MAJ Données'!C70 -> 104.89 | AI126: ='MAJ Données'!D70 -> 0.1558 | AJ126: =AI126 -> 0.1558 | AK126: ='MAJ Données'!F70 -> 0 | AL126: ='MAJ Données'!G70 -> 0 | AM126: ='MAJ Données'!H70 -> 0 | AN126: ='MAJ Données'!I70 -> 0 | AO126: =AI126 -> 0.1558 | AP126: =IF(AND(AF155=AR135,AF156="cuisson non incluse"),"oui","non") -> non | AR126: Déduction forfaitaire en fonction de l’UC (en euros TTC/an) | AS126: 3 kVA | AT126: 6 kVA | AU126: 9 kVA et plus
AF127: 0 | AG127: 6 kVa (Base) | AH127: ='MAJ Données'!C71 -> 143.87 | AI127: ='MAJ Données'!D71 -> 0.2062 | AJ127: =AI127 -> 0.2062 | AK127: ='MAJ Données'!F71 -> 0 | AL127: ='MAJ Données'!G71 -> 0 | AM127: ='MAJ Données'!H71 -> 0 | AN127: ='MAJ Données'!I71 -> 0 | AO127: =AI127 -> 0.2062 | AP127: =IF($AF$155=$AR$135,"oui","non") -> oui | AR127: UC = 1 | AS127: ='MAJ Données'!C46 -> 71 | AT127: ='MAJ Données'!D46 -> 87 | AU127: ='MAJ Données'!E46 -> 94
AF128: 0 | AG128: 9 kVa (Base) | AH128: ='MAJ Données'!C72 -> 171.28 | AI128: ='MAJ Données'!D72 -> 0.1605 | AJ128: 0.1605 | AK128: ='MAJ Données'!F72 -> 0 | AL128: ='MAJ Données'!G72 -> 0 | AM128: ='MAJ Données'!H72 -> 0 | AN128: ='MAJ Données'!I72 -> 0 | AO128: 0.1605 | AP128: =IF($AF$155=$AR$135,"oui","non") -> oui | AR128: 1 < UC < 2 | AS128: ='MAJ Données'!C58 -> 30 | AT128: ='MAJ Données'!D58 -> 95 | AU128: ='MAJ Données'!E58 -> 153 | AV128: Nombre UC ménage | AW128: Déduction ménage | AX128: TPN?
AF129: 0 | AG129: 12 kVa (Base) | AH129: ='MAJ Données'!C73 -> 205.42 | AI129: ='MAJ Données'!D73 -> 0.1605 | AJ129: 0.1605 | AK129: ='MAJ Données'!F73 -> 0 | AL129: ='MAJ Données'!G73 -> 0 | AM129: ='MAJ Données'!H73 -> 0 | AN129: ='MAJ Données'!I73 -> 0 | AO129: 0.1605 | AP129: =IF($AF$155=$AR$135,"oui","non") -> oui | AR129: UC >=2 | AS129: ='MAJ Données'!C50 -> 106 | AT129: ='MAJ Données'!D50 -> 131 | AU129: ='MAJ Données'!E50 -> 140 | AV129: =IF('Données ménage'!D27=1,'Consommation et énergies'!AR127,IF('Données ménage'!H27='Données ménage'!X63,'Consommation et énergies'!AR127,IF(AND('Données ménage'!H27='Données ménage'!X64,'Données ménage'!D27>3),'Consommation et énergies'!AR129,'Consommation et énergies'!AR128))) -> 1 < UC < 2 | AW129: =IF(AND(P29<>"",P29=BB95),VLOOKUP(AV129,AR127:AU129,2,FALSE),IF(AND(P29<>"",OR(P29=BB96,P29=BB100,P29=BB110)),VLOOKUP(AV129,AR127:AU129,3,FALSE),IF(P29<>"",VLOOKUP(AV129,AR127:AU129,4,FALSE),VLOOKUP(AV129,AR127:AU129,3,FALSE)))) -> 95 | AX129: =IF(OR(D22=AW95,D22=AW97),"Oui","Non") -> Non
AF130: 0 | AG130: 15 kVa (Base) | AH130: ='MAJ Données'!C74 -> 237.67 | AI130: ='MAJ Données'!D74 -> 0.1605 | AJ130: 0.1605 | AK130: ='MAJ Données'!F74 -> 0 | AL130: ='MAJ Données'!G74 -> 0 | AM130: ='MAJ Données'!H74 -> 0 | AN130: ='MAJ Données'!I74 -> 0 | AO130: 0.1605 | AP130: =IF(OR($AF$155=$AR$134,$AF$155=$AR$133),"oui","non") -> non
AF131: 0 | AG131: 6 kVa (HP/HC) | AH131: ='MAJ Données'!C75 -> 151.64 | AI131: ='MAJ Données'!D75 -> 0.2228 | AJ131: ='MAJ Données'!E75 -> 0.1615 | AK131: ='MAJ Données'!F75 -> 0 | AL131: ='MAJ Données'!G75 -> 0 | AM131: ='MAJ Données'!H75 -> 0 | AN131: ='MAJ Données'!I75 -> 0 | AO131: =IF($G$39<>"",AI131*$G$39+AJ131*$S$39,AI131*60%+AJ131*40%) -> 0.19828 | AP131: =IF(OR($AF$155=$AR$134,$AF$155=$AR$133),"oui","non") -> non | AR131: Part chauffage abo électrique
AF132: 0 | AG132: 9 kVa (HP/HC) | AH132: ='MAJ Données'!C76 -> 185.03 | AI132: ='MAJ Données'!D76 -> 0.1821 | AJ132: ='MAJ Données'!E76 -> 0.136 | AK132: ='MAJ Données'!F76 -> 0 | AL132: ='MAJ Données'!G76 -> 0 | AM132: ='MAJ Données'!H76 -> 0 | AN132: ='MAJ Données'!I76 -> 0 | AO132: =IF($G$39<>"",AI132*$G$39+AJ132*$S$39,AI132*60%+AJ132*40%) -> 0.16366 | AP132: =IF(OR($AF$155=$AR$134,$AF$155=$AR$133,$AF$155=$AR$132),"oui","non") -> non | AR132: Electricité spécifique + chauffage + ECS
AF133: 0 | AG133: 12 kVa (HP/HC) | AH133: ='MAJ Données'!C77 -> 223.21 | AI133: ='MAJ Données'!D77 -> 0.1821 | AJ133: ='MAJ Données'!E77 -> 0.136 | AK133: ='MAJ Données'!F77 -> 0 | AL133: ='MAJ Données'!G77 -> 0 | AM133: ='MAJ Données'!H77 -> 0 | AN133: ='MAJ Données'!I77 -> 0 | AO133: 0.16366 | AP133: =IF(OR($AF$155=$AR$134,$AF$155=$AR$133,$AF$155=$AR$132),"oui","non") -> non | AR133: Electricité spécifique + chauffage
AF134: 0 | AG134: 15 kVa (HP/HC) | AH134: ='MAJ Données'!C78 -> 260.37 | AI134: ='MAJ Données'!D78 -> 0.1821 | AJ134: ='MAJ Données'!E78 -> 0.136 | AK134: ='MAJ Données'!F78 -> 0 | AL134: ='MAJ Données'!G78 -> 0 | AM134: ='MAJ Données'!H78 -> 0 | AN134: ='MAJ Données'!I78 -> 0 | AO134: 0.16366 | AP134: =IF(OR($AF$155=$AR$133,$AF$155=$AR$132),"oui","non") -> non | AR134: Electricité spécifique + ECS
AF135: 0 | AG135: 18 kVa (HP/HC) | AH135: ='MAJ Données'!C79 -> 295.64 | AI135: ='MAJ Données'!D79 -> 0.1821 | AJ135: ='MAJ Données'!E79 -> 0.136 | AK135: ='MAJ Données'!F79 -> 0 | AL135: ='MAJ Données'!G79 -> 0 | AM135: ='MAJ Données'!H79 -> 0 | AN135: ='MAJ Données'!I79 -> 0 | AO135: 0.16366 | AP135: =IF(OR($AF$155=$AR$133,$AF$155=$AR$132),"oui","non") -> non | AR135: Electricité spécifique
AF136: 0 | AG136: 24 kVa (HP/HC) | AH136: ='MAJ Données'!C80 -> 362.01 | AI136: ='MAJ Données'!D80 -> 0.1821 | AJ136: ='MAJ Données'!E80 -> 0.136 | AK136: ='MAJ Données'!F80 -> 0 | AL136: ='MAJ Données'!G80 -> 0 | AM136: ='MAJ Données'!H80 -> 0 | AN136: ='MAJ Données'!I80 -> 0 | AO136: 0.16366 | AP136: =IF(OR($AF$155=$AR$133,$AF$155=$AR$132),"oui","non") -> non
AF137: 0 | AG137: 9 kVa (Tempo) | AH137: ='MAJ Données'!C81 -> 121.494 | AI137: ='MAJ Données'!D81 -> 0.100314 | AJ137: ='MAJ Données'!E81 -> 0.083994 | AK137: ='MAJ Données'!F81 -> 0.140034 | AL137: ='MAJ Données'!G81 -> 0.117474 | AM137: ='MAJ Données'!H81 -> 0.559314 | AN137: ='MAJ Données'!I81 -> 0.214194 | AO137: =AI137*35%+AJ137*30%+AK137*14%+AL137*13%+AM137*5%+AN137*3% -> 0.129576 | AP137: =IF(OR($AF$155=$AR$134,$AF$155=$AR$133,$AF$155=$AR$132),"oui","non") -> non
AF138: 0 | AG138: 12 kVa (Tempo) | AH138: ='MAJ Données'!C82 -> 198.715 | AI138: ='MAJ Données'!D82 -> 0.100314 | AJ138: ='MAJ Données'!E82 -> 0.083994 | AK138: ='MAJ Données'!F82 -> 0.140034 | AL138: ='MAJ Données'!G82 -> 0.117474 | AM138: ='MAJ Données'!H82 -> 0.559314 | AN138: ='MAJ Données'!I82 -> 0.214194 | AO138: =AI138*35%+AJ138*30%+AK138*14%+AL138*13%+AM138*5%+AN138*3% -> 0.129576 | AP138: =IF(OR($AF$155=$AR$134,$AF$155=$AR$133,$AF$155=$AR$132),"oui","non") -> non | AQ138: Meilleur prix abonnement | AR138: =MIN(AF126:AF136) -> 0
AF139: 0 | AG139: 30 kVa (Tempo) | AH139: ='MAJ Données'!C83 -> 408.4 | AI139: ='MAJ Données'!D83 -> 0.1605 | AJ139: ='MAJ Données'!E83 -> 0.083994 | AK139: ='MAJ Données'!F83 -> 0.140034 | AL139: ='MAJ Données'!G83 -> 0.117474 | AM139: ='MAJ Données'!H83 -> 0.559314 | AN139: ='MAJ Données'!I83 -> 0.214194 | AO139: 0.1506411 | AP139: =IF(OR($AF$155=$AR$133,$AF$155=$AR$132),"oui","non") -> non | AQ139: Abonnement correspondant | AR139: =VLOOKUP(AR138,AF126:AG136,2,FALSE) -> 3 kVa (Base)
AF140: 0 | AG140: 36 kVa (Tempo) | AH140: ='MAJ Données'!C84 -> 477.7 | AI140: ='MAJ Données'!D84 -> 0.1605 | AJ140: ='MAJ Données'!E84 -> 0.083994 | AK140: ='MAJ Données'!F84 -> 0.140034 | AL140: ='MAJ Données'!G84 -> 0.117474 | AM140: ='MAJ Données'!H84 -> 0.559314 | AN140: ='MAJ Données'!I84 -> 0.214194 | AO140: 0.1506411 | AP140: =IF(OR($AF$155=$AR$133,$AF$155=$AR$132),"oui","non") -> non | AQ140: Cohérence puissance: | AR140: =VLOOKUP(AR138,AF126:AP140,11,FALSE) -> non
AF146: Abonnement Gaz
AF147: Type d'abonnement | AG147: Abonnement annuel TTC (euros) | AH147: Prix du kWh TTC (euros) | AJ147: Calcul TSS
AF148: GN base < 1000kWh | AG148: ='MAJ Données'!C91 -> 102.12 | AH148: ='MAJ Données'!D91 -> 0.1284 | AJ148: Déduction ou versement forfaitaire en fonction de la composition du foyer en €TTC/an | AK148: Individuel | AN148: Collectif
AF149: B0 zone 1 | AG149: ='MAJ Données'!C92 -> 102.12 | AH149: ='MAJ Données'!D92 -> 0.1284 | AK149: 0-1000 kWh/an [cuisson] | AL149: 1000-6000 kWh/an [eau chaude] | AM149: > 6000 kWh/an [chauffage] | AN149: [chauffage]
AF150: B1 zone 1 | AG150: ='MAJ Données'!C93 -> 249.84 | AH150: ='MAJ Données'!D93 -> 0.1043 | AJ150: UC = 1 | AK150: ='MAJ Données'!C57 -> 23 | AL150: ='MAJ Données'!D57 -> 72 | AM150: ='MAJ Données'!E57 -> 123 | AN150: ='MAJ Données'!F57 -> 100
AF151: B2i zone 1 | AG151: ='MAJ Données'!C94 -> 249.84 | AH151: ='MAJ Données'!D94 -> 0.1043 | AJ151: 1 < UC < 2 | AK151: ='MAJ Données'!C58 -> 30 | AL151: ='MAJ Données'!D58 -> 95 | AM151: ='MAJ Données'!E58 -> 153 | AN151: ='MAJ Données'!F58 -> 123 | AO151: Déduction ménage | AP151: TSS?
AJ152: UC >=2 | AK152: ='MAJ Données'!C61 -> 38 | AL152: ='MAJ Données'!D61 -> 117 | AM152: ='MAJ Données'!E61 -> 185 | AN152: ='MAJ Données'!F61 -> 147 | AO152: =IF(AND(N8=AH95,O48=BE95),VLOOKUP(AV129,AJ150:AN152,2,FALSE),IF(AND(N8=AH95,OR(O48=BE96,O48=BE99,O48="")),VLOOKUP(AV129,AJ150:AN152,3,FALSE),IF(AND(N8=AH95,OR(O48=BE97,O48=BE98)),VLOOKUP(AV129,AJ150:AN152,4,FALSE),IF(AND(D8=AF96,N8=AH96),VLOOKUP(AV129,AJ150:AN152,5,FALSE),IF(AND(D8=AF96,N8=AH95),VLOOKUP(AV129,AJ150:AN152,3,FALSE),0))))) -> 0 | AP152: =IF(OR(D22=AW96,D22=AW97),"Oui","Non") -> Non
AF154: Type de besoin électrique | AG154: Energie chauff/ECS/cuisson | AJ154: Chauffage inclus facture | AK154: ECS inclus facture
AF155: =(IF(AND(D8=AF95,D11=AF95),"Electricité spécifique + chauffage + ECS",IF(AND(D8=AF95,D11<>AF95),"Electricité spécifique + chauffage",IF(AND(D8<>AF95,D11=AF95),"Electricité spécifique + ECS","Electricité spécifique")))) -> Electricité spécifique | AG155: chauff=ECS | AH155: =IF(D8=D11,"oui","non") -> oui | AI155: Autres factures | AJ155: =IF(AND(Z47>0,OR('Consommation et énergies'!O47='Consommation et énergies'!AS95,'Consommation et énergies'!O47='Consommation et énergies'!AS96,'Consommation et énergies'!O47='Consommation et énergies'!AS97,'Consommation et énergies'!O47='Consommation et énergies'!AS98)),"oui","-") -> - | AK155: =IF(AND(Z47>0,OR(O47=AS96,O47=AS97,O47=AS100,O47=AS101)),"oui","-") -> -
AF156: =IF(D12="","-",IF(D12=AF95,"cuisson incluse","cuisson non incluse")) -> - | AG156: Chauff=Cuisson | AH156: =IF(D8=D12,"oui","non") -> oui | AI156: Facture électricité | AJ156: =IF(AND(D8=AF95,Z30>0),"oui","non") -> non | AK156: =IF(AND(D11=AF95,Z30>0),"oui","non") -> non
AF158: Coût kWh chauffage
AF159: =IF(D8="",0,IF(AND(D8=AF95,D28="Oui"),Z28,IF(AND(D43="oui",O45<>"",OR(O47=AS95,O47=AS96,O47=AS97,O47=AS98)),Z45,VLOOKUP(D8,AF111:AG121,2,FALSE)))) -> 0

Sheet Chauffage ventilation
D2: Nom du/ des chargé(s) de visite | G2: =IF('Données ménage'!D20<>"",'Données ménage'!D20&IF('Données ménage'!H20<>"","/ "&'Données ménage'!H20,"")) -> Amélie LOMBARD / ROY MATHIS | J2: Case jaune = | K2: à remplir
D3: Nom de la famille | G3: =IF('Données ménage'!$D$9<>"",'Données ménage'!D9,"") -> 
G4: Chauffage et ventilation
B6: Description du logement
C8: Système | D8: Type d'énergie | F8: ='Consommation et énergies'!$D$8 -> 0
D9: Type de chaudière | F9: =IF('Consommation et énergies'!N8<>"",'Consommation et énergies'!N8,"-") -> -
D10: Type de compteur | F10: =IF(F8="Electricité","-",IF('Consommation et énergies'!W8<>"",'Consommation et énergies'!W8,"-")) -> -
D11: Type d'émetteurs | F11: =IF('Consommation et énergies'!D10<>"",'Consommation et énergies'!D10,"") -> 
D12: Type de ventilation | F12: =IF('Données bâti'!G43<>"",'Données bâti'!G43,"") -> 
D14: Factures à l'appui | F14: =IF(OR('Consommation et énergies'!AJ155="oui",'Consommation et énergies'!AJ156="oui"),"oui","non") -> non
B17: Comportements
I19: Etat initial (valeur fiche "état des lieux") | L19: Etat final
C20: Gestes mis en œuvre | F20: Réponse | G20: Actions possibles? | I20: Conso réelle (facture) en kWh/an | J20: coefficient G | K20: Conso théorique chauffage en kWh/an | L20: Geste(s) cible | N20: Economie réalisable en kWh/an
C21: La température en hiver est-elle adaptée? (pull et non tee-shirt par exemple) | I21: =IF(F14<>"Oui","",IF(F8="Electricité",'Consommation et énergies'!$P$30*V132,'Consommation et énergies'!O49*VLOOKUP(T132,$U$132:$V$137,2,FALSE))) ->  | J21: =IF('Données bâti'!E17="Collectif",VLOOKUP('Données bâti'!E16,'Données bâti'!S89:U96,3,FALSE),VLOOKUP('Données bâti'!E16,'Données bâti'!S89:V96,4,FALSE)) ->  | K21: =IF(OR('Données bâti'!E14="",'Données bâti'!E15="",'Données bâti'!E16=""),"INDIQUER LA SURFACE DU LOGEMENT, LA HAUTEUR SOUS PLAFOND ET L'ANNEE DE CONSTRUCTION DANS L'ONGLET 'Données bâti'",IF(OR(F14="non",F14=0,F14=""),AG133,"")) -> INDIQUER LA SURFACE DU LOGEMENT, LA HAUTEUR SOUS PLAFOND ET L'ANNEE DE CONSTRUCTION DANS L'ONGLET 'Données bâti' | L21: =IF(G21=U104,V104,"") ->  | N21: =IF(AND(F$14="oui",L21=V104),(I$21*0.07),IF(AND(F$14="non",L21=V104),(K21*0.07),0)) -> 0
C23: Abaissez-vous la température du logement pendant les absences de plus de 2h ? | L23: =IF(G23=U104,V105,"") ->  | N23: =IF(AND(F$14="oui",L23="Abaisser la température à 14°C pendant les absences"),(I$21*0.12),IF(L23="Abaisser la température à 14°C pendant les absences",(K$21*0.12),0)) -> 0
C25: Aérez-vous votre logement tous les jours au moins 5 minutes? | L25: =IF(G25=U104,V106,"") ->  | N25: Non mesurable
C27: Les radiateurs sont-ils bien dégagés de manière à permettre la diffusion de la chaleur (pas de meubles/rideaux)? | L27: =IF(G27=U104,V107,"") ->  | N27: Non mesurable
C28: Les grilles d'aération sont-elles dégagées? | L28: =IF(G28=U104,V108,"") ->  | N28: Non mesurable
I29: kWh/m²/an: | J29: =IF(ISERROR(Indicateurs!EP2),0,Indicateurs!EP2) -> -
B31: Equipements économes à installer
C33: Fenêtres
C35: Nombre total de fenêtres
C37: Présence de fenêtres en simple vitrage | F37: Non | H37: Nombre de fenêtres en simple vitrage
H38: Surface moyenne par fenêtre en simple vitrage (en m²)
C40: Equipement préconisé: | F40: Film de survitrage
C41: Economie estimée en kWh | F41: =IF(AND(L37<>"",F35=""),"INDIQUER NB FENETRES",IF(L37="",0,IF($F$14="oui",($I$21*AC132*L37/F35),$K$21*AC132*L37/F35))) -> 0
C42: Economie estimée en € | F42: =F41*'Consommation et énergies'!AF159 -> 0
C43: Coût investissement estimé | F43: =IF(L38<>"",Y132*L38*L37,Y132*L37*3) -> 0
C46: Infiltration air par les encadrants fenêtres | H46: Nombre de fenêtres avec infiltration d'air
H47: Métrage moyen par fenêtre avec infiltration (en m)
C49: Equipement préconisé: | F49: Joints de fenêtre
C50: Economie estimée en kWh | F50: =IF(AND(L46<>"",F35=""),"INDIQUER NB FENETRES",IF(L46="",0,IF($F$14="oui",($I$21*AC133*L46/F35),$K$21*AC133*L46/F35))) -> 0
C51: Economie estimée en € | F51: =F50*'Consommation et énergies'!AF159 -> 0
C52: Coût investissement estimé | F52: =IF(L47<>"",L46*L47*Y133,Y133*L46*7) -> 0
C55: Portes
C58: Infiltration d'air froid par les portes | H58: Nombre de portes avec infiltration d'air
C60: Equipement préconisé: | F60: Bas de porte
C61: Economie estimée en kWh | F61: =IF(K58="",0,IF($F$14="oui",($I$21*AC134*K58),$K$21*AC134*K58)) -> 0
C62: Economie estimée en € | F62: =F61*'Consommation et énergies'!AF159 -> 0
C63: Coût investissement estimé | F63: =Y134*K58 -> 0
C65: Radiateurs
C67: Nombre total de radiateurs
C69: Radiateurs devant des fenêtres simple vitrage ou des murs mal isolés (froids)? | F69: Non
H70: Nombre de radiateurs concernés
H71: Surface moyenne par radiateur concerné (en m²)
C73: Equipement préconisé: | F73: Film/panneau réfléchissant
C74: Economie estimée en kWh | F74: =IF(AND(L70<>"",F67=""),"INDIQUER NB RADIATEURS",IF(L70="",0,IF($F$14="oui",($I$21*AC135*L70/F67),$K$21*AC135*L70/F67))) -> 0
C75: Economie estimée en € | F75: =F74*'Consommation et énergies'!$AF$159 -> 0
C76: Coût investissement estimé | F76: =IF(L71<>"",Y135*L70*L71,Y135*L70*1.2) -> 0
C78: Consommation initiale | E78: =IF(F14="oui",I21,IF(F14="non",K21,0)) -> INDIQUER LA SURFACE DU LOGEMENT, LA HAUTEUR SOUS PLAFOND ET L'ANNEE DE CONSTRUCTION DANS L'ONGLET 'Données bâti' | F78: kWh/an
C79: Total économie* | E79: =SUM(N21:N24) -> 0
C80: Total consommation future | E80: =E78-E79 -> 
C81: Canalisations
C83: Canalisation chauffage dans des lieux non isolés? | F83: Non
H84: Métrage total de la tuyauterie à isoler
C86: Equipement préconisé: | F86: Manchons isolants
C87: Economie estimée en kWh | F87: =IF(OR(F83="Non",F83="",K84=""),0,IF(AND(F83="Oui",I21<>""),I21*AC136,IF(F83="Oui",AC136*K21))) -> 0
C88: Economie estimée en € | F88: =F87*'Consommation et énergies'!$AF$159 -> 0
C89: Coût investissement estimé | F89: =IF(K84<>"",Y136*K84,0) -> 0
C91: Economie par la maîtrise de l'humidité et des températures
C93: Constatation | H93: Pièce(s) concernée(s) | J93: Equipement préconisé | L93: Economie réalisable | M93: Couts investissement estimé
C94: Présence de moisissures ou traces d'humidité | G94: Non | J94: Thermomètre hygromètre | L94: Non mesurable | M94: =Y137 -> 15
C95: Absence de système de régulation/programmation | G95: Non | J95: Thermomètre simple | M95: =Y138 -> 4
C96: Présence d'un chauffage mobile électrique | G96: Non | J96: Prise programmable | M96: =Y139 -> 10
T101: Données à ne pas modifier
T102: Liste déroulantes
T103: Choix | U103: Possibilité mise en œuvre | V103: Gestes cibles | W103: Nombre fenêtres/radiateurs | X103: Vitrage/porte | Y103: Radiateurs | Z103: Pièces humides | AA103: Chauffage mobile | AB103: Surface/métrage vitrage
T104: Oui | U104: Oui, je peux | V104: Abaisser la température intérieure de 1°C | W104: 0 | X104: Oui, en partie | Y104: Oui, tous | Z104: Salle de bain uniquement | AA104: Salon | AB104: 1
T105: Non | U105: Non, je ne peux pas | V105: Abaisser la température à 14°C pendant les absences | W105: 1 | X105: Oui, toutes | Y105: Oui, en partie | Z105: Autre que salle de bain | AA105: Chambre | AB105: 2
V106: Penser à aérer 5 min tous les jours pour renouveler l'air et évacuer l'excès d'humidité | W106: 2 | X106: Non | Y106: Non | Z106: Plusieurs pièces du logement | AA106: Cuisine | AB106: 3
V107: Dégager les radiateurs pour permettre à la chaleur de se diffuser | W107: 3 | AA107: Salle de bain | AB107: 4
V108: Dégager les grilles d'aération pour permettre le renouvellement d'air | W108: 4 | AA108: WC | AB108: 5
W109: 5 | AA109: Hall | AB109: 6
W110: 6 | AA110: Autre | AB110: 7
W111: 7 | AB111: 8
W112: 8 | AB112: 9
W113: 9 | AB113: 10
W114: 10 | AB114: 11
W115: 11 | AB115: 12
W116: 12 | AB116: 13
AB117: 14
AB118: 15
AB119: 16
AB120: 17
AB121: 18
AB122: 19
AB123: 20
AB124: 21
AB125: 22
AB126: 23
AB127: 24
AB128: 25
T130: Eléments de calcul
T131: Besoins hors élec: | U131: Part chauffage: | X131: Matériel | Y131: Prix unitaire | Z131: Unité | AB131: Equipement | AC131: Taux d'économie sur les consommations de chauffage: | AF131: Conso moyenne théorique
T132: ='Consommation et énergies'!O47 -> 0 | U132: Electricité | V132: =IF(AND('Consommation et énergies'!AF155="Electricité spécifique + chauffage",'Consommation et énergies'!AF156="cuisson non incluse"),0.78,IF(AND('Consommation et énergies'!AF155="Electricité spécifique + chauffage",'Consommation et énergies'!AF156="cuisson incluse"),0.72,IF(AND('Consommation et énergies'!AF155="Electricité spécifique + chauffage + ECS",'Consommation et énergies'!AF156="cuisson non incluse"),0.63,IF(AND('Consommation et énergies'!AF155="Electricité spécifique + chauffage + ECS",'Consommation et énergies'!AF156="cuisson incluse"),0.57,0.63)))) -> 0.63 | X132: Film de survitrage | Y132: ='MAJ Données'!F138 -> 6.5 | Z132: m² | AB132: Film de survitrage | AC132: ='MAJ Données'!C138 -> 0.05 | AF132: Besoins nets chauffage | AG132: Conso finale
U133: Autre Energie | X133: Joints de calfeutrage | Y133: ='MAJ Données'!F139 -> 1.3 | Z133: m | AB133: Joints de fenêtre | AC133: ='MAJ Données'!C139 -> 0.04 | AF133: =((J21*'Données bâti'!E14*'Données bâti'!E15*((IF('Données ménage'!H12="",'Données ménage'!W101,VLOOKUP('Données ménage'!H12,'Données ménage'!V79:W101,2,FALSE))*'Données bâti'!S103)/1000))*'Données bâti'!S101*'Données bâti'!S105) ->  | AG133: =AF133*VLOOKUP('Consommation et énergies'!D8,'Consommation et énergies'!AN111:AO121,2,FALSE) -> 
U134: Chauffage uniquement | V134: 1 | X134: Bas de porte | Y134: ='MAJ Données'!F140 -> 8 | AB134: Bas de porte | AC134: ='MAJ Données'!C140 -> 0.01
U135: Chauffage + ECS + Cuisson | V135: 0.8 | X135: Film isolant radiateurs | Y135: ='MAJ Données'!F141 -> 8 | Z135: m² | AB135: Film/panneau réfléchissant | AC135: ='MAJ Données'!C141 -> 0.05
U136: Chauffage + ECS | V136: 0.84 | X136: Manchon isolant | Y136: ='MAJ Données'!F142 -> 1.5 | Z136: m | AB136: Manchon isolant | AC136: ='MAJ Données'!C142 -> 0.04
U137: Chauffage + Cuisson | V137: 0.95 | X137: Thermo-hygromètre | Y137: ='MAJ Données'!F143 -> 15
X138: Thermomètre simple | Y138: ='MAJ Données'!F144 -> 4
X139: Prise programmable | Y139: ='MAJ Données'!F145 -> 10

Sheet Eau
E3: Nom du/ des chargé(s) de visite | G3: =IF('Données ménage'!D20<>"",'Données ménage'!D20&IF('Données ménage'!H20<>"","/ "&'Données ménage'!H20,"")) -> Amélie LOMBARD / ROY MATHIS | J3: Case jaune = | K3: à remplir
E4: Nom de la famille | G4: =IF('Données ménage'!$D$9<>"",'Données ménage'!D9,"") -> 
B7: Description du logement
C9: Nbre de pers. dans le logement | E9: =IF('Données ménage'!D27<>"",'Données ménage'!D27,"") ->  | I9: Prix du mètre cube eau froide | L9: ='Consommation et énergies'!$Y$59 -> 4
C10: Jours de présence par an | E10: ='Données ménage'!G33 -> 365 | I10: Prix énergie pour 1m3 d'eau chaude | L10: =IF('Consommation et énergies'!D11='Consommation et énergies'!AF95,Eau!AA117,Eau!AA118) -> 3.644032
C11: Type de chaudière | E11: =IF('Consommation et énergies'!N8<>"",'Consommation et énergies'!N8,"-") -> - | I11: Energie eau chaude | L11: =IF('Consommation et énergies'!D11<>"",'Consommation et énergies'!D11,"-") -> -
C12: Type de production | E12: =IF('Consommation et énergies'!N11<>"",'Consommation et énergies'!N11,"-") -> - | I12: Présence d'un commutateur jour/nuit (si électrique)
C13: Volume du ballon
B16: Les comportements
C18: Le robinet de la douche est-il un mitigeur? | G18: Equipement conseillé: variateur de débit douche/stop douche pour permettre des économies d'eau
C19: Le robinet de la cuisine est-il un mitigeur? | G19: Privilégier un économiseur d'eau évier avec position stop !
G22: Etat initial | J22: Etat final
C23: Gestes mis en œuvre | E23: Réponse | F23: Actions possibles ? | G23: Usage | H23: Nb personnes concernées | I23: Conso par an en m3 | J23: Geste(s) cible | L23: Economie réalisable en m3/an | M23: Economie en € par an | N23: Economie en kWh/an
C24: Coupez-vous l'eau lors du brossage de dents? | I24: =IF(E24="Non",((G24*H24*E10*W125)/1000),IF(E24="Oui",((G24*H24*E10*W124)/1000),0)) -> 0 | J24: =IF(AND(F24=$X$86,H24<>"",G24<>""),AA87,"") ->  | L24: =IF(I24=0,0,IF(J24=AA87,((I24-(G24*H24*E10*W124)/1000)),0)) -> 0 | M24: =L24*($L$9*60%) -> 0
C25: Coupez-vous l'eau pendant la vaisselle à la main? | I25: =IF(E25="Non",((G25*E10*W129)/1000),IF(E25="Oui",((G25*E10*W128)/1000),0)) -> 0 | J25: =IF(AND(F25=$X$86,G25<>""),AA88,"") ->  | L25: =IF(I25=0,0,IF(J25=AA88,((I25-(G25*E10*W128)/1000)),0)) -> 0 | M25: =(L25*$L$9*60%)+(L25*$L$10*X161) -> 0 | N25: =IF(AND($E$11="Collective",$E$12='Consommation et énergies'!$AL$96),L25*X161*$X$119,IF(AND($E$11="Collective",$E$12='Consommation et énergies'!$AL$97),L25*X161*$X$119,IF(AND($E$11="Individuelle",$E$12='Consommation et énergies'!$AL$96),L25*X161*$X$120,IF(AND($E$11="Individuelle",$E$12='Consommation et énergies'!$AL$95),L25*X161*$X$120,L25*X161*$X$118)))) -> 0
C26: Coupez-vous l'eau pendant le rasage? | I26: =IF(E26="Non",((G26*H26*E10*W131)/1000),IF(E26="Oui",((G26*H26*E10*W130)/1000),0)) -> 0 | J26: =IF(AND(F26=$X$86,H26<>"",G26<>""),AA89,"") ->  | L26: =IF(I26=0,0,IF(J26=AA89,((I26-(G26*H26*E10*W130)/1000)),0)) -> 0 | M26: =(L26*$L$9*60%)+(L26*$L$10*40%) -> 0 | N26: =IF(AND($E$11="Collective",$E$12='Consommation et énergies'!$AL$96),L26*40%*$X$119,IF(AND($E$11="Collective",$E$12='Consommation et énergies'!$AL$97),L26*40%*$X$119,IF(AND($E$11="Individuelle",$E$12='Consommation et énergies'!$AL$96),L26*40%*$X$120,IF(AND($E$11="Individuelle",$E$12='Consommation et énergies'!$AL$95),L26*40%*$X$120,L26*40%*$X$118)))) -> 0
C27: Combien de temps passez-vous en moyenne sous la douche? | I27: =IF(OR(E27="",E9=""),0,E27*0.75*G27*E10*E9*W132/1000) -> 0 | J27: =IF(AND(F27=$X$86,G27<>""),AA92,"") ->  | L27: =IF(AND(J27=AA92,I27>0),(I27-(G27*E9*W132*E10*5*0.75)/1000),0) -> 0 | M27: =(L27*$L$9*60%)+(L27*$L$10*X159) -> 0 | N27: =IF(AND($E$11="Collective",$E$12='Consommation et énergies'!$AL$96),L27*X159*$X$119,IF(AND($E$11="Collective",$E$12='Consommation et énergies'!$AL$97),L27*X159*$X$119,IF(AND($E$11="Individuelle",$E$12='Consommation et énergies'!$AL$96),L27*X159*$X$120,IF(AND($E$11="Individuelle",$E$12='Consommation et énergies'!$AL$95),L27*X159*$X$120,L27*X159*$X$118)))) -> 0
C28: Coupez-vous l'eau pendant la douche? | I28: =IF(E28="non",(G27*H28*W133*E10)/1000,0) -> 0 | J28: =IF(AND(F28=$X$86,H28<>"",G27<>""),AA91,"") ->  | L28: =IF(AND(J28<>"",F18="Non"),I28-((W134*G27*H28*E10)/1000),IF(J28<>"",I28,0)) -> 0 | M28: =(L28*$L$9*60%)+(L28*$L$10*X159) -> 0 | N28: =IF(AND($E$11="Collective",$E$12='Consommation et énergies'!$AL$96),L28*X159*$X$119,IF(AND($E$11="Collective",$E$12='Consommation et énergies'!$AL$97),L28*X159*$X$119,IF(AND($E$11="Individuelle",$E$12='Consommation et énergies'!$AL$96),L28*X159*$X$120,IF(AND($E$11="Individuelle",$E$12='Consommation et énergies'!$AL$95),L28*X159*$X$120,L28*X159*$X$118)))) -> 0
C29: Vous arrive-t-il de prendre des bains? | I29: =IF(E29="Non",0,IF(F29=X86,((G29*H29*E10*W136)/1000),0)) -> 0 | J29: =IF(AND(F29=$X$86,H29<>"",G29<>""),AA90,"") ->  | L29: =IF(J29=AA90,((I29-(G29*H29*E10*W132)/1000)),0) -> 0 | M29: =(L29*$L$9*60%)+(L29*$L$10*X159) -> 0 | N29: =IF(AND($E$11="Collective",$E$12='Consommation et énergies'!$AL$96),L29*X159*$X$119,IF(AND($E$11="Collective",$E$12='Consommation et énergies'!$AL$97),L29*X159*$X$119,IF(AND($E$11="Individuelle",$E$12='Consommation et énergies'!$AL$96),L29*X159*$X$120,IF(AND($E$11="Individuelle",$E$12='Consommation et énergies'!$AL$95),L29*X159*$X$120,L29*X159*$X$118)))) -> 0
B34: Les équipements économes à installer
C36: Robinets: présence d'équipements économes | H36: Equipement préconisé: Mousseur lavabo ou évier
C37: Economiseur robinet (pertinent si débit supérieur à l'équipement préconisé):
C38: Pièce | D38: Equipement concerné | E38: Débit mesuré avant: litres/ minute | F38: Nb minutes d'utilisation par jour | G38: Conso par an en m3 mesuré | H38: Conso par an en m3 si installation équipement | I38: Economies m³/an potentielle | J38: Economie en € par an potentielle | K38: Economie en kWh/an potentielle | L38: OPTIONNEL: Saisie manuelle du débit d'eau (en l/minute) après installation de l'équipement économe:
G40: =IF(D40<>"",E40*F40*VLOOKUP(D40,$W$108:$Y$110,3,FALSE)*$E$10/1000,0) -> 0 | H40: =IF(AND(D40<>"",L40<>""),F40*VLOOKUP(D40,$W$108:$Y$110,3,FALSE)*L40*$E$10/1000,IF(D40<>"",F40*VLOOKUP(D40,$W$108:$Y$110,3,FALSE)*(VLOOKUP(D40,$W$108:$Z$110,2,FALSE))*$E$10/1000,0)) -> 0 | I40: =IF(D40<>"",G40-H40,0) -> 0 | J40: =(I40*$L$9*60%)+((I40*10%)*$L$10) -> 0 | K40: =IF(AND($E$11="Collective",$E$12='Consommation et énergies'!$AL$96),I40*10%*$X$119,IF(AND($E$11="Collective",$E$12='Consommation et énergies'!$AL$97),I40*10%*$X$119,IF(AND($E$11="Individuelle",$E$12='Consommation et énergies'!$AL$96),I40*10%*$X$120,IF(AND($E$11="Individuelle",$E$12='Consommation et énergies'!$AL$95),I40*10%*$X$120,I40*10%*$X$118)))) -> 0
G41: =IF(D41<>"",E41*F41*VLOOKUP(D41,$W$108:$Y$110,3,FALSE)*$E$10/1000,0) -> 0 | H41: =IF(AND(D41<>"",L41<>""),F41*VLOOKUP(D41,$W$108:$Y$110,3,FALSE)*L41*$E$10/1000,IF(D41<>"",F41*VLOOKUP(D41,$W$108:$Y$110,3,FALSE)*(VLOOKUP(D41,$W$108:$Z$110,2,FALSE))*$E$10/1000,0)) -> 0 | I41: =IF(D41<>"",G41-H41,0) -> 0 | J41: =(I41*$L$9*60%)+((I41*10%)*$L$10) -> 0 | K41: =IF(AND($E$11="Collective",$E$12='Consommation et énergies'!$AL$96),I41*10%*$X$119,IF(AND($E$11="Collective",$E$12='Consommation et énergies'!$AL$97),I41*10%*$X$119,IF(AND($E$11="Individuelle",$E$12='Consommation et énergies'!$AL$96),I41*10%*$X$120,IF(AND($E$11="Individuelle",$E$12='Consommation et énergies'!$AL$95),I41*10%*$X$120,I41*10%*$X$118)))) -> 0
G42: 0 | H42: =IF(AND(D42<>"",L42<>""),F42*VLOOKUP(D42,$W$108:$Y$110,3,FALSE)*L42*$E$10/1000,IF(D42<>"",F42*VLOOKUP(D42,$W$108:$Y$110,3,FALSE)*(VLOOKUP(D42,$W$108:$Z$110,2,FALSE))*$E$10/1000,0)) -> 0 | I42: =IF(D42<>"",G42-H42,0) -> 0 | J42: 0 | K42: =IF(AND($E$11="Collective",$E$12='Consommation et énergies'!$AL$96),I42*10%*$X$119,IF(AND($E$11="Collective",$E$12='Consommation et énergies'!$AL$97),I42*10%*$X$119,IF(AND($E$11="Individuelle",$E$12='Consommation et énergies'!$AL$96),I42*10%*$X$120,IF(AND($E$11="Individuelle",$E$12='Consommation et énergies'!$AL$95),I42*10%*$X$120,I42*10%*$X$118)))) -> 0
G43: 0 | H43: =IF(AND(D43<>"",L43<>""),F43*VLOOKUP(D43,$W$108:$Y$110,3,FALSE)*L43*$E$10/1000,IF(D43<>"",F43*VLOOKUP(D43,$W$108:$Y$110,3,FALSE)*(VLOOKUP(D43,$W$108:$Z$110,2,FALSE))*$E$10/1000,0)) -> 0 | I43: =IF(D43<>"",G43-H43,0) -> 0 | J43: 0 | K43: =IF(AND($E$11="Collective",$E$12='Consommation et énergies'!$AL$96),I43*10%*$X$119,IF(AND($E$11="Collective",$E$12='Consommation et énergies'!$AL$97),I43*10%*$X$119,IF(AND($E$11="Individuelle",$E$12='Consommation et énergies'!$AL$96),I43*10%*$X$120,IF(AND($E$11="Individuelle",$E$12='Consommation et énergies'!$AL$95),I43*10%*$X$120,I43*10%*$X$118)))) -> 0
C44: Total | H44: =SUM(H40:H43) -> 0 | I44: =SUM(I40:I43) -> 0 | J44: =SUM(J40:J43) -> 0 | K44: =SUM(K40:K43) -> 0
C46: Toilettes: présence d'équipements économes | H46: Equipement préconisé: Système éco-WC
C47: Toilettes:
C48: Pièce concernée | E48: Débit avant par usage | F48: Usage par jour et par personne | G48: Conso par an en m3 | H48: Conso par an en m3 après | I48: Economies m³/an | J48: Economie en € par an | K48: Economie en kWh/an
E50: 9 | G50: =IF(F50<>"",E50*F50*$E$9*$E$10/1000,0) -> 0 | H50: =IF(F50<>"",(F50*$X$111*$E$9*$E$10/1000),0) -> 0 | I50: =IF(F50<>"",G50-H50,0) -> 0 | J50: =I50*$L$9*60% -> 0 | K50: -
E51: 9 | G51: =IF(F51<>"",E51*F51*$E$9*$E$10/1000,0) -> 0 | H51: =IF(F51<>"",(F51*$X$111*$E$9*$E$10/1000),0) -> 0 | I51: =IF(F51<>"",G51-H51,0) -> 0 | J51: =I51*$L$9*60% -> 0 | K51: -
C52: Total | H52: =SUM(H50:H51) -> 0 | I52: =SUM(I50:I51) -> 0 | J52: =SUM(J50:J51) -> 0 | K52: =SUM(K50:K51) -> 0
C54: Douche: présence d'une douchette économe | H54: Equipement préconisé: Douchette économe
C55: Douche (pertinent si débit supérieur à l'équipement préconisé):
C56: Pièce concernée | D56: Débit mesuré avant: litres/ minute | E56: Nb de personnes concernées par l'équipement | F56: Temps passé sous la douche | G56: Conso par an en m3 | H56: Conso par an en m3 après | I56: Economies m³/an | J56: Economie en € par an | K56: Economie en kWh/an | L56: OPTIONNEL: Saisie manuelle du débit d'eau (en l/minute) après installation de l'équipement économe:
F58: =IF(D58="",0,IF($J$27=$AA$92,5,IF($E$27<>"",$E$27,"Indiquer le tps dans le 1er tableau"))) -> 0 | G58: =IF(E58<>"",(D58*E58*$G$27*0.75*$E$10*F58)/1000,0) -> 0 | H58: =IF(AND(D58<>"",L58<>""),E58*F58*L58*0.75*$G$27*$E$10/1000,IF(E58<>"",E58*F58*$X$112*0.75*$G$27*$E$10/1000,0)) -> 0 | I58: =IF(E58<>"",G58-H58,0) -> 0 | J58: =(I58*$L$9*60%)+((I58*$X$159)*$L$10) -> 0 | K58: =IF(AND($E$11="Collective",$E$12='Consommation et énergies'!$AL$96),I58*$X$159*$X$119,IF(AND($E$11="Collective",$E$12='Consommation et énergies'!$AL$97),I58*$X$159*$X$119,IF(AND($E$11="Individuelle",$E$12='Consommation et énergies'!$AL$96),I58*$X$159*$X$120,IF(AND($E$11="Individuelle",$E$12='Consommation et énergies'!$AL$95),I58*$X$159*$X$120,I58*$X$159*$X$118)))) -> 0
F59: =IF(D59="",0,IF($J$27=$AA$92,5,IF($E$27<>"",$E$27,"Indiquer le tps dans le 1er tableau"))) -> 0 | G59: =IF(E59<>"",(D59*E59*$G$27*0.75*$E$10*F59)/1000,0) -> 0 | H59: =IF(AND(D59<>"",L59<>""),E59*F59*L59*0.75*$G$27*$E$10/1000,IF(E59<>"",E59*F59*$X$112*0.75*$G$27*$E$10/1000,0)) -> 0 | I59: =IF(E59<>"",G59-H59,0) -> 0 | J59: =(I59*$L$9*60%)+((I59*$X$159)*$L$10) -> 0 | K59: =IF(AND($E$11="Collective",$E$12='Consommation et énergies'!$AL$96),I59*$X$159*$X$119,IF(AND($E$11="Collective",$E$12='Consommation et énergies'!$AL$97),I59*$X$159*$X$119,IF(AND($E$11="Individuelle",$E$12='Consommation et énergies'!$AL$96),I59*$X$159*$X$120,IF(AND($E$11="Individuelle",$E$12='Consommation et énergies'!$AL$95),I59*$X$159*$X$120,I59*$X$159*$X$118)))) -> 0
C60: Total | H60: =SUM(H58:H59) -> 0 | I60: =SUM(I58:I59) -> 0 | J60: =SUM(J58:J59) -> 0 | K60: =SUM(K58:K59) -> 0
C61: Attention, le nombre de personnes concernées par les équipements ne peut pas excéder le nombre total de personnes présentes dans le logement!
C62: Fuites: présence de fuites d'eau | F62: Non | H62: Equipement préconisé: Joints de robinetterie
C63: Fuites
C64: Pièce concernée | D64: Type de fuite | F64: Durée de la fuite en nb de jours | G64: Conso par an en m3 | H64: Conso par an en m3 après | I64: Economies m³/an | J64: Economie en € par an | K64: Economie en kWh/an
G66: =IF(D66=$Y$124,(F66*$Z$124*24)/1000,IF(D66=$Y$125,(F66*$Z$125*24)/1000,IF(D66=$Y$126,(F66*$Z$126*24)/1000,IF(D66=$Y$127,((F66*$Z$127*24)/1000),IF(D66=$Y$128,(F66*$Z$128*24)/1000,0))))) -> 0 | H66: =IF(F66<>"",0,G66) -> 0 | I66: =IF(D66<>"",G66-H66,0) -> 0 | J66: =I66*$L$9*60% -> 0 | K66: -
G67: =IF(D67=$Y$124,(F67*$Z$124*24)/1000,IF(D67=$Y$125,(F67*$Z$125*24)/1000,IF(D67=$Y$126,(F67*$Z$126*24)/1000,IF(D67=$Y$127,((F67*$Z$127*24)/1000),IF(D67=$Y$128,(F67*$Z$128)/1000,0))))) -> 0 | H67: =IF(F67<>"",0,G67) -> 0 | I67: =IF(D67<>"",G67-H67,0) -> 0 | J67: =I67*$L$9*60% -> 0 | K67: -
G68: 0 | H68: =IF(F68<>"",0,G68) -> 0 | I68: 0 | J68: =I68*$L$9*60% -> 0 | K68: -
C69: Total | H69: =SUM(H66:H68) -> 0 | I69: =SUM(I66:I68) -> 0 | J69: =SUM(J66:J68) -> 0 | K69: =SUM(K66:K68) -> 0
D73: Consommation initiale | F73: =SUM(I24:I29,G50:G51,G66:G68)*110% -> 0 | G73: m3/an | H73: =SUM(S124:S128)*110% -> 0 | I73: kWh/an
D74: Economie | F74: =SUM(L24:L29,I44,I52,I60,I69) -> 0 | H74: =SUM(N27:N29,K44,K52,K60,K69) -> 0
D75: Consommation future | F75: =F73-F74 -> 0 | H75: =H73-H74 -> 0
C76: En incluant Lave-linge et lave-vaisselle | D76: Consommation initiale | F76: 5.64
D77: Economie | F77: 0
D78: Consommation future | F78: =F76-F77 -> 5.64
D79: Total consommation future | F79: =F75+F78 -> 5.64 | H79: =H75 -> 0
V82: Données à ne pas modifier
V83: Listes déroulantes
V85: Choix | W85: Volume ballon | X85: Possibilité mise en œuvre | Y85: Nb usage par jour | Z85: Tps utilisation par jour | AA85: Gestes cibles | AB85: Commutateur | AC85: Nb pers | AD85: Presence equipement | AE85: Pièce concernée | AF85: Equipement concerné | AG85: Type fuite | AH85: Temps douche
V86: Oui | W86: <50 litres | X86: Oui, je peux | Y86: 0.14 | Z86: 1 | AA86: Couper l'eau lors du lavage des mains | AB86: Non présent | AC86: 0 | AD86: Oui, tous | AE86: Toilette | AF86: Evier | AG86: Robinet qui goutte | AH86: 1
V87: Non | W87: Entre 50 et 150 litres | X87: Non, je ne peux pas | Y87: 0.29 | Z87: 2 | AA87: Couper l'eau lors du brossage de dents | AB87: Présent marche forcé | AC87: 1 | AD87: Non | AE87: Salle de bain | AF87: Lavabo | AG87: Robinet qui fuit (filet d'eau) | AH87: 2
W88: > 150 litres | Y88: 0.43 | Z88: 3 | AA88: Couper l'eau lors de la vaisselle (ou utiliser des bacs) | AB88: Présent marche auto | AC88: 2 | AE88: Cuisine | AF88: Autre | AG88: Fuite légère chasse d'eau | AH88: 3
Y89: 0.57 | Z89: 4 | AA89: Couper l'eau lors du rasage | AC89: 3 | AE89: Autre pièce | AG89: Fuite importante chasse d'eau | AH89: 4
Y90: 0.71 | Z90: 5 | AA90: Remplacer les bains par des douches | AC90: 4 | AG90: Fuite groupe de sécurité | AH90: 5
Y91: 1 | Z91: 6 | AA91: Couper l'eau pendant la douche lorsqu'elle coule inutilement | AC91: 5 | AH91: 6
Y92: 2 | Z92: 7 | AA92: Réduire le temps passé sous la douche à 5 minutes maximum | AC92: 6 | AH92: 7
Y93: 3 | Z93: 8 | AC93: 7 | AH93: 8
Y94: 4 | Z94: 9 | AC94: 8 | AH94: 9
Y95: 5 | Z95: 10 | AC95: 9 | AH95: 10
Y96: 6 | Z96: 11 | AC96: 10 | AH96: 11
Z97: 12 | AC97: 11 | AH97: 12
AC98: 12 | AH98: 13
AC99: 13 | AH99: 14
AC100: 14 | AH100: 15
AC101: 15 | AH101: 16
AH102: 17
AH103: 18
V104: Elements de calcul
V106: Economies réalisables par les équipements économes
V107: Type d'équipement économe | X107: Litres/min économiseur eau | Y107: Taux d'utilisation selon l'usage
V108: Mousseur | W108: Lavabo | X108: ='MAJ Données'!C151 -> 6 | Y108: 0.85
V109: Mousseur | W109: Evier | X109: ='MAJ Données'!C150 -> 8 | Y109: 0.75
V110: Mousseur | W110: Autre | X110: ='MAJ Données'!C152 -> 8 | Y110: 0.75
V111: Système éco-chasse d'eau | X111: =E50-'MAJ Données'!C153 -> 7
V112: Douchette économe | X112: ='MAJ Données'!C154 -> 9
V115: Déperditions thermiques eau chaude
V116: Energie nécessaire pour chauffer 1 litre d'1°C | W116: 1.162 | Z116: Prix kWh ECS ménage | AA116: Prix m3 eau chaude
V117: 1m3 d'eau chaude de 12 à 40° | W117: =28*W116 -> 32.536 | Y117: Electricité | Z117: =IF(AND('Consommation et énergies'!D11='Consommation et énergies'!AF95,'Consommation et énergies'!D28="Oui",'Consommation et énergies'!P29='Consommation et énergies'!BB110,Eau!L12=Eau!AB88),'Consommation et énergies'!AJ131,IF(AND('Consommation et énergies'!D11='Consommation et énergies'!AF95,'Consommation et énergies'!D28="Oui",'Consommation et énergies'!P29<>"",Eau!L12=Eau!AB88),VLOOKUP('Consommation et énergies'!P29,'Consommation et énergies'!AG126:AO140,4,FALSE),IF(AND('Consommation et énergies'!D11='Consommation et énergies'!AF95,Eau!L12=Eau!AB88),'Consommation et énergies'!AJ131,IF(AND('Consommation et énergies'!D11='Consommation et énergies'!AF95,'Consommation et énergies'!D28="Oui",'Consommation et énergies'!P29<>"",Eau!L12<>Eau!AB88),'Consommation et énergies'!Z28,'Consommation et énergies'!Z28)))) -> 0.2228 | AA117: =Z117*X118 -> 7.683962048
V118: Perte avec ballon électrique | W118: 0.06 | X118: =$W$117+($W$117*W118) -> 34.48816 | Y118: Autre énergie | Z118: =IF('Consommation et énergies'!D11="",'Consommation et énergies'!AG121,IF('Consommation et énergies'!Z45="-",VLOOKUP('Consommation et énergies'!D11,'Consommation et énergies'!AF111:AG121,2,FALSE),IF(AND('Consommation et énergies'!D43="Oui",OR('Consommation et énergies'!O47='Consommation et énergies'!AS96,'Consommation et énergies'!O47='Consommation et énergies'!AS97,'Consommation et énergies'!O47='Consommation et énergies'!AS100,'Consommation et énergies'!O47='Consommation et énergies'!AS101)),'Consommation et énergies'!Z45,VLOOKUP('Consommation et énergies'!D11,'Consommation et énergies'!AF111:AG121,2,FALSE)))) -> 0.1 | AA118: =IF('Consommation et énergies'!N8='Consommation et énergies'!AH95,Eau!Z118*Eau!X120,IF('Consommation et énergies'!N8='Consommation et énergies'!AH96,Eau!X119*Eau!Z118,X121*Z118)) -> 3.644032
V119: Perte avec chaudière collective | W119: 0.21 | X119: =$W$117+($W$117*W119) -> 39.36856
V120: Perte avec chaudière individuelle | W120: 0.15 | X120: =$W$117+($W$117*W120) -> 37.4164
V121: Autre/Inconnu | W121: 0.12 | X121: =$W$117+($W$117*W121) -> 36.44032 | AQ121: =IF('Consommation et énergies'!D8="Electricité",11%,40%) -> 0.4
Z122: Débit en l/heure | AQ122: =IF(AND('Consommation et énergies'!O47<>"",'Consommation et énergies'!O47='Consommation et énergies'!AS96),20%,IF(AND('Consommation et énergies'!O47<>"",'Consommation et énergies'!O47='Consommation et énergies'!AS97),23%,0%)) -> 0
W123: Débit d'eau | Y123: Fuite d'eau
V124: Brossage de dent (en coupant l'eau) | W124: =IF($D$40="Lavabo",$E$40*0.3,IF($D$41="Lavabo",$E$41*0.3,IF($D$42="Lavabo",$E$42*0.3,IF($D$43="Lavabo",$E$43*0.3,3)))) -> 3 | Y124: Robinet qui goutte | Z124: 4
V125: Brossage de dent (en laissant l'eau couler) | W125: 8 | Y125: Robinet qui fuit (filet d'eau) | Z125: 15
V126: Lavage de mains (en coupant l'eau) | W126: 2 | Y126: Fuite légère chasse d'eau | Z126: 25
V127: Lavage de mains (en laissant l'eau) | W127: =IF($D$40="Lavabo",$E$40*0.6,IF($D$41="Lavabo",$E$41*0.6,IF($D$42="Lavabo",$E$42*0.6,IF($D$43="Lavabo",$E$43*0.6,5)))) -> 5 | Y127: Fuite importante chasse d'eau | Z127: 35
V128: Vaisselle à la main (avec 2 bacs) | W128: =IF($D$40="Evier",$E$40*0.9,IF($D$41="Evier",$E$41*0.9,IF($D$42="Evier",$E$42*0.9,10))) -> 10 | Y128: Fuite groupe de sécurité | Z128: 5
V129: Vaisselle à la main (en laissant l'eau couler) | W129: 25
V130: Rasage (en coupant l'eau) | W130: =IF($D$40="Lavabo",$E$40*0.3,IF($D$41="Lavabo",$E$41*0.3,IF($D$42="Lavabo",$E$42*0.3,IF($D$43="Lavabo",$E$43*0.3,3)))) -> 3
V131: Rasage (en laissant l'eau) | W131: =IF($D$40="Lavabo",$E$40*1,IF($D$41="Lavabo",$E$41*1,IF($D$42="Lavabo",$E$42*1,IF($D$43="Lavabo",$E$43*1,9)))) -> 9
V132: Douche | W132: =IF(D58<>"",D58,11) -> 11
V133: Economie Douche coupée | W133: =W132*0.77 -> 8.47
V134: Douche coupée mélangeur | W134: =W133/3 -> 2.823333333
V135: Douche coupée mitigeur | W135: 0
V136: Bain | W136: 150
V138: Consommations théoriques selon la classification du ménage et le nombre de personnes, en litres/jour
V139: Nb pers | W139: économe | X139: normal | Y139: gaspi
V140: 1 | W140: 120 | X140: 145 | Y140: 165
V141: 2 | W141: =W140+110 -> 230 | X141: =X140+135 -> 280 | Y141: =Y140+155 -> 320
V142: 3 | W142: =W141+105 -> 335 | X142: =X141+130 -> 410 | Y142: =Y141+150 -> 470
V143: 4 | W143: =W142+100 -> 435 | X143: =X142+125 -> 535 | Y143: =Y142+145 -> 615
V144: 5 | W144: =W143+95 -> 530 | X144: =X143+120 -> 655 | Y144: =Y143+140 -> 755
V145: 6 | W145: =W144+90 -> 620 | X145: =X144+115 -> 770 | Y145: =Y144+135 -> 890
V146: 7 | W146: 710 | X146: 885 | Y146: 1025
V147: 8 | W147: 800 | X147: 1000 | Y147: 1160
V148: 9 | W148: 890 | X148: 1115 | Y148: 1295
V149: 10 | W149: 980 | X149: 1230 | Y149: 1430
V150: 11 | W150: 1070 | X150: 1345 | Y150: 1565
V151: 12 | W151: 1160 | X151: 1460 | Y151: =Y150+125 -> 1690
V152: 13 | W152: 1250 | X152: 1575 | Y152: =Y151+125 -> 1815
V153: 14 | W153: 1340 | X153: 1690 | Y153: 1940
V154: 15 | W154: 1430 | X154: 1805 | Y154: 2065
V157: Part théorique eau chaude
W158: part dans la conso totale d'eau | X158: % eau chaude
V159: Douche | W159: 0.44 | X159: 0.5 | Y159: =W159*X159 -> 0.22
V160: WC | W160: 0.2 | X160: 0 | Y160: =W160*X160 -> 0
V161: Vaisselle | W161: 0.12 | X161: 0.47 | Y161: =W161*X161 -> 0.0564
V162: Cuisine | W162: 0.06 | X162: 0.2 | Y162: =W162*X162 -> 0.012
V163: Autre | W163: 0.06 | X163: 0.12 | Y163: =W163*X163 -> 0.0072
V164: Lessive | W164: 0.12
V165: Totale consommation eau | W165: =SUM(W159:W164) -> 1 | X165: Totale consommation eau chaude | Y165: =SUM(Y159:Y163) -> 0.2956
V168: Calcul conso moyenne | W168: Théorique | X168: Cas présent
V169: Type de conso | W169: normal | X169: =IF(E27<6,"économe",IF(AND(G27>0.71,E27>8),"gaspi","normal")) -> économe
V170: L/jour | W170: =VLOOKUP(E9,V140:Y154,3,FALSE) ->  | X170: =IF(X169="économe",VLOOKUP(E9,V140:Y154,2,FALSE),IF(X169="normal",VLOOKUP(E9,V140:Y154,3,FALSE),IF(X169="gaspi",VLOOKUP(E9,V140:Y154,4,FALSE)))) -> 
V171: m3/an | W171: =(W170*330)/1000 ->  | X171: =(X170*E10)/1000 -> 
V172: m3 ECS/an | W172: =W171*Y165 ->  | X172: =X171*Y165 -> 
V173: kWh/an | W173: =IF(AND($E$11="Collective",$E$12='Consommation et énergies'!$AL$96),W172*$X$119,IF(AND($E$11="Collective",$E$12='Consommation et énergies'!$AL$97),W172*$X$119,IF(AND($E$11="Individuelle",$E$12='Consommation et énergies'!$AL$96),W172*$X$120,IF(AND($E$11="Individuelle",$E$12='Consommation et énergies'!$AL$95),W172*$X$120,IF('Consommation et énergies'!D11='Consommation et énergies'!AF95,Eau!W172*Eau!X118,$W$172*$X$121))))) ->  | X173: =IF(AND($E$11="Collective",$E$12='Consommation et énergies'!$AL$96),X172*$X$119,IF(AND($E$11="Collective",$E$12='Consommation et énergies'!$AL$97),X172*$X$119,IF(AND($E$11="Individuelle",$E$12='Consommation et énergies'!$AL$96),X172*$X$120,IF(AND($E$11="Individuelle",$E$12='Consommation et énergies'!$AL$95),X172*$X$120,X172*$X$118)))) -> 

Sheet Froid
E2: Nom du/ des chargé(s) de visite | G2: =IF('Données ménage'!D20<>"",'Données ménage'!D20&IF('Données ménage'!H20<>"","/ "&'Données ménage'!H20,"")) -> Amélie LOMBARD / ROY MATHIS
E3: Nom de la famille | G3: =IF('Données ménage'!$D$9<>"",'Données ménage'!$D$9,"") ->  | K3: Case jaune = | M3: à remplir
I4: FROID
C6: Réfrigérateur
D8: Appareil présent dans le ménage?
D9: Température mesurée du réfrigérateur
G11: Etat initial | N11: Etat final
D12: Gestes mis en œuvre | E12: Réponse | F12: Actions possibles? | G12: Age de l'appareil | H12: Volume / taille | I12: Température intérieure en °C | J12: givrage | K12: Emplacement | L12: Etanchéité | M12: Source de chaleur externe | N12: Geste(s) cible | O12: Economie électrique réalisable* en kWh/an
D13: L'appareil est-il récent (moins de 5 ans)? | O13: =IF(OR(F13="",N13="",H13="",G13=""),0,E18-(U103*V103*W103*X103*Y103*HLOOKUP($H$13,$E$24:$G$27,MATCH($N$13,$D$24:$D$27,0),FALSE))) -> 0
D14: Absence de source de chaleur à proximité? | N14: =IF(F14=$Y$91,"Pas de source de chaleur externe","") ->  | O14: =IF(OR(G13="",H13=""),0,IF(F14="oui, je peux déplacer l'appareil",E18-(U102*V102*W102*X102*Y103*HLOOKUP($H$13,$E$24:$G$27,MATCH($G$13,$D$24:$D$27,0),FALSE)),0)) -> 0
D15: La température de stockage est-elle adéquate (5°C)? | N15: =IF(F15=$Z$91,$AF$91,"") ->  | O15: =IF(OR(G13="",H13="",N15=""),0,IF(F9="",0,IF(F9>5,0,IF(F15="oui, je peux changer la température",E18-(U102*Z103*W102*X102*Y102*HLOOKUP($H$13,$E$24:$G$27,MATCH($G$13,$D$24:$D$27,0),FALSE)),0)))) -> 0
D16: Etanche / dégagé/ dégivré? | N16: =IF(F16=$AA$91,$AG$91,"") ->  | O16: =IF(OR(G13="",H13=""),0,IF(F16="oui, je peux remédier à ces problèmes",E18-(U103*V102*W103*X103*Y102*HLOOKUP($H$13,$E$24:$G$27,MATCH($G$13,$D$24:$D$27,0),FALSE)),0)) -> 0
D17: Consommation théorique du réfrigérateur | E17: =IF(ISERROR(HLOOKUP($H$13,$E$24:$G$27,MATCH($G$13,$D$24:$D$27,0),FALSE)),0,HLOOKUP($H$13,$E$24:$G$27,MATCH($G$13,$D$24:$D$27,0),FALSE)) -> 0 | F17: kWh/an | G17: *L'économie réalisable grâce au changement d'équipement est indépendante des autres économies présentées
D18: Consommation initiale | E18: =IF(ISERROR(U102*V102*W102*X102*Y102*HLOOKUP($H$13,$E$24:$G$27,MATCH($G$13,$D$24:$D$27,0),FALSE)),0,U102*V102*W102*X102*Y102*HLOOKUP($H$13,$E$24:$G$27,MATCH($G$13,$D$24:$D$27,0),FALSE)) -> 0 | F18: kWh/an
D19: Total économie* | E19: =IF(O13>0,O13,SUM(O14:O16)) -> 0 | F19: kWh/an
D20: Total consommation future | E20: =E18-E19 -> 0 | F20: kWh/an
E23: Consommation électrique (kWh par an) | L23: Ratios utiles
D24: Données source (REMODECE, TopTen, Caritas, Geres): | E24: Table top h. 90cm | F24: 1 porte (petit freezer int.) h. 1m50 | G24: 2 portes (freezer ext.) h. 1m70 | I24: Surconsommation | K24: % | L24: Source: Topten.fr (2011)
D25: Performant A++ | E25: 130 | F25: 160 | G25: 200 | I25: Défaut d'étanchéité | K25: 20 | L25: A++ | N25: Energivore
D26: récent (classe A ou B) | E26: 160 | F26: 310 | G26: 400 | I26: Encastré / empoussiéré | K26: 10 | L26: Table top : 120 à 140 kWh/an | N26: 160 kWh
D27: ancien (6 et plus) | E27: 220 | F27: 490 | G27: 600 | I27: givré | K27: 15 | L27: 1 porte : 150 à 170 kWh/an | N27: 310 kWh
I28: 1° d'augmentation | K28: 6 | L28: 2 portes : 180 à 220 kWh/an | N28: 400 kWh
C31: Congélateur
D33: Appareil présent dans le ménage?
D34: Température mesurée du congélateur
G36: Etat initial | N36: Etat final
D37: Gestes mis en œuvre | E37: Réponse | F37: Actions possibles? | G37: Age de l'appareil | H37: Volume / taille | I37: Température intérieure en °C | J37: givrage | K37: Emplacement | L37: Etanchéité | M37: Source de chaleur externe | N37: Geste(s) cible | O37: Economie électrique réalisable* en kWh/an
D38: L'appareil est-il récent (moins de 5 ans)? | O38: =IF(OR(G38="",H38="",F38="",N38=""),0,(U107*V107*W107*X107*Y107*HLOOKUP(H38,$E$49:$I$52,MATCH(G38,D49:D52,0),FALSE))-(U108*V108*W108*X108*Y108*HLOOKUP(H38,D49:I52,MATCH(N38,D49:D52,0),FALSE))) -> 0
D39: Absence de source de chaleur à proximité? | N39: =IF(F39=$Y$91,"Pas de source de chaleur externe","") ->  | O39: =IF(OR(G38="",H38=""),0,IF(OR(G38="",H38=""),0,IF(F39="oui, je peux déplacer l'appareil",E43-(U107*V107*W107*X107*Y108*HLOOKUP($H$38,$E$49:$I$52,MATCH($G$38,$D$49:$D$52,0),FALSE)),0))) -> 0
D40: La température de stockage est-elle adéquate (-18°C)? | N40: =IF(F40=$Z$91,AH91,"") ->  | O40: =IF(OR(G38="",H38=""),0,IF(F34="",0,IF(F34>-18,0,IF(F40="oui, je peux changer la température",E43-(U107*Z108*W107*X107*Y107*HLOOKUP($H$38,$E$49:$I$52,MATCH($G$38,$D$49:$D$52,0),FALSE)),0)))) -> 0
D41: Etanche / dégagé/ dégivré? | N41: =IF(F41=$AA$91,$AG$91,"") ->  | O41: =IF(OR(G38="",H38=""),0,IF(F41="oui, je peux remédier à ces problèmes",E43-(U108*V107*W108*X108*Y107*HLOOKUP($H$38,$E$49:$I$52,MATCH($G$38,$D$49:$D$52,0),FALSE)),0)) -> 0
D42: Consommation théorique du congélateur | E42: =IF(ISERROR(HLOOKUP($H$38,$E$49:$I$52,MATCH($G$38,$D$49:$D$52,0),FALSE)),0,HLOOKUP($H$38,$E$49:$I$52,MATCH($G$38,$D$49:$D$52,0),FALSE)) -> 0 | F42: kWh/an | G42: *L'économie réalisable grâce au changement d'équipement est indépendante des autres économies présentées
D43: Consommation initiale | E43: =IF(ISERROR(U107*V107*W107*X107*Y107*HLOOKUP($H$38,$E$49:$I$52,MATCH($G$38,$D$49:$D$52,0),FALSE)),0,U107*V107*W107*X107*Y107*HLOOKUP($H$38,$E$49:$I$52,MATCH($G$38,$D$49:$D$52,0),FALSE)) -> 0 | F43: kWh/an
D44: Total économie* | E44: =IF(O38>0,O38,SUM(O39:O41)) -> 0 | F44: kWh/an
D45: Total consommation future | E45: =E43-E44 -> 0 | F45: kWh/an
E48: Consommation électrique (kWh par an) | L48: Ratios utiles
D49: Données source (REMODECE, TopTen, Caritas, Geres): | E49: Armoire table top h. 90cm | F49: Armoires < 250 litres h. 1m50 | G49: Armoires >250 litres h. 1m50 | H49: Coffres < 260 litres | I49: Coffres > 260 litres | J49: Surconsommation | K49: % | L49: Source: Topten.fr (2011) A++ Energivore
D50: Neuf et performant (A++) | E50: 160 | F50: 200 | G50: 250 | H50: 180 | I50: 210 | J50: Défaut d'étanchéité | K50: 20 | L50: Armoires Table Top : 130 à 200 kWh/an | N50: 190 kWh
D51: 1 à 5 an (A ou B) | E51: 220 | F51: 260 | G51: 310 | H51: 220 | I51: 300 | J51: Encastré / empoussiéré | K51: 10 | L51: Armoires < 250 litres : 150 à 250 kWh/an > 250 litres : 180 à 310 | N51: 320 kWh 390 kWh
D52: 6 et plus (C à G) | E52: 290 | F52: 320 | G52: 390 | H52: 260 | I52: 400 | J52: givré | K52: 15 | L52: Coffres < 260 litres : 160 à 200 kWh/an > 260 litres : 190 à 240 | N52: 260 kWh 400 kWh
I53: 1° d'augmentation | K53: 6 | L53: 2 portes : 180 et 220 kWh/an | N53: 400 kWh
C56: Combiné
D58: Appareil présent dans le ménage?
D59: Température mesurée du réfrigérateur
G61: Etat initial | N61: Etat final
D62: Gestes mis en œuvre | E62: Réponse | F62: Actions possibles? | G62: Age de l'appareil | H62: Volume / taille | I62: Température intérieure en °C | J62: givrage | K62: Emplacement | L62: Etanchéité | M62: Source de chaleur externe | N62: Geste(s) cible | O62: Economie électrique réalisable* en kWh/an
D63: L'appareil est-il récent (moins de 5 ans)? | O63: =IF(OR(G63="",H63="",F63="",N63=""),0,(U112*V112*W112*X112*Y112*HLOOKUP(H63,E74:G77,MATCH(G63,D74:D77,0),FALSE))-(U113*V113*W113*X113*Y113*HLOOKUP(H63,E74:G77,MATCH(N63,D74:D77,0),FALSE))) -> 0
D64: Absence de source de chaleur à proximité? | N64: =IF(F64=$Y$91,"Pas de source de chaleur externe","") ->  | O64: =IF(OR(G63="",H63="",N64=""),0,IF(F64="oui, je peux déplacer l'appareil",E68-(U112*V112*W112*X112*Y113*HLOOKUP($H$63,$E$74:$G$77,MATCH($G$63,$D$74:$D$77,0),FALSE)),0)) -> 0
D65: La température de stockage est-elle adéquate (5°C)? | N65: =IF(F65=$Z$91,$AF$91,"") ->  | O65: =IF(F59="",0,IF(F59>5,0,IF(F65="oui, je peux changer la température",E68-(U112*Z113*W112*X112*Y112*HLOOKUP($H$63,$E$74:$G$77,MATCH($G$63,$D$74:$D$77,0),FALSE)),0))) -> 0
D66: Etanche / dégagé/ dégivré? | N66: =IF(F66=$AA$91,$AG$91,"") ->  | O66: =IF(OR(G63="",H63="",N66=""),0,IF(F66="oui, je peux remédier à ces problèmes",E68-(U113*V112*W113*X113*Y112*HLOOKUP($H$63,$E$74:$G$77,MATCH($G$63,$D$74:$D$77,0),FALSE)),0)) -> 0
D67: Consommation théorique du combiné | E67: =IF(ISERROR(HLOOKUP($H$63,$E$74:$G$77,MATCH($G$63,$D$74:$D$77,0),FALSE)),0,HLOOKUP($H$63,$E$74:$G$77,MATCH($G$63,$D$74:$D$77,0),FALSE)) -> 0 | F67: kWh/an | G67: *L'économie réalisable grâce au changement d'équipement est indépendante des autres économies présentées
D68: Consommation initiale | E68: =IF(ISERROR(U112*V112*W112*X112*Y112*HLOOKUP($H$63,$E$74:$G$77,MATCH($G$63,$D$74:$D$77,0),FALSE)),0,U112*V112*W112*X112*Y112*HLOOKUP($H$63,$E$74:$G$77,MATCH($G$63,$D$74:$D$77,0),FALSE)) -> 0 | F68: kWh/an
D69: Total économie* | E69: =IF(O63>0,O63,SUM(O64:O66)) -> 0 | F69: kWh/an
D70: Total consommation future | E70: =E68-E69 -> 0 | F70: kWh/an
E73: Consommation électrique (kWh par an) | L73: Ratios utiles
D74: Données source (REMODECE, TopTen, Caritas, Geres): | E74: Combiné < 310 litres | F74: Combiné > 310 litres | G74: Type Américain | I74: Surconsommation | K74: % | L74: Source: Topten.fr (2011)
D75: Neuf et performant (A++) | E75: 190 | F75: 200 | G75: 380 | I75: Défaut d'étanchéité | K75: 20 | L75: A++ | N75: Energivore
D76: 1 à 5 an (A ou B) | E76: 280 | F76: 300 | G76: 610 | I76: Encastré / empoussiéré | K76: 10 | L76: Combiné < 310 litres : 150 à 230 kWh/an | N76: 370 kWh
D77: 6 et plus (C à G) | E77: 370 | F77: 400 | G77: 1500 | I77: givré | K77: 15 | L77: Combiné > 310 litres : 160 à 250 kWh/an | N77: 400 kWh
I78: 1° d'augmentation | K78: 6 | L78: Type américain : 250 à 460 kWh/an | N78: 1500 kWh
T88: Données à ne pas modifier
T89: Listes déroulantes
T90: Givrage | U90: T° lavage | V90: T° congélateur | W90: T° réfrigérateur | X90: Possibilité 1 | Y90: Possibilité 2 | Z90: Possibilité 3 | AA90: Possibilité 4 | AB90: Emplacement | AC90: Etanchéité | AD90: Source chaleur | AE90: Choix | AF90: Geste cible T° réfrigérateur | AG90: Geste cible etancheite | AH90: Geste cible T° congélateur
T91: 3 cm | U91: 15 | V91: -25 | W91: 1 | X91: oui, je souhaite le remplacer par un appareil performant | Y91: oui, je peux déplacer l'appareil | Z91: oui, je peux changer la température | AA91: oui, je peux remédier à ces problèmes | AB91: Encastré | AC91: joint de porte détérioré | AD91: Chaleur ambiante > 21°C | AE91: oui | AF91: Adapter la température (5°C) | AG91: étanche, dégagé et non givré | AH91: Adapter la température (-18°C)
T92: 1 cm | U92: 30 | V92: -22 | W92: 2 | X92: non je ne peux pas | Y92: non je ne peux pas | Z92: non je ne peux pas | AA92: non je ne peux pas | AB92: Dégagé | AC92: étanche | AD92: Exposé aux rayons solaires (> 2h) | AE92: non
T93: occasionnel | U93: 60 | V93: -20 | W93: 3 | AD93: Proximité du four (utilisation quotidienne)
T94: jamais | U94: 90 | V94: -18 | W94: 4 | AD94: Pas de source de chaleur externe
T95: Type no frost | V95: -17 | W95: 5
V96: -16 | W96: 6
V97: -15 | W97: 7
T99: Eléments de calcul
T100: Réfrigérateur
U101: givrage | V101: T° int | W101: emplacement | X101: étanchéité | Y101: T° ext
T102: initial | U102: =IF(J13=T91,1.15,IF(J13=T92,1.08,IF(J13=T93,1.03,IF(J13=T94,1,IF(J13=T95,1.2,1))))) -> 1 | V102: =IF(F9=1,1.24,IF(F9=2,1.18,IF(F9=3,1.12,IF(F9=4,1.06,IF(F9=5,1,IF(F9=6,0.94,IF(F9=7,0.88,1))))))) -> 1 | W102: =IF(K13=AB91,1.1,IF(K13=AB92,1,1)) -> 1 | X102: =IF(L13=AC91,1.2,IF(L13=AC92,1,1)) -> 1 | Y102: =IF(M13=AD91,1.15,IF(M13=AD92,1.1,IF(M13=AD93,1.15,IF(M13=AD94,1,1)))) -> 1 | AA102: remplacement seul: | AB102: =IF(N13<>"",(U102*V102*W102*X102*Y102*HLOOKUP($H$13,$E$24:$G$27,MATCH($G$13,$D$24:$D$27,0),FALSE))-(U102*V102*W102*X102*Y102*HLOOKUP($H$13,$E$24:$G$27,MATCH($N$13,$D$24:$D$27,0),FALSE)),0) -> 0
T103: final | U103: =IF(OR(N16=AG91,E16="Oui"),1,U102) -> 1 | V103: =IF(OR(F9>4,N15=AF91),1,V102) -> 1 | W103: =IF(OR(N16=AG91,E16="Oui"),1,W102) -> 1 | X103: =IF(OR(N16=AG91,E16="Oui"),1,X102) -> 1 | Y103: =IF(N14=AD94,1,Y102) -> 1 | Z103: 1
T105: Congélateur
U106: givrage | V106: T° int | W106: emplacement | X106: étanchéité | Y106: T° ext
T107: initial | U107: =IF(J38=T91,1.15,IF(J38=T92,1.08,IF(J38=T93,1.03,IF(J38=T94,1,IF(J38=T95,1.2,1))))) -> 1 | V107: =IF(F34=V91,1.24,IF(F34=V92,1.24,IF(F34=V93,1.12,IF(F34=V94,1,IF(F34=V95,0.94,IF(F34=V96,0.88,IF(F34=V97,0.82,1))))))) -> 1 | W107: =IF(K38=AB91,1.1,IF(K38=AB92,1,1)) -> 1 | X107: =IF(L38=AC91,1.2,IF(L38=AC92,1,1)) -> 1 | Y107: =IF(M38=AD91,1.15,IF(M38=AD92,1.1,IF(M38=AD93,1.15,IF(M38=AD94,1,1)))) -> 1
T108: final | U108: =IF(OR(N41=AG91,E41="Oui"),1,U107) -> 1 | V108: =IF(OR(F34>-18,N40=AH91),1,V107) -> 1 | W108: =IF(OR(N41=AG91,E41="Oui"),1,W107) -> 1 | X108: =IF(OR(N41=AG91,E41="Oui"),1,X107) -> 1 | Y108: =IF(N39=AD94,1,Y107) -> 1 | Z108: 1 | AA108: remplacement seul: | AB108: =IF(N38="",0,(U107*V107*W107*X107*Y107*HLOOKUP($H$38,$E$49:$I$52,MATCH($G$38,$D$49:$D$52,0),FALSE))-(U107*V107*W107*X107*Y107*HLOOKUP($H$38,$E$49:$I$52,MATCH($N$38,$D$49:$D$52,0),FALSE))) -> 0
T110: Combiné
U111: givrage | V111: T° int | W111: emplacement | X111: étanchéité | Y111: T° ext
T112: initial | U112: =IF(J63=T91,1.15,IF(J63=T92,1.08,IF(J63=T93,1.03,IF(J63=T94,1,IF(J63=T95,1.2,1))))) -> 1 | V112: =IF(F59=1,1.24,IF(F59=2,1.18,IF(F59=3,1.12,IF(F59=4,1.06,IF(F59=5,1,IF(F59=6,0.94,IF(F59=7,0.88,1))))))) -> 1 | W112: =IF(K63=AB91,1.1,IF(K63=AB92,1,1)) -> 1 | X112: =IF(L63=AC91,1.2,IF(L63=AC92,1,1)) -> 1 | Y112: =IF(M63=AD91,1.15,IF(M63=AD92,1.1,IF(M63=AD93,1.15,IF(M63=AD94,1,1)))) -> 1
T113: final | U113: =IF(OR(N66=AG91,E66="Oui"),1,U112) -> 1 | V113: =IF(OR(F59>4,N65=AH91),1,V112) -> 1 | W113: =IF(OR(N66=AG91,E66="Oui"),1,W112) -> 1 | X113: =IF(OR(N66=AG91,E66="Oui"),1,X112) -> 1 | Y113: =IF(N64=AD94,1,Y112) -> 1 | Z113: 1 | AA113: remplacement seul: | AB113: =IF(N63<>0,(U112*V112*W112*X112*Y112*HLOOKUP($H$63,$E$74:$G$77,MATCH($G$63,$D$74:$D$77,0),FALSE))-(U112*V112*W112*X112*Y112*HLOOKUP($H$63,$E$74:$G$77,MATCH($N$63,$D$74:$D$77,0),FALSE)),0) -> 0
T115: Conso appareils de froid du ménage
T116: frigo | U116: =IF(OR(F8="",F8="non"),0,IF(E18<>0,E18,IF(AND(F8="oui",E13="oui"),230,IF(AND(F8="oui",E13="non"),400,350)))) -> 0
T117: Congélo | U117: =IF(OR(F33="",F33="non"),0,IF(E43<>0,E43,IF(AND(F33="oui",E38="oui"),230,IF(AND(F33="oui",E38="non"),300,260)))) -> 0
T118: Combi | U118: =IF(OR(F58="",F58="non"),0,IF(E68<>0,E68,IF(AND(F58="oui",E63="oui"),230,IF(AND(F58="oui",E63="non"),400,350)))) -> 0
T119: Total | U119: =SUM(U116:U118) -> 0

Sheet Lavage sechage
D2: Nom du/ des chargé(s) de visite | F2: =IF('Données ménage'!D20<>"",'Données ménage'!D20&IF('Données ménage'!H20<>"","/ "&'Données ménage'!H20,"")) -> Amélie LOMBARD / ROY MATHIS | J2: Case jaune = | K2: à remplir
D3: Nom de la famille | F3: =IF('Données ménage'!$D$9<>"",'Données ménage'!$D$9,"") -> 
F5: LAVAGE / SECHAGE
B7: Lave-linge
C9: Appareil présent dans le ménage?
F11: Etat initial | I11: Etat final
C12: Gestes mis en œuvre | D12: Réponse | E12: Actions possibles? | F12: Age de l'appareil | G12: nombre cycle/sem | H12: Température majoritaire de lavage | I12: Informations additionnelles | J12: Geste(s) cible | K12: Economie électrique réalisable* en kWh/an | L12: Economie d'eau réalisable* en m3/an
C13: L'appareil est-il récent (moins de 5 ans)? | I13: Age du nouvel appareil? | K13: =IF(OR(F13="",G13="",H13=""),0,R112) -> 0 | L13: =IF(OR(F13="",G13="",H13=""),0,S112) -> 0
C14: Remplissez-vous le tambour à son maximum à chaque utilisation? | I14: Nouveau nombre de cycles? | K14: =IF(OR(F13="",H13="",G13="",J14=""),0,D16-(D30*J14*HLOOKUP(H13,$D$25:$G$29,MATCH($F$13,$C$25:$C$29,0),FALSE))) -> 0 | L14: =IF(ISERROR((D30*(G13-J14)*(VLOOKUP(F13,C25:H29,6,FALSE)))/1000),0,IF(E14="oui, je remplirai et diminuerai mes cycles de lavage",D30*(G13-J14)*(VLOOKUP(F13,C25:H29,6,FALSE)))/1000) -> 0
C15: Choisissez-vous la touche éco ou cycle à plus faible température? | I15: Nouvelle température? | K15: =IF(OR(F13="",H13="",G13="",J15=""),0,IF(AND(E15=V91,J14<>""),(D30*J14*HLOOKUP(H13,$D$25:$G$29,MATCH($F$13,$C$25:$C$29,0),FALSE))-(D30*J14*HLOOKUP(J15,$D$25:$G$29,MATCH($F$13,$C$25:$C$29,0),FALSE)),IF(E15=V91,D16-(D30*G13*HLOOKUP(J15,$D$25:$G$29,MATCH($F$13,$C$25:$C$29,0),FALSE)),0))) -> 0 | L15: -
C16: Consommation initiale (élec) | D16: =IF(ISERROR(D30*G13*HLOOKUP($H$13,$D$25:$G$29,MATCH($F$13,$C$25:$C$29,0),FALSE)),0,D30*G13*HLOOKUP($H$13,$D$25:$G$29,MATCH($F$13,$C$25:$C$29,0),FALSE)) -> 0 | E16: kWh/an | F16: *L'économie réalisable grâce au changement d'équipement est indépendante des autres économies présentées
C17: Total économie* (élec) | D17: =IF(K13>0,K13,SUM(K14:K15)) -> 0 | E17: kWh/an
C18: Total consommation future | D18: =D16-D17 -> 0 | E18: kWh/an
C19: Consommation initiale (eau) | D19: =IF(ISERROR(D30*G13*(VLOOKUP(F13,C25:H29,6,FALSE))/1000),0,D30*G13*(VLOOKUP(F13,C25:H29,6,FALSE))/1000) -> 0 | E19: m3/an
C20: Total économie* (eau) | D20: =IF(L13>0,L13,L14) -> 0 | E20: m3/an
C21: Total consommation future (eau) | D21: =D19-D20 -> 0 | E21: m3/an
I23: Ratios utiles
D24: Consommation électrique (kWh) et eau (litre) par cycle | I24: Source: UFC que choisir (2010)
A25: essorage** en tr/min | C25: Données source (REMODECE, TopTen, Caritas, Geres): | D25: 15 °C | E25: 30°C/ 40°C | F25: 60 °C | G25: 90 °C | H25: litres d'eau | I25: elec | K25: eau
A26: 1600 | C26: Neuf et performant (A++) | D26: 0.16 | E26: =0.28 -> 0.28 | F26: =0.7 -> 0.7 | G26: 1 | H26: 35 | I26: 0,07 à 0,16 kWh/kg | K26: coton : 6 à 13l/kg
A27: 1400 | C27: 1à 5 ans (A,A+) | D27: 0.18 | E27: 0.36 | F27: 0.95 | G27: 1.4 | H27: 45 | I27: énergivore : 0,26 kWh/kg | K27: synthétique: 11 à 23l/kg
A28: 800 | C28: 6 à 10 ans (B,C) | D28: 0.25 | E28: 0.45 | F28: 1.1 | G28: 1.6 | H28: 57 | I28: Source: Topten.fr (2011)
A29: 500 | C29: Plus de 10 ans (D à G) | D29: 0.27 | E29: 0.6 | F29: 1.5 | G29: 2.1 | H29: 70 | I29: 0,17 kWh/kg | K29: 11 l/kg
C30: nombre de semaine d'utilisation par an | D30: =52-'Données ménage'!D33 -> 52
B33: Séche-linge
C35: Appareil présent dans le ménage? | F35: ATTENTION ! Le sèche-linge dépend des valeurs du lave-linge
F37: Etat initial | I37: Etat final
C38: Gestes mis en œuvre | D38: Réponse | E38: Actions possibles? | F38: Age de l'appareil | G38: nombre cycle/sem | H38: Essorage** du linge tour/min. | I38: Informations additionnelles | J38: Geste(s) cible | K38: Economie électrique réalisable* en kWh/an | L38: Economie d'eau réalisable* en m3/an
C39: L'appareil est-il récent (moins de 5 ans)? | I39: Age du nouvel appareil? | K39: =IF(OR(E39<>T91,F39="",G39="",H39="",J39=""),0,D42-(Q104*R104*S104)) -> 0 | L39: -
C40: Favorisez-vous le séchage naturel? | I40: Nouvelle utilisation annuelle? | K40: =IF(OR(E40<>W91,F39="",G39="",H39="",J40=""),0,(Q103*R104*S103)-(Q103*R104*S104)) -> 0 | L40: -
C41: Utilisez-vous l'essorage maximum du lave-linge? | I41: Nouvelle vitesse d'essorage? | K41: =IF(OR(E41<>X91,F39="",G39="",H39="",J41=""),0,(Q103*R103*S104)-(Q103*R104*S104)) -> 0 | L41: -
C42: Consommation initiale (élec) | D42: =IF(ISERROR(Q103*R103*S103),0,Q103*R103*S103) -> 0 | E42: kWh/an | F42: *L'économie réalisable grâce au changement d'équipement est indépendante des autres économies présentées
C43: Total économie* (élec) | D43: =IF(K39<>0,K39,SUM(K40:K41)) -> 0 | E43: kWh/an | F43: ** un meilleur essorage en amont permettra de réduire de 30 à 50% la consommation du séche-linge (source www.ecoloecono.com)
C44: Total consommation future | D44: =D42-D43 -> 0 | E44: kWh/an
D46: Consommation électrique kWh par cycle Condensation | F46: Consommation électrique kWh par cycle Evacuation | I46: Ratios utiles
C47: Données source (REMODECE): | D47: PAC | E47: classique | F47: classique | I47: Source: UFC que choisir (2011)
C48: moyenne séche-linge récent classe A (800tr/mn, 7 kg) | D48: 2.5 | E48: 4.13 | F48: 4.5 | I48: condensation | K48: evacuation
C49: moyenne séche-linge semi-récent classe B (800tr/mn,7 kg) | D49: - | E49: 5.2 | F49: 5.5 | I49: 0,3 kWh/kg (modèle PAC) | K49: 0,6 kWh/kg (modèle classique)
C50: moyenne séche-linge ancien classe C (800tr/mn, 7 kg) | D50: - | E50: 6.3 | F50: 7 | I50: 0,6 kWh/kg (modèle classique)
C51: nombre de semaine d'utilisation par an | D51: =52-'Données ménage'!D33 -> 52 | I51: Source: Topten.eu (2011)
C52: * un meilleur essorage en amont permettra de réduire de 30 à 50% la consommation du séche-linge (source www.ecoloecono.com) | I52: 0,23 à 0,4 kWh/kg (classe A) 0,56 kWh/kg (classe B) | K52: non spécifié
B55: Lave-vaisselle
C57: Appareil présent dans le ménage?
F59: Etat initial | I59: Etat final
C60: Gestes mis en œuvre | D60: Réponse | E60: Actions possibles? | F60: Age de l'appareil | G60: nombre cycle/sem | H60: Température majoritaire de lavage | I60: Informations additionnelles | J60: Geste(s) cible | K60: Economie électrique réalisable* en kWh/an | L60: Economie d'eau réalisable en m3/an
C61: L'appareil est-il récent (moins de 5 ans)? | I61: Age du nouvel appareil? | K61: =IF(OR(F61="",G61="",H61=""),0,R121) -> 0 | L61: =IF(OR(F61="",G61="",H61=""),0,S121) -> 0
C62: Remplissez-vous le lave-vaisselle à son maximum à chaque utilisation? | I62: Nouveau nombre de cycle? | K62: =IF(OR(F61="",G61="",H61="",J62=""),0,D64-(D76*J62*HLOOKUP(H61,D71:F75,MATCH(F61,C71:C75,0),FALSE))) -> 0 | L62: =IF(ISERROR(D76*(G61-J62)*(VLOOKUP(F61,$C$71:$G$75,4,FALSE))/1000),0,IF(E62="oui, je remplirai et diminuerai mes cycles de lavage",D76*(G61-J62)*(VLOOKUP(F61,$C$71:$G$75,4,FALSE)))/1000) -> 0
C63: Choisissez-vous la touche éco ou cycle à plus faible température? | I63: Nouvelle programmation? | K63: =IF(OR(F61="",G61="",H61="",J63=""),0,IF(AND(E63=Y91,J62<>""),(D76*J62*HLOOKUP(H61,D71:F75,MATCH(F61,C71:C75,0),FALSE))-(D76*J62*HLOOKUP(J63,D71:F75,MATCH(F61,C71:C75,0),FALSE)),IF(E63=Y91,D64-(D76*G61*HLOOKUP(J63,D71:F75,MATCH(F61,C71:C75,0),FALSE)),0))) -> 0 | L63: -
C64: Consommation initiale (élec) | D64: =IF(ISERROR(D76*G61*HLOOKUP($H$61,$D$71:$F$75,MATCH($F$61,$C$71:$C$75,0),FALSE)),0,D76*G61*HLOOKUP($H$61,$D$71:$F$75,MATCH($F$61,$C$71:$C$75,0),FALSE)) -> 0 | E64: kWh/an | F64: *L'économie réalisable grâce au changement d'équipement est indépendante des autres économies présentées
C65: Total économie* (élec) | D65: =IF(K61>0,K61,SUM(K62:K63)) -> 0 | E65: kWh/an
C66: Total consommation future | D66: =D64-D65 -> 0 | E66: kWh/an
C67: Consommation initiale (eau) | D67: =IF(ISERROR(D76*G61*(VLOOKUP(F61,C71:G75,5,FALSE))/1000),0,D76*G61*(VLOOKUP(F61,C71:G75,5,FALSE))/1000) -> 0 | E67: m3/an
C68: Total économie (eau) | D68: =IF(L61>0,L61,L62) -> 0 | E68: m3/an
I69: Ratios utiles
D70: Consommation électrique (kWh) et eau (litre) par cycle | I70: Source: UFC que choisir (2010)
C71: Données source (REMODECE, TopTen, Caritas, Geres): | D71: 30 °C (lavage normal) | E71: 30 °C (lavage éco) | F71: 60 °C (lavage intensif) | G71: litres d'eau | I71: elec | K71: eau
C72: Neuf et performant (A++) | D72: 0.8 | E72: 0.7 | F72: 0.92 | G72: 6.5 | I72: classique 1 à 1,8 kWh/c | K72: 7,7 à 22l / cycle
C73: 1à 5 ans (A,A+) | D73: 1.25 | E73: 1 | F73: 1.43 | G73: 10 | I73: éco 0,9 à 1,2 kWh/c | K73: synthétique: 7,7 à 17 l/cycle
C74: 6 à 10 ans (B,C) | D74: 1.5 | E74: 1.25 | F74: 1.9 | G74: 13 | I74: Source: Topten.fr
C75: Plus de 10 ans (D à G) | D75: 1.7 | E75: 1.45 | F75: 2.4 | G75: 16 | I75: 0,71 à 0,92 kWh/c | K75: 6,5 à 10 l/c
C76: nombre de semaine d'utilisation par an | D76: =D51 -> 52 | I76: énergivore 1,14 kWh/c | K76: 16 l/c
P88: Données à ne pas modifier
P89: Listes déroulantes
P90: Choix | Q90: Age appareil | R90: Nb cycles/sem. | S90: T° lavage | T90: Possibilité 1 | U90: Possibilité 2 | V90: Possibilité 3 | W90: Possibilité 4 | X90: Possibilité 5 | Y90: Possibilité 6 | Z90: Utilisation seche linge | AA90: Vitesse essorage | AB90: Seche linge performant
P91: oui | Q91: neuf (classe A) | R91: 1 | S91: 15 °C | T91: oui, je souhaite le remplacer par un appareil performant | U91: oui, je remplirai et diminuerai mes cycles de lavage | V91: oui, je diminuerai ma température de lavage | W91: oui, j'utiliserai le fil à linge prioritairement | X91: oui, j'utiliserai l'essorage maximum du lave-linge | Y91: oui, je diminuerai ma température de lavage et consommation d'eau | Z91: 100 % - toute l'année | AA91: 1400 | AB91: Neuf (PAC)
P92: non | Q92: entre 5 et 10 ans (classe B) | R92: 2 | S92: 30°C/ 40°C | T92: non je ne peux pas | U92: non je ne peux pas | V92: non je ne peux pas | W92: non je ne peux pas | X92: non je ne peux pas | Y92: non je ne peux pas | Z92: 50 % - en saison hivernale | AA92: 1000 | AB92: Neuf classique
Q93: supérieur à 10 ans (classe C et +) | R93: 3 | S93: 60 °C | Z93: 25 % - que les jours de pluie | AA93: 500
R94: 4 | S94: 90 °C | Z94: 10 % - rarement
R95: 5 | Z95: 0 % - plus du tout
R96: 6
R97: 7
P99: Eléments de calcul
P101: Donnée sèche linge
Q102: kWh/cycle | R102: coef essorage | S102: nombre de jour d'utilisation | U102: Remplacement seul:
P103: initial | Q103: =IF(F39=Q93,E50,IF(F39=Q92,E49,IF(F39=Q91,E48,0))) -> 0 | R103: =IF(H39=500,"2",IF(H39=1000,"1,3",IF(H39=1400,"1",1))) -> 1 | S103: =IF(G39="100 % - toute l'année",D30*G13,IF(G39="50 % - en saison hivernale",D30*G13*0.5,IF(G39="25 % - que les jours de pluie",D30*G13*0.25,IF(G39="10 % - rarement",D30*G13*0.1,0)))) -> 0 | U103: =Q104*R103*S103 -> 0 | V103: kWh
P104: Final | Q104: =IF(J39="neuf (PAC)",D48,IF(J39="neuf classique",E48,0)) -> 0 | R104: =IF(J41=1000,"1,3",IF(J41=1400,"1",R103)) -> 1 | S104: =IF(J40="50 % - en saison hivernale",D30*G13*0.5,IF(J40="25 % - que les jours de pluie",D30*G13*0.25,IF(J40="10 % - rarement",D30*G13*0.1,IF(J40="0 % - plus du tout",0,S103)))) -> 0
P106: Lave Linge: remplacement de l'équipement
Q107: Conso finale kWh | R107: Economie realisable kWh | S107: Economie realisable m3
P108: 2 changements | Q108: =IF(ISERROR(D30*J14*HLOOKUP(J15,D25:H29,MATCH(J13,C25:C29,0),FALSE)),0,D30*J14*HLOOKUP(J15,D25:H29,MATCH(J13,C25:C29,0),FALSE)) -> 0 | R108: =IF(Q108=0,0,$D$16-Q108) -> 0
P109: Changement cycles | Q109: =IF(ISERROR(D30*J14*HLOOKUP(H13,D25:H29,MATCH(J13,C25:C29,0),FALSE)),0,D30*J14*HLOOKUP(H13,D25:H29,MATCH(J13,C25:C29,0),FALSE)) -> 0 | R109: =IF(Q109=0,0,$D$16-Q109) -> 0 | S109: =IF(ISERROR(D19-(J14*D30*VLOOKUP(J13,C25:H29,6,FALSE)/1000)),0,D19-(J14*D30*VLOOKUP(J13,C25:H29,6,FALSE)/1000)) -> 0
P110: Changement T° | Q110: =IF(ISERROR(D30*G13*HLOOKUP(J15,D25:H29,MATCH(J13,C25:C29,0),FALSE)),0,D30*G13*HLOOKUP(J15,D25:H29,MATCH(J13,C25:C29,0),FALSE)) -> 0 | R110: =IF(Q110=0,0,$D$16-Q110) -> 0
P111: Aucun changement | Q111: =IF(ISERROR(D30*G13*HLOOKUP(H13,D25:H29,MATCH(J13,C25:C29,0),FALSE)),0,D30*G13*HLOOKUP(H13,D25:H29,MATCH(J13,C25:C29,0),FALSE)) -> 0 | R111: =IF(Q111=0,0,$D$16-Q111) -> 0 | S111: =IF(ISERROR(D30*G13*((VLOOKUP(F13,C25:H29,6,FALSE))-VLOOKUP(J13,C25:H29,6,FALSE))/1000),0,D30*G13*((VLOOKUP(F13,C25:H29,6,FALSE))-VLOOKUP(J13,C25:H29,6,FALSE))/1000) -> 0
P112: Economie cas présent: | R112: =IF(AND(J14="",J15=""),R111,IF(AND(J14="",J15<>""),R110,IF(AND(J14<>"",J15=""),R109,IF(AND(J14<>"",J15<>""),R108,0)))) -> 0 | S112: =IF(J14="",S111,S109) -> 0
P115: Lave vaisselle: remplacement de l'équipement
Q116: Conso finale kWh | R116: Economie realisable kWh | S116: Economie realisable m3
P117: 2 changements | Q117: =IF(ISERROR(D76*J62*HLOOKUP(J63,D71:F75,MATCH(J61,C71:C75,0),FALSE)),0,D76*J62*HLOOKUP(J63,D71:F75,MATCH(J61,C71:C75,0),FALSE)) -> 0 | R117: =IF(Q117=0,0,$D$64-Q117) -> 0
P118: Changement cycles | Q118: =IF(ISERROR(D76*J62*HLOOKUP(H61,D71:F75,MATCH(J61,C71:C75,0),FALSE)),0,(D76*J62*HLOOKUP(H61,D71:F75,MATCH(J61,C71:C75,0),FALSE))) -> 0 | R118: =IF(Q118=0,0,$D$64-Q118) -> 0 | S118: =IF(ISERROR(D67-(J62*D76*VLOOKUP(J61,C72:G75,5,FALSE))/1000),0,D67-(J62*D76*VLOOKUP(J61,C72:G75,5,FALSE))/1000) -> 0
P119: Changement T° | Q119: =IF(ISERROR(D76*G61*HLOOKUP(J63,D71:F75,MATCH(J61,C71:C75,0),FALSE)),0,D76*G61*HLOOKUP(J63,D71:F75,MATCH(J61,C71:C75,0),FALSE)) -> 0 | R119: 0
P120: Aucun changement | Q120: =IF(ISERROR(D76*G61*HLOOKUP(H61,D71:F75,MATCH(J61,C71:C75,0),FALSE)),0,D76*G61*HLOOKUP(H61,D71:F75,MATCH(J61,C71:C75,0),FALSE)) -> 0 | R120: 0 | S120: =IF(ISERROR(D76*G61*((VLOOKUP(F61,C72:G75,5,FALSE))-VLOOKUP(J61,C72:G75,5,FALSE))/1000),0,D76*G61*((VLOOKUP(F61,C72:G75,5,FALSE))-VLOOKUP(J61,C72:G75,5,FALSE))/1000) -> 0
P121: Economie cas présent: | R121: =IF(AND(J62="",J63=""),R120,IF(AND(J62="",J63<>""),R119,IF(AND(J62<>"",J63=""),R118,IF(AND(J62<>"",J63<>""),R117,0)))) -> 0 | S121: =IF(J62="",S120,S118) -> 0
P124: Conso appareils lavage/séchage du ménage
Q125: kWh | R125: m3
P126: Lave-linge | Q126: =IF(OR(E9="",E9="non"),0,IF(D16<>0,D16,80)) -> 0 | R126: =IF(D19<>0,D19,0) -> 0
P127: Sèche-linge | Q127: =IF(OR(E35="",E35="non"),0,IF(D42<>0,D42,280)) -> 0
P128: Lave-vaisselle | Q128: =IF(OR(E57="",E57="non"),0,IF(D64<>0,D64,120)) -> 0 | R128: =D67 -> 0
P129: total | Q129: =SUM(Q126:Q128) -> 0 | R129: =SUM(R126:R128) -> 0

Sheet Eclairage
E2: Nom du/ des chargé(s) de visite | G2: =IF('Données ménage'!D20<>"",'Données ménage'!D20&IF('Données ménage'!H20<>"","/ "&'Données ménage'!H20,"")) -> Amélie LOMBARD / ROY MATHIS | L2: Cases jaunes = | M2: à remplir
E3: Nom de la famille | G3: =IF('Données ménage'!$D$9<>"",'Données ménage'!$D$9,"") -> 
B6: Eclairage
C9: Gestes mis en œuvre | F9: Réponse | J9: Actions possibles ?
C10: Avez-vous remplacé vos ampoules énergivores par des économes (Fluocompacte, LED…)?
C11: Laissez-vous parfois des lumières allumées inutilement?
C12: Est-ce que le nombre d'éclairage pour un usage est adapté?
C14: nombre de semaine de présence par an | E14: =52-'Données ménage'!D33 -> 52 | F14: Nombre de points lumineux | L14: Equipement préconisé: LBC ou LED
C15: Etat initial | K15: Etat final
C16: Pièce | E16: Ampoule type Puissance W | G16: temps moyen d'utilisation en h/ 24 h | I16: Temps d'allumage inutile si lumières laissées inutilement (en h/24h) | J16: Consommation initiale | K16: Economie estimée grâce à une utilisation optimisée | L16: Equipement préconisé | M16: Puissance W nouvelle ampoule | N16: Consommation finale | O16: Economie en kWh annuelle si équipement | P16: Economie en € annuelle si équipement
J17: =$E$14*7*F17*G17/1000 -> 0 | K17: =IF(I17="",0,(J17-($E$14*7*F17*(G17-I17)/1000))) -> 0 | N17: =$E$14*7*M17*(G17-I17)/1000 -> 0 | O17: =(J17-K17)-N17 -> 0 | P17: =O17*'Consommation et énergies'!$Z$28 -> 0
J18: =$E$14*7*F18*G18/1000 -> 0 | K18: =IF(I18="",0,(J18-($E$14*7*F18*(G18-I18)/1000))) -> 0 | N18: =$E$14*7*M18*(G18-I18)/1000 -> 0 | O18: =(J18-K18)-N18 -> 0 | P18: =O18*'Consommation et énergies'!$Z$28 -> 0
J19: 0 | K19: 0 | N19: 0 | O19: 0 | P19: =O19*'Consommation et énergies'!$Z$28 -> 0
J20: 0 | K20: 0 | N20: 0 | O20: 0 | P20: =O20*'Consommation et énergies'!$Z$28 -> 0
J21: 0 | K21: 0 | N21: 0 | O21: 0 | P21: =O21*'Consommation et énergies'!$Z$28 -> 0
J22: 0 | K22: 0 | N22: 0 | O22: 0 | P22: =O22*'Consommation et énergies'!$Z$28 -> 0
J23: 0 | K23: 0 | N23: 0 | O23: 0 | P23: =O23*'Consommation et énergies'!$Z$28 -> 0
J24: 0 | K24: 0 | N24: 0 | O24: 0 | P24: =O24*'Consommation et énergies'!$Z$28 -> 0
J25: 0 | K25: 0 | N25: 0 | O25: 0 | P25: =O25*'Consommation et énergies'!$Z$28 -> 0
J26: 0 | K26: 0 | N26: 0 | O26: 0 | P26: =O26*'Consommation et énergies'!$Z$28 -> 0
J27: 0 | K27: 0 | N27: 0 | O27: 0 | P27: =O27*'Consommation et énergies'!$Z$28 -> 0
J28: 0 | K28: 0 | N28: 0 | O28: 0 | P28: =O28*'Consommation et énergies'!$Z$28 -> 0
I29: TOTAL | J29: =SUM(J17:J28) -> 0 | K29: =SUM(K17:K28) -> 0 | N29: =SUM(N17:N28) -> 0 | O29: =SUM(O17:O28) -> 0 | P29: =SUM(P17:P28) -> 0
U35: Données à ne pas modifier
U36: Listes déroulantes
U38: Ecogestes 1 | V38: Ecogestes 2 | W38: Ecogestes 3 | X38: Possibilité mise en œuvre | Y38: Pièce concernée | Z38: Type ampoule initial | AA38: Nb heures utilisation | AB38: Type ampoule préconisé | AC38: Nombre préconisé | AD38: Coût
U39: oui, toutes | V39: non | W39: oui | X39: oui, je peux | Y39: Salon | Z39: Incandescant | AA39: 0 | AB39: Ampoule LBC culot E27 | AC39: =COUNTIF($L$17:$L$28,AB39) -> 0 | AD39: =AC39*'MAJ Données'!F159 -> 0
U40: non, pas toutes | V40: oui, parfois | W40: parfois, non | X40: non je ne peux pas | Y40: Cuisine | Z40: Halogène spot | AA40: 0.5 | AB40: Ampoule LBC culot B22 | AC40: =COUNTIF($L$17:$L$28,AB40) -> 0 | AD40: =AC40*'MAJ Données'!F160 -> 0
V41: oui, souvent | Y41: Chambre(s) | Z41: Autre | AA41: 1 | AB41: Ampoule LBC culot E14 | AC41: 0 | AD41: =AC41*'MAJ Données'!F161 -> 0
Y42: Salle-de-bain | AA42: 2 | AB42: Ampoule LBC autre culot | AC42: 0 | AD42: =AC42*'MAJ Données'!F162 -> 0
Y43: WC | AA43: 3 | AB43: Ampoule LED culot GU 5,3 | AC43: 0 | AD43: =AC43*'MAJ Données'!F163 -> 0
Y44: Couloir | AA44: 4 | AB44: Ampoule LED culot GU 10 | AC44: 0 | AD44: =AC44*'MAJ Données'!F164 -> 0
Y45: Autre | AA45: 5 | AB45: Ampoule LED autre culot | AC45: 0 | AD45: =AC45*'MAJ Données'!F165 -> 0
AA46: 6
AA47: 8
AA48: 10
AA49: 12
AA50: 15
AA51: 20
AA52: 24
U55: Eléments de calcul
U57: Conso théorique
V58: kwh/an
U59: <30 m² | V59: 100
U60: 30-60 m² | V60: 200
U61: 60-90 m² | V61: 300
U62: >90 m² | V62: 400
U63: Cas présent: | V63: =IF('Données bâti'!E14<30,Eclairage!V59,IF('Données bâti'!E14<60,Eclairage!V60,IF('Données bâti'!E14<90,Eclairage!V61,IF('Données bâti'!E14>=90,Eclairage!V62)))) -> 100

Sheet Veilles
C2: Nom du/ des chargé(s) de visite | D2: =IF('Données ménage'!D20<>"",'Données ménage'!D20&IF('Données ménage'!H20<>"","/ "&'Données ménage'!H20,"")) -> Amélie LOMBARD / ROY MATHIS
C3: Nom de la famille | D3: =IF('Données ménage'!$D$9<>"",'Données ménage'!$D$9,"") ->  | F3: Case jaune = | G3: à remplir
B7: Les veilles
C9: Taux d'équipement:
C10: Présence de veilles: | E10: Passer à la fiche suivante
F11: Equipement préconisé: multiprise à interrupteur
C13: Appareils avec veilles | D13: Conso mesurée en Watt | E13: heures/ jour en veille | F13: Economies
F14: kWh/an | G14: Euro / an
F15: =(D15*E15*365)/1000 -> 0 | G15: =F15*'Consommation et énergies'!$Z$28 -> 0
F16: 0 | G16: =F16*'Consommation et énergies'!$Z$28 -> 0
F17: 0 | G17: =F17*'Consommation et énergies'!$Z$28 -> 0
F18: 0 | G18: =F18*'Consommation et énergies'!$Z$28 -> 0
F19: 0 | G19: =F19*'Consommation et énergies'!$Z$28 -> 0
F20: 0 | G20: =F20*'Consommation et énergies'!$Z$28 -> 0
F21: 0 | G21: =F21*'Consommation et énergies'!$Z$28 -> 0
F22: 0 | G22: =F22*'Consommation et énergies'!$Z$28 -> 0
F23: 0 | G23: =F23*'Consommation et énergies'!$Z$28 -> 0
F24: 0 | G24: =F24*'Consommation et énergies'!$Z$28 -> 0
E25: TOTAL | F25: =SUM(F15:F24) -> 0 | G25: =SUM(G15:G24) -> 0
C27: Nombre de multiprises avec interrupteur préconisées:
C28: Nombre de multiprises coupe-veille préconisées:
Q42: Données à ne pas modifier
Q43: Listes déroulantes
Q45: Type équipements | R45: Pièce concernée | S45: Choix | T45: Tx d'équipement
Q46: Ordinateur | R46: Salon | S46: Oui | T46: Faible
Q47: Ecran d'ordinateur | R47: Chambre | S47: Non | T47: Normal
Q48: Imprimante | R48: Cuisine | T48: Suréquipé
Q49: scanner | R49: Salle de bain
Q50: Console de jeu | R50: Autre pièce
Q51: TV
Q52: Chargeur
Q53: Boitier TV satellite/numérique
Q54: Lecteur DVD
Q55: Chaîne hifi
Q56: Radio
Q57: Autre
Q60: Eléments de calcul
Q61: Conso théorique autres appareils
Q62: Nb occupants | R62: Type de conso | W62: Total conso théorique électricité (cas présent)
Q63: 0 | R63: Faible | S63: Normal | T63: Suréquipé | U63: Dont cuisson | W63: Froid | X63: =Froid!U119 -> 0
Q64: 1 | R64: 350 | S64: 500 | T64: 650 | U64: 210 | W64: Lavage | X64: ='Lavage sechage'!Q129 -> 0
Q65: 2 | R65: =R64+300 -> 650 | S65: =S64+300 -> 800 | T65: =T64+300 -> 950 | U65: 370 | W65: Eclairage | X65: =Eclairage!V63 -> 100 | Y65: Dont cuisson
Q66: 3 | R66: =R65+150 -> 800 | S66: =S65+150 -> 950 | T66: =T65+150 -> 1100 | U66: 450 | W66: Autre | X66: =IF('Consommation et énergies'!D12<>'Consommation et énergies'!AG95,(IF(D9=R63,VLOOKUP('Données ménage'!D27,Veilles!Q64:T78,2,FALSE),IF(D9=Veilles!S63,VLOOKUP('Données ménage'!D27,Veilles!Q64:T78,3,FALSE),IF(D9=Veilles!T63,VLOOKUP('Données ménage'!D27,Veilles!Q64:T78,4,FALSE),VLOOKUP('Données ménage'!D27,Veilles!Q64:T78,3,FALSE)))))-(VLOOKUP('Données ménage'!D27,Veilles!Q64:U78,5,FALSE)),IF(D9=R63,VLOOKUP('Données ménage'!D27,Veilles!Q64:T78,2,FALSE),IF(D9=Veilles!S63,VLOOKUP('Données ménage'!D27,Veilles!Q64:T78,3,FALSE),IF(D9=Veilles!T63,VLOOKUP('Données ménage'!D27,Veilles!Q64:T78,4,FALSE),VLOOKUP('Données ménage'!D27,Veilles!Q64:T78,3,FALSE))))) ->  | Y66: =IF('Consommation et énergies'!D12<>'Consommation et énergies'!AG95,0,VLOOKUP('Données ménage'!D27,Veilles!Q64:U78,5,FALSE)) -> 0
Q67: 4 | R67: =R66+180 -> 980 | S67: =S66+180 -> 1130 | T67: =T66+180 -> 1280 | U67: 520 | W67: Eau chaude | X67: =IF('Consommation et énergies'!D11='Consommation et énergies'!AF95,Eau!X173,0) -> 0
Q68: 5 | R68: =R67+80 -> 1060 | S68: =S67+80 -> 1210 | T68: =T67+80 -> 1360 | U68: 550 | W68: Chauffage | X68: =IF('Consommation et énergies'!D8<>'Consommation et énergies'!AG95,0,IF(AND('Chauffage ventilation'!I21<>"",'Chauffage ventilation'!I21>0),'Chauffage ventilation'!I21,IF('Chauffage ventilation'!K21>0,'Chauffage ventilation'!K21,0))) -> 0
Q69: 6 | R69: =R68+50 -> 1110 | S69: =S68+50 -> 1260 | T69: =T68+50 -> 1410 | U69: 580 | W69: TOTAL | X69: =SUM(X63:X68) -> 
Q70: 7 | R70: =R69+20 -> 1130 | S70: =S69+20 -> 1280 | T70: =T69+20 -> 1430 | U70: 600
Q71: 8 | R71: =R70+15 -> 1145 | S71: 1295 | T71: 1445 | U71: 620
Q72: 9 | R72: 1160 | S72: 1310 | T72: 1460 | U72: 640
Q73: 10 | R73: 1175 | S73: 1325 | T73: 1475 | U73: 660
Q74: 11 | R74: =R73+15 -> 1190 | S74: 1340 | T74: 1490 | U74: 680
Q75: 12 | R75: =R74+15 -> 1205 | S75: 1355 | T75: 1505 | U75: 700
Q76: 13 | R76: =R75+15 -> 1220 | S76: 1370 | T76: 1520 | U76: 720
Q77: 14 | R77: =R76+15 -> 1235 | S77: 1385 | T77: 1535 | U77: 740
Q78: 15 | R78: =R77+15 -> 1250 | S78: 1400 | T78: 1550 | U78: 760

Sheet Accompagnement
D2: Nom du conseiller | F2: =IF('Données ménage'!$D$21=TRUE,'Données ménage'!$D$20,IF('Données ménage'!$I$21=TRUE,'Données ménage'!$H$20,"")) ->  | I2: Case jaune = | J2: à remplir
D3: Nom de la famille | F3: =IF('Données ménage'!$D$9<>"",'Données ménage'!$D$9,"") -> 
B5: Accompagnement du ménage
B7: Selon vous, quelles sont les principales difficultés du ménage liées à l'énergie? (plusieurs réponses possibles)
C8: Logement mal isolé, déperditif en énergie | N8: FALSE
C9: Comportements énergivores | N9: FALSE
C10: Ressources faibles | N10: FALSE
C11: Défaillance des équipements | F11: (chauffage, eau chaude, etc) | N11: FALSE
C12: Mauvais entretien du logement | F12: ( fuites, moisissures, etc) | N12: FALSE
C13: Autre: | N13: FALSE
B15: Comment classeriez-vous le ménage? (1 réponse possible)
C16: Ménage fragile économiquement mais ne sacrifiant pas son confort | I16: (chauffage constant, impayés)
C17: Bricoleur économe | E17: (système D, débrouille, modulation du chauffage, recour au chauffage d'appoint) | N17: 0
C18: Vulnérable résigné | E18: (inconfort subi, logement dégradé, chauffage déffaillant, mal-être)
B20: Le ménage a-t-il été orienté vers une ou plusieurs autre(s) structure(s)?
C21: Oui | N21: FALSE
C22: Non | N22: FALSE
B24: Si "oui", laquelle ou lesquelles?
C25: ADIL | N25: FALSE
C26: Opérateur travaux, lequel: | N26: FALSE
C27: Médiateur de l'énergie | N27: FALSE
C28: Espace Info-Energie | N28: FALSE
C29: Action sociale | N29: FALSE
C30: Autre: | N30: FALSE
B32: Le ménage a-t-il donné son accord pour être recontacté dans le cadre d'un suivi/évaluation? | N32: FALSE
C33: Oui | N33: FALSE
C34: Non

Sheet Recap visite
C2: Synthèse de la visite
C4: Les équipements préconisés
C5: Chauffage, ventilation et humidité
C6: Equipements préconisés | D6: Installé? | E6: Nb si installation | F6: Conseillé ? | G6: Nombre | H6: Investissement | I6: Economie en kWh | J6: Economie en m3 | K6: Economie en € | L6: Eco m3 eq offerts | M6: Eco kWh eq offerts | N6: Eco eq offerts | P6: Coût éq. offerts | Q6: CO2 économisés Eq offerts | R6: CO2 économisés total
C7: Film de survitrage | F7: =IF('Chauffage ventilation'!L37>0,"oui","non") -> non | G7: ='Chauffage ventilation'!L37 -> 0 | H7: =IF(F7="oui",'Chauffage ventilation'!F43,"") ->  | I7: ='Chauffage ventilation'!F41 -> 0 | K7: =I7*'Consommation et énergies'!$AF$159 -> 0 | L7: =IF(J7>0,J7/G7*E7,0) -> 0 | M7: =IF(AND(G7>0,I7>0),I7/G7*E7,0) -> 0 | N7: =IF(AND(K7>0,G7>0),(K7/G7)*E7,0) -> 0 | O7: FALSE | P7: =IF(AND(E7>0,H7<>""),H7/G7*E7,0) -> 0 | Q7: =IF('Consommation et énergies'!$D$8="",0,IF('Consommation et énergies'!$D$8='Consommation et énergies'!$AF$95,(Indicateurs!$D$51*'Recap visite'!M7)/1000,IF(OR('Consommation et énergies'!$D$8='Consommation et énergies'!$AF$102,'Consommation et énergies'!$D$8='Consommation et énergies'!$AF$103,'Consommation et énergies'!$D$8='Consommation et énergies'!$AF$104,'Consommation et énergies'!$D$8='Consommation et énergies'!$AF$105),"Inconnu",(VLOOKUP('Consommation et énergies'!$D$8,Indicateurs!$B$54:$D$60,3,FALSE)*'Recap visite'!M7)/1000))) -> 0 | R7: =IF('Consommation et énergies'!$D$8="",0,IF('Consommation et énergies'!$D$8='Consommation et énergies'!$AF$95,(Indicateurs!$D$51*I7)/1000,IF(OR('Consommation et énergies'!$D$8='Consommation et énergies'!$AF$102,'Consommation et énergies'!$D$8='Consommation et énergies'!$AF$103,'Consommation et énergies'!$D$8='Consommation et énergies'!$AF$104,'Consommation et énergies'!$D$8='Consommation et énergies'!$AF$105),"Inconnu",(VLOOKUP('Consommation et énergies'!$D$8,Indicateurs!$B$54:$D$60,3,FALSE)*I7)/1000))) -> 0
C8: Joints de fenêtre | F8: =IF('Chauffage ventilation'!L46>0,"oui","non") -> non | G8: ='Chauffage ventilation'!L46 -> 0 | H8: =IF(F8="oui",'Chauffage ventilation'!F52,"") ->  | I8: ='Chauffage ventilation'!F50 -> 0 | K8: =I8*'Consommation et énergies'!$AF$159 -> 0 | L8: 0 | M8: =IF(AND(G8>0,I8>0),I8/G8*E8,0) -> 0 | N8: 0 | O8: FALSE | P8: =IF(AND(E8>0,H8<>""),H8/G8*E8,0) -> 0 | Q8: =IF('Consommation et énergies'!$D$8="",0,IF('Consommation et énergies'!$D$8='Consommation et énergies'!$AF$95,(Indicateurs!$D$51*'Recap visite'!M8)/1000,IF(OR('Consommation et énergies'!$D$8='Consommation et énergies'!$AF$102,'Consommation et énergies'!$D$8='Consommation et énergies'!$AF$103,'Consommation et énergies'!$D$8='Consommation et énergies'!$AF$104,'Consommation et énergies'!$D$8='Consommation et énergies'!$AF$105),"Inconnu",(VLOOKUP('Consommation et énergies'!$D$8,Indicateurs!$B$54:$D$60,3,FALSE)*'Recap visite'!M8)/1000))) -> 0 | R8: =IF('Consommation et énergies'!$D$8="",0,IF('Consommation et énergies'!$D$8='Consommation et énergies'!$AF$95,(Indicateurs!$D$51*I8)/1000,IF(OR('Consommation et énergies'!$D$8='Consommation et énergies'!$AF$102,'Consommation et énergies'!$D$8='Consommation et énergies'!$AF$103,'Consommation et énergies'!$D$8='Consommation et énergies'!$AF$104,'Consommation et énergies'!$D$8='Consommation et énergies'!$AF$105),"Inconnu",(VLOOKUP('Consommation et énergies'!$D$8,Indicateurs!$B$54:$D$60,3,FALSE)*I8)/1000))) -> 0
C9: Bas de porte | F9: =IF('Chauffage ventilation'!K58>0,"oui","non") -> non | G9: ='Chauffage ventilation'!K58 -> 0 | H9: =IF(F9="oui",'Chauffage ventilation'!F63,"") ->  | I9: ='Chauffage ventilation'!F61 -> 0 | K9: =I9*'Consommation et énergies'!$AF$159 -> 0 | L9: 0 | M9: 0 | N9: 0 | O9: FALSE | P9: =IF(AND(E9>0,H9<>""),H9/G9*E9,0) -> 0 | Q9: =IF('Consommation et énergies'!$D$8="",0,IF('Consommation et énergies'!$D$8='Consommation et énergies'!$AF$95,(Indicateurs!$D$51*'Recap visite'!M9)/1000,IF(OR('Consommation et énergies'!$D$8='Consommation et énergies'!$AF$102,'Consommation et énergies'!$D$8='Consommation et énergies'!$AF$103,'Consommation et énergies'!$D$8='Consommation et énergies'!$AF$104,'Consommation et énergies'!$D$8='Consommation et énergies'!$AF$105),"Inconnu",(VLOOKUP('Consommation et énergies'!$D$8,Indicateurs!$B$54:$D$60,3,FALSE)*'Recap visite'!M9)/1000))) -> 0 | R9: =IF('Consommation et énergies'!$D$8="",0,IF('Consommation et énergies'!$D$8='Consommation et énergies'!$AF$95,(Indicateurs!$D$51*I9)/1000,IF(OR('Consommation et énergies'!$D$8='Consommation et énergies'!$AF$102,'Consommation et énergies'!$D$8='Consommation et énergies'!$AF$103,'Consommation et énergies'!$D$8='Consommation et énergies'!$AF$104,'Consommation et énergies'!$D$8='Consommation et énergies'!$AF$105),"Inconnu",(VLOOKUP('Consommation et énergies'!$D$8,Indicateurs!$B$54:$D$60,3,FALSE)*I9)/1000))) -> 0
C10: Film/ panneau réfléchissant | F10: =IF('Chauffage ventilation'!L70>0,"oui","non") -> non | G10: ='Chauffage ventilation'!L70 -> 0 | H10: =IF(F10="oui",'Chauffage ventilation'!F76,"") ->  | I10: ='Chauffage ventilation'!F74 -> 0 | K10: =I10*'Consommation et énergies'!$AF$159 -> 0 | L10: 0 | M10: 0 | N10: 0 | O10: FALSE | P10: 0 | Q10: =IF('Consommation et énergies'!$D$8="",0,IF('Consommation et énergies'!$D$8='Consommation et énergies'!$AF$95,(Indicateurs!$D$51*'Recap visite'!M10)/1000,IF(OR('Consommation et énergies'!$D$8='Consommation et énergies'!$AF$102,'Consommation et énergies'!$D$8='Consommation et énergies'!$AF$103,'Consommation et énergies'!$D$8='Consommation et énergies'!$AF$104,'Consommation et énergies'!$D$8='Consommation et énergies'!$AF$105),"Inconnu",(VLOOKUP('Consommation et énergies'!$D$8,Indicateurs!$B$54:$D$60,3,FALSE)*'Recap visite'!M10)/1000))) -> 0 | R10: =IF('Consommation et énergies'!$D$8="",0,IF('Consommation et énergies'!$D$8='Consommation et énergies'!$AF$95,(Indicateurs!$D$51*I10)/1000,IF(OR('Consommation et énergies'!$D$8='Consommation et énergies'!$AF$102,'Consommation et énergies'!$D$8='Consommation et énergies'!$AF$103,'Consommation et énergies'!$D$8='Consommation et énergies'!$AF$104,'Consommation et énergies'!$D$8='Consommation et énergies'!$AF$105),"Inconnu",(VLOOKUP('Consommation et énergies'!$D$8,Indicateurs!$B$54:$D$60,3,FALSE)*I10)/1000))) -> 0
C11: Manchons isolants tuyauterie | F11: =IF(AND('Chauffage ventilation'!F83="Oui",'Chauffage ventilation'!K84<>""),"oui","non") -> non | G11: =IF('Chauffage ventilation'!K84<>"",'Chauffage ventilation'!K84,0) -> 0 | H11: =IF(F11="oui",'Chauffage ventilation'!F89,"") ->  | I11: ='Chauffage ventilation'!F87 -> 0 | K11: =I11*'Consommation et énergies'!$AF$159 -> 0 | L11: =IF(J11>0,J11/G11*E11,0) -> 0 | M11: 0 | N11: 0 | O11: FALSE | P11: =IF(AND(E11>0,H11<>""),H11/G11*E11,0) -> 0 | Q11: =IF('Consommation et énergies'!$D$8="",0,IF('Consommation et énergies'!$D$8='Consommation et énergies'!$AF$95,(Indicateurs!$D$51*'Recap visite'!M11)/1000,IF(OR('Consommation et énergies'!$D$8='Consommation et énergies'!$AF$102,'Consommation et énergies'!$D$8='Consommation et énergies'!$AF$103,'Consommation et énergies'!$D$8='Consommation et énergies'!$AF$104,'Consommation et énergies'!$D$8='Consommation et énergies'!$AF$105),"Inconnu",(VLOOKUP('Consommation et énergies'!$D$8,Indicateurs!$B$54:$D$60,3,FALSE)*'Recap visite'!M11)/1000))) -> 0 | R11: =IF('Consommation et énergies'!$D$8="",0,IF('Consommation et énergies'!$D$8='Consommation et énergies'!$AF$95,(Indicateurs!$D$51*I11)/1000,IF(OR('Consommation et énergies'!$D$8='Consommation et énergies'!$AF$102,'Consommation et énergies'!$D$8='Consommation et énergies'!$AF$103,'Consommation et énergies'!$D$8='Consommation et énergies'!$AF$104,'Consommation et énergies'!$D$8='Consommation et énergies'!$AF$105),"Inconnu",(VLOOKUP('Consommation et énergies'!$D$8,Indicateurs!$B$54:$D$60,3,FALSE)*I11)/1000))) -> 0
C12: Thermomètre hygromètre | F12: =IF('Chauffage ventilation'!G94="oui","oui","non") -> non | G12: =IF(F12="oui",1,0) -> 0 | H12: =IF(F12="oui",'Chauffage ventilation'!M94,"") ->  | L12: 0 | M12: 0 | N12: 0 | O12: FALSE | P12: 0 | Q12: =IF('Consommation et énergies'!$D$8="",0,IF('Consommation et énergies'!$D$8='Consommation et énergies'!$AF$95,(Indicateurs!$D$51*'Recap visite'!M12)/1000,IF(OR('Consommation et énergies'!$D$8='Consommation et énergies'!$AF$102,'Consommation et énergies'!$D$8='Consommation et énergies'!$AF$103,'Consommation et énergies'!$D$8='Consommation et énergies'!$AF$104,'Consommation et énergies'!$D$8='Consommation et énergies'!$AF$105),"Inconnu",(VLOOKUP('Consommation et énergies'!$D$8,Indicateurs!$B$54:$D$60,3,FALSE)*'Recap visite'!M12)/1000))) -> 0 | R12: =IF('Consommation et énergies'!$D$8="",0,IF('Consommation et énergies'!$D$8='Consommation et énergies'!$AF$95,(Indicateurs!$D$51*I12)/1000,IF(OR('Consommation et énergies'!$D$8='Consommation et énergies'!$AF$102,'Consommation et énergies'!$D$8='Consommation et énergies'!$AF$103,'Consommation et énergies'!$D$8='Consommation et énergies'!$AF$104,'Consommation et énergies'!$D$8='Consommation et énergies'!$AF$105),"Inconnu",(VLOOKUP('Consommation et énergies'!$D$8,Indicateurs!$B$54:$D$60,3,FALSE)*I12)/1000))) -> 0
C13: Thermomètre simple | F13: =IF('Chauffage ventilation'!G95="oui","oui","non") -> non | G13: =IF(F13="oui",1,0) -> 0 | H13: =IF(F13="oui",'Chauffage ventilation'!M95,"") ->  | L13: 0 | M13: 0 | N13: 0 | O13: FALSE | P13: 0 | Q13: =IF('Consommation et énergies'!$D$8="",0,IF('Consommation et énergies'!$D$8='Consommation et énergies'!$AF$95,(Indicateurs!$D$51*'Recap visite'!M13)/1000,IF(OR('Consommation et énergies'!$D$8='Consommation et énergies'!$AF$102,'Consommation et énergies'!$D$8='Consommation et énergies'!$AF$103,'Consommation et énergies'!$D$8='Consommation et énergies'!$AF$104,'Consommation et énergies'!$D$8='Consommation et énergies'!$AF$105),"Inconnu",(VLOOKUP('Consommation et énergies'!$D$8,Indicateurs!$B$54:$D$60,3,FALSE)*'Recap visite'!M13)/1000))) -> 0 | R13: =IF('Consommation et énergies'!$D$8="",0,IF('Consommation et énergies'!$D$8='Consommation et énergies'!$AF$95,(Indicateurs!$D$51*I13)/1000,IF(OR('Consommation et énergies'!$D$8='Consommation et énergies'!$AF$102,'Consommation et énergies'!$D$8='Consommation et énergies'!$AF$103,'Consommation et énergies'!$D$8='Consommation et énergies'!$AF$104,'Consommation et énergies'!$D$8='Consommation et énergies'!$AF$105),"Inconnu",(VLOOKUP('Consommation et énergies'!$D$8,Indicateurs!$B$54:$D$60,3,FALSE)*I13)/1000))) -> 0
C14: Prise programmable | F14: =IF('Chauffage ventilation'!G96="oui","oui","non") -> non | G14: 0 | H14: =IF(F14="oui",'Chauffage ventilation'!M96,"") ->  | L14: 0 | M14: 0 | N14: =IF(AND(K14>0,G14>0),(K14/G14)*E14,0) -> 0 | O14: FALSE | P14: 0 | Q14: =IF('Consommation et énergies'!$D$8="",0,IF('Consommation et énergies'!$D$8='Consommation et énergies'!$AF$95,(Indicateurs!$D$51*'Recap visite'!M14)/1000,IF(OR('Consommation et énergies'!$D$8='Consommation et énergies'!$AF$102,'Consommation et énergies'!$D$8='Consommation et énergies'!$AF$103,'Consommation et énergies'!$D$8='Consommation et énergies'!$AF$104,'Consommation et énergies'!$D$8='Consommation et énergies'!$AF$105),"Inconnu",(VLOOKUP('Consommation et énergies'!$D$8,Indicateurs!$B$54:$D$60,3,FALSE)*'Recap visite'!M14)/1000))) -> 0 | R14: =IF('Consommation et énergies'!$D$8="",0,IF('Consommation et énergies'!$D$8='Consommation et énergies'!$AF$95,(Indicateurs!$D$51*I14)/1000,IF(OR('Consommation et énergies'!$D$8='Consommation et énergies'!$AF$102,'Consommation et énergies'!$D$8='Consommation et énergies'!$AF$103,'Consommation et énergies'!$D$8='Consommation et énergies'!$AF$104,'Consommation et énergies'!$D$8='Consommation et énergies'!$AF$105),"Inconnu",(VLOOKUP('Consommation et énergies'!$D$8,Indicateurs!$B$54:$D$60,3,FALSE)*I14)/1000))) -> 0
F15: oui | Q15: =IF(OR('Consommation et énergies'!$D$8='Consommation et énergies'!$AF$102,'Consommation et énergies'!$D$8='Consommation et énergies'!$AF$103,'Consommation et énergies'!$D$8='Consommation et énergies'!$AF$104,'Consommation et énergies'!$D$8='Consommation et énergies'!$AF$105),"Inconnu",SUM(Q7:Q14)) -> 0 | R15: =IF(OR('Consommation et énergies'!$D$8='Consommation et énergies'!$AF$102,'Consommation et énergies'!$D$8='Consommation et énergies'!$AF$103,'Consommation et énergies'!$D$8='Consommation et énergies'!$AF$104,'Consommation et énergies'!$D$8='Consommation et énergies'!$AF$105),"Inconnu",SUM(R7:R14)) -> 0
C17: Eau chaude et eau froide
C18: Equipements préconisés | D18: Installé? | E18: Nb si installation | F18: Conseillé ? | G18: Nombre | H18: Investissement | I18: Economie en kWh | J18: Economie en m3 | K18: Economie en €
C19: Variateur de dédit douche/stop douche | F19: =IF(Eau!F18="Non","oui","non") -> non | G19: =IF(F19="oui",1,0) -> 0 | H19: =IF(F19="oui",'MAJ Données'!F149*G19,"") ->  | I19: =Eau!N28 -> 0 | J19: =Eau!L28 -> 0 | K19: =Eau!M28 -> 0 | L19: =IF(J19>0,J19/G19*E19,0) -> 0 | M19: =IF(AND(G19>0,I19>0),I19/G19*E19,0) -> 0 | N19: =IF(AND(K19>0,G19>0),(K19/G19)*E19,0) -> 0 | O19: FALSE | P19: =IF(AND(E19>0,H19<>""),H19/G19*E19,0) -> 0 | Q19: =IF('Consommation et énergies'!$D$11="",0,IF('Consommation et énergies'!$D$11='Consommation et énergies'!$AF$95,(Indicateurs!$D$52*'Recap visite'!M19)/1000,IF(OR('Consommation et énergies'!$D$11='Consommation et énergies'!$AF$102,'Consommation et énergies'!$D$11='Consommation et énergies'!$AF$103,'Consommation et énergies'!$D$11='Consommation et énergies'!$AF$104,'Consommation et énergies'!$D$11='Consommation et énergies'!$AF$105),"Inconnu",(VLOOKUP('Consommation et énergies'!$D$11,Indicateurs!$B$54:$D$60,3,FALSE)*'Recap visite'!M19)/1000))) -> 0 | R19: =IF('Consommation et énergies'!$D$11="",0,IF('Consommation et énergies'!$D$11='Consommation et énergies'!$AF$95,(Indicateurs!$D$52*I19)/1000,IF(OR('Consommation et énergies'!E21='Consommation et énergies'!$AF$102,'Consommation et énergies'!$D$8='Consommation et énergies'!$AF$103,'Consommation et énergies'!$D$8='Consommation et énergies'!$AF$104,'Consommation et énergies'!$D$8='Consommation et énergies'!$AF$105),"Inconnu",(VLOOKUP('Consommation et énergies'!$D$11,Indicateurs!$B$54:$D$60,3,FALSE)*I19)/1000))) -> 0
C20: Mousseur(s) Lavabo et/ou Evier | F20: =IF(OR(Eau!I40>0,Eau!I41>0,Eau!I42>0,Eau!I43>0),"oui","non") -> non | G20: =COUNTIF(Eau!J40:J43,">"&0) -> 0 | H20: =IF(F20="oui",'MAJ Données'!F151*G20,"") ->  | I20: =Eau!K44 -> 0 | J20: =Eau!I44 -> 0 | K20: =Eau!J44 -> 0 | L20: 0 | M20: 0 | N20: 0 | O20: FALSE | P20: 0 | Q20: =IF('Consommation et énergies'!$D$11="",0,IF('Consommation et énergies'!$D$11='Consommation et énergies'!$AF$95,(Indicateurs!$D$52*'Recap visite'!M20)/1000,IF(OR('Consommation et énergies'!$D$11='Consommation et énergies'!$AF$102,'Consommation et énergies'!$D$11='Consommation et énergies'!$AF$103,'Consommation et énergies'!$D$11='Consommation et énergies'!$AF$104,'Consommation et énergies'!$D$11='Consommation et énergies'!$AF$105),"Inconnu",(VLOOKUP('Consommation et énergies'!$D$11,Indicateurs!$B$54:$D$60,3,FALSE)*'Recap visite'!M20)/1000))) -> 0 | R20: =IF('Consommation et énergies'!$D$11="",0,IF('Consommation et énergies'!$D$11='Consommation et énergies'!$AF$95,(Indicateurs!$D$52*I20)/1000,IF(OR('Consommation et énergies'!E22='Consommation et énergies'!$AF$102,'Consommation et énergies'!$D$8='Consommation et énergies'!$AF$103,'Consommation et énergies'!$D$8='Consommation et énergies'!$AF$104,'Consommation et énergies'!$D$8='Consommation et énergies'!$AF$105),"Inconnu",(VLOOKUP('Consommation et énergies'!$D$11,Indicateurs!$B$54:$D$60,3,FALSE)*I20)/1000))) -> 0
C21: système éco-WC | F21: =IF(OR(Eau!I50>0,Eau!I51>0),"oui","non") -> non | G21: =COUNTIF(Eau!J50:J51,">"&0) -> 0 | H21: =IF(F21="oui",'MAJ Données'!F153*G21,"") ->  | J21: =Eau!I52 -> 0 | K21: =Eau!J52 -> 0 | L21: 0 | M21: 0 | N21: 0 | O21: FALSE | P21: 0 | Q21: =IF('Consommation et énergies'!$D$11="",0,IF('Consommation et énergies'!$D$11='Consommation et énergies'!$AF$95,(Indicateurs!$D$52*'Recap visite'!M21)/1000,IF(OR('Consommation et énergies'!$D$11='Consommation et énergies'!$AF$102,'Consommation et énergies'!$D$11='Consommation et énergies'!$AF$103,'Consommation et énergies'!$D$11='Consommation et énergies'!$AF$104,'Consommation et énergies'!$D$11='Consommation et énergies'!$AF$105),"Inconnu",(VLOOKUP('Consommation et énergies'!$D$11,Indicateurs!$B$54:$D$60,3,FALSE)*'Recap visite'!M21)/1000))) -> 0 | R21: =IF('Consommation et énergies'!$D$11="",0,IF('Consommation et énergies'!$D$11='Consommation et énergies'!$AF$95,(Indicateurs!$D$52*I21)/1000,IF(OR('Consommation et énergies'!E23='Consommation et énergies'!$AF$102,'Consommation et énergies'!$D$8='Consommation et énergies'!$AF$103,'Consommation et énergies'!$D$8='Consommation et énergies'!$AF$104,'Consommation et énergies'!$D$8='Consommation et énergies'!$AF$105),"Inconnu",(VLOOKUP('Consommation et énergies'!$D$11,Indicateurs!$B$54:$D$60,3,FALSE)*I21)/1000))) -> 0
C22: douchette(s) économe(s) | F22: =IF(OR(Eau!I58>0,Eau!I59>0),"oui","non") -> non | G22: =COUNTIF(Eau!J58:J59,">"&0) -> 0 | H22: =IF(F22="oui",'MAJ Données'!F154*G22,"") ->  | I22: =Eau!K60 -> 0 | J22: =Eau!I60 -> 0 | K22: =Eau!J60 -> 0 | L22: 0 | M22: 0 | N22: 0 | O22: FALSE | P22: 0 | Q22: =IF('Consommation et énergies'!$D$11="",0,IF('Consommation et énergies'!$D$11='Consommation et énergies'!$AF$95,(Indicateurs!$D$52*'Recap visite'!M22)/1000,IF(OR('Consommation et énergies'!$D$11='Consommation et énergies'!$AF$102,'Consommation et énergies'!$D$11='Consommation et énergies'!$AF$103,'Consommation et énergies'!$D$11='Consommation et énergies'!$AF$104,'Consommation et énergies'!$D$11='Consommation et énergies'!$AF$105),"Inconnu",(VLOOKUP('Consommation et énergies'!$D$11,Indicateurs!$B$54:$D$60,3,FALSE)*'Recap visite'!M22)/1000))) -> 0 | R22: =IF('Consommation et énergies'!$D$11="",0,IF('Consommation et énergies'!$D$11='Consommation et énergies'!$AF$95,(Indicateurs!$D$52*I22)/1000,IF(OR('Consommation et énergies'!E24='Consommation et énergies'!$AF$102,'Consommation et énergies'!$D$8='Consommation et énergies'!$AF$103,'Consommation et énergies'!$D$8='Consommation et énergies'!$AF$104,'Consommation et énergies'!$D$8='Consommation et énergies'!$AF$105),"Inconnu",(VLOOKUP('Consommation et énergies'!$D$11,Indicateurs!$B$54:$D$60,3,FALSE)*I22)/1000))) -> 0
C23: joints de robinetterie | F23: =IF(OR(Eau!I66>0,Eau!I67>0,Eau!I68>0),"oui","non") -> non | G23: =COUNTIF(Eau!J66:J68,">"&0) -> 0 | H23: =IF(F23="oui",'MAJ Données'!F155*G23,"") ->  | I23: =Eau!K69 -> 0 | J23: =Eau!I69 -> 0 | K23: =Eau!J69 -> 0 | L23: 0 | M23: 0 | N23: =IF(AND(K23>0,G23>0),(K23/G23)*E23,0) -> 0 | O23: FALSE | P23: 0 | Q23: =IF('Consommation et énergies'!$D$11="",0,IF('Consommation et énergies'!$D$11='Consommation et énergies'!$AF$95,(Indicateurs!$D$52*'Recap visite'!M23)/1000,IF(OR('Consommation et énergies'!$D$11='Consommation et énergies'!$AF$102,'Consommation et énergies'!$D$11='Consommation et énergies'!$AF$103,'Consommation et énergies'!$D$11='Consommation et énergies'!$AF$104,'Consommation et énergies'!$D$11='Consommation et énergies'!$AF$105),"Inconnu",(VLOOKUP('Consommation et énergies'!$D$11,Indicateurs!$B$54:$D$60,3,FALSE)*'Recap visite'!M23)/1000))) -> 0 | R23: =IF('Consommation et énergies'!$D$11="",0,IF('Consommation et énergies'!$D$11='Consommation et énergies'!$AF$95,(Indicateurs!$D$52*I23)/1000,IF(OR('Consommation et énergies'!E25='Consommation et énergies'!$AF$102,'Consommation et énergies'!$D$8='Consommation et énergies'!$AF$103,'Consommation et énergies'!$D$8='Consommation et énergies'!$AF$104,'Consommation et énergies'!$D$8='Consommation et énergies'!$AF$105),"Inconnu",(VLOOKUP('Consommation et énergies'!$D$11,Indicateurs!$B$54:$D$60,3,FALSE)*I23)/1000))) -> 0
F24: oui | Q24: =IF(OR('Consommation et énergies'!$D$11='Consommation et énergies'!$AF$102,'Consommation et énergies'!$D$11='Consommation et énergies'!$AF$103,'Consommation et énergies'!$D$11='Consommation et énergies'!$AF$104,'Consommation et énergies'!$D$11='Consommation et énergies'!$AF$105),"Inconnu",SUM(Q19:Q23)) -> 0 | R24: =IF(OR('Consommation et énergies'!$D$11='Consommation et énergies'!$AF$102,'Consommation et énergies'!$D$11='Consommation et énergies'!$AF$103,'Consommation et énergies'!$D$11='Consommation et énergies'!$AF$104,'Consommation et énergies'!$D$11='Consommation et énergies'!$AF$105),"Inconnu",SUM(R19:R23)) -> 0 | AC24: 14
C26: Appareils et équipements électriques
C27: Equipements préconisés | D27: Installé? | E27: Nb si installation | F27: Conseillé ? | G27: Nombre | H27: Investissement | I27: Economie en kWh | J27: Economie en m3 | K27: Economie en €
C28: Ampoule(s) LBC | F28: =IF(SUM(Eclairage!AC39:AC42)>0,"oui","non") -> non | G28: =SUM(Eclairage!AC39:AC42) -> 0 | H28: =IF(F28="oui",SUM(Eclairage!AD39:AD42),"") ->  | I28: =SUMIF(Eclairage!L17:P28,Eclairage!AB39,Eclairage!O17:O28)+SUMIF(Eclairage!L17:P28,Eclairage!AB40,Eclairage!O17:O28)+SUMIF(Eclairage!L17:P28,Eclairage!AB41,Eclairage!O17:O28)+SUMIF(Eclairage!L17:P28,Eclairage!AB42,Eclairage!O17:O28) -> 0 | K28: =I28*'Consommation et énergies'!$Z$28 -> 0 | L28: =IF(J28>0,J28/G28*E28,0) -> 0 | M28: =IF(AND(G28>0,I28>0),I28/G28*E28,0) -> 0 | N28: =IF(AND(K28>0,G28>0),(K28/G28)*E28,0) -> 0 | O28: FALSE | P28: =IF(AND(E28>0,H28<>""),H28/G28*E28,0) -> 0 | Q28: =(M28*Indicateurs!$D$53)/1000 -> 0 | R28: =(I28*Indicateurs!$D$53)/1000 -> 0
C29: Ampoule(s) LED | F29: =IF(SUM(Eclairage!AC43:AC45)>0,"oui","non") -> non | G29: =SUM(Eclairage!AC43:AC45) -> 0 | H29: =IF(F29="oui",SUM(Eclairage!AD43:AD45),"") ->  | I29: =SUMIF(Eclairage!L17:P28,Eclairage!AB43,Eclairage!O17:O28)+SUMIF(Eclairage!L17:P28,Eclairage!AB44,Eclairage!O17:O28)+SUMIF(Eclairage!L17:P28,Eclairage!AB45,Eclairage!O17:O28) -> 0 | K29: =I29*'Consommation et énergies'!$Z$28 -> 0 | L29: 0 | M29: 0 | N29: 0 | O29: FALSE | P29: 0 | Q29: =(M29*Indicateurs!$D$53)/1000 -> 0 | R29: =(I29*Indicateurs!$D$53)/1000 -> 0
C30: Remplacement appareil de froid | F30: =IF(OR(Froid!F13="oui, je souhaite le remplacer par un appareil performant",Froid!F38="oui, je souhaite le remplacer par un appareil performant",Froid!F63="oui, je souhaite le remplacer par un appareil performant"),"oui","non") -> non | G30: =COUNTIF(Froid!C8:P79,Froid!X91) -> 0 | H30: 300 à 600€ | I30: =SUM(Froid!AB102,Froid!AB108,Froid!AB113) -> 0 | K30: =I30*'Consommation et énergies'!$Z$28 -> 0 | L30: 0 | M30: 0 | N30: 0 | O30: FALSE | Q30: =(M30*Indicateurs!$D$53)/1000 -> 0 | R30: =(I30*Indicateurs!$D$53)/1000 -> 0
C31: Remplacement appareil de lavage/séchage | F31: =IF(OR('Lavage sechage'!E61="oui, je souhaite le remplacer par un appareil performant",'Lavage sechage'!E39="oui, je souhaite le remplacer par un appareil performant",'Lavage sechage'!E13="oui, je souhaite le remplacer par un appareil performant"),"oui","non") -> non | G31: =COUNTIF('Lavage sechage'!B6:M78,'Lavage sechage'!T91) -> 0 | H31: 200 à 400 € | I31: =IF('Lavage sechage'!$E$13='Lavage sechage'!$T$91,'Lavage sechage'!R111,0)+IF('Lavage sechage'!$E$39='Lavage sechage'!$T$91,'Lavage sechage'!U103,0)+IF('Lavage sechage'!$E$61='Lavage sechage'!$T$91,'Lavage sechage'!R120,0) -> 0 | J31: =IF('Lavage sechage'!$E$13='Lavage sechage'!$T$91,'Lavage sechage'!S111,0)+IF('Lavage sechage'!$E$61='Lavage sechage'!$T$91,'Lavage sechage'!S120,0) -> 0 | K31: =(I31*'Consommation et énergies'!$Z$28)+(J31*'Consommation et énergies'!$Y$59*60%) -> 0 | L31: =IF(J31>0,J31/G31*E31,0) -> 0 | M31: 0 | N31: 0 | O31: FALSE | Q31: =(M31*Indicateurs!$D$53)/1000 -> 0 | R31: =(I31*Indicateurs!$D$53)/1000 -> 0
C32: Thermomètre réfrigérateur | F32: =IF(OR(Froid!N15=Froid!AF91,Froid!N40=Froid!AH91,Froid!N65=Froid!AF91),"oui","non") -> non | G32: =COUNTIF(Froid!C8:P79,Froid!AF91)+COUNTIF(Froid!C8:P79,Froid!AH91) -> 0 | H32: =IF(F32="oui",'MAJ Données'!F170*G32,"") ->  | L32: =IF(J32>0,J32/G32*E32,0) -> 0 | M32: 0 | N32: =IF(AND(K32>0,G32>0),(K32/G32)*E32,0) -> 0 | O32: FALSE | P32: =IF(AND(E32>0,H32<>""),H32/G32*E32,0) -> 0 | Q32: =(M32*Indicateurs!$D$53)/1000 -> 0 | R32: =(I32*Indicateurs!$D$53)/1000 -> 0
C33: Multiprise coupe veille | F33: =IF(Veilles!G28>0,"oui","non") -> non | G33: =Veilles!G28 -> 0 | H33: =IF(F33="oui",'MAJ Données'!F171*G33,"") ->  | I33: =IF(Veilles!G27>0,Veilles!F25*(Veilles!G28/(Veilles!G28+Veilles!G27)),Veilles!F25) -> 0 | K33: =IF(Veilles!G27>0,(Veilles!G25*Veilles!G28)/(Veilles!G28+Veilles!G27),Veilles!G25) -> 0 | L33: =IF(J33>0,J33/G33*E33,0) -> 0 | M33: 0 | N33: =IF(AND(K33>0,G33>0),(K33/G33)*E33,0) -> 0 | O33: FALSE | P33: =IF(AND(E33>0,H33<>""),H33/G33*E33,0) -> 0 | Q33: =(M33*Indicateurs!$D$53)/1000 -> 0 | R33: =(I33*Indicateurs!$D$53)/1000 -> 0
C34: Multiprise à interrupteur | F34: =IF(Veilles!G27>0,"oui","non") -> non | G34: =Veilles!G27 -> 0 | H34: =IF(F34="oui",'MAJ Données'!F172*G34,"") ->  | I34: =IF(Veilles!G28>0,Veilles!F25*(Veilles!G27/(Veilles!G28+Veilles!G27)),Veilles!F25) -> 0 | K34: =IF(Veilles!G28>0,(Veilles!G25*Veilles!G27)/(Veilles!G28+Veilles!G27),Veilles!G25) -> 0 | L34: 0 | M34: 0 | N34: 0 | O34: FALSE | P34: 0 | Q34: =(M34*Indicateurs!$D$53)/1000 -> 0 | R34: =(I34*Indicateurs!$D$53)/1000 -> 0
F35: oui | Q35: =SUM(Q28:Q34) -> 0 | R35: =SUM(R28:R34) -> 0
F37: TOTAL équipements | H37: =(SUM(H7:H14,H19:H23,H28:H29,H32:H34))-P37 -> 0 | I37: =SUM(I7:I14,I19:I23,I28:I34) -> 0 | J37: =SUM(J7:J14,J19:J23,J28:J29,J31) -> 0 | K37: =SUM(K7:K14,K19:K23,K28:K29,K30:K34) -> 0 | L37: =SUM(L7:L14,L19:L23,L28:L29,L30:L34) -> 0 | M37: =SUM(M7:M14,M19:M23,M28:M29,M30:M34) -> 0 | N37: =SUM(N7:N14,N19:N23,N28:N29,N30:N34) -> 0 | O37: =SUM(O7:O14,O19:O23,O28:O29,O30:O34) -> 0 | P37: =SUM(P7:P14,P19:P23,P28:P29,P32:P34) -> 0 | Q37: =SUM(Q7:Q14,Q19:Q23,Q28:Q29,Q32:Q34) -> 0 | R37: 0
C39: Les écogestes préconisés
C40: Chauffage, ventilation et humidité
C41: Ecogestes préconisés | D41: Installé? | E41: Nb si installation | F41: Conseillé ? | G41: Nombre | H41: Investissement | I41: Economie en kWh | J41: Economie en m3 | K41: Economie en €
C42: Abaisser la température intérieure de 1°C | F42: =IF('Chauffage ventilation'!L21='Recap visite'!C42,"oui","non") -> non | I42: =IF('Chauffage ventilation'!$L$21='Recap visite'!C42,'Chauffage ventilation'!N21,0) -> 0 | K42: =I42*'Consommation et énergies'!$AF$159 -> 0 | R42: =IF('Consommation et énergies'!$D$8="",0,IF('Consommation et énergies'!$D$8='Consommation et énergies'!$AF$95,(Indicateurs!$D$51*I42)/1000,IF(OR('Consommation et énergies'!$D$8='Consommation et énergies'!$AF$102,'Consommation et énergies'!$D$8='Consommation et énergies'!$AF$103,'Consommation et énergies'!$D$8='Consommation et énergies'!$AF$104,'Consommation et énergies'!$D$8='Consommation et énergies'!$AF$105),"Inconnu",(VLOOKUP('Consommation et énergies'!$D$8,Indicateurs!$B$54:$D$60,3,FALSE)*I42)/1000))) -> 0
C43: Abaisser la température à 14°C pendant les absences | F43: =IF('Chauffage ventilation'!L23='Recap visite'!C43,"oui","non") -> non | I43: ='Chauffage ventilation'!N23 -> 0 | K43: =I43*'Consommation et énergies'!$AF$159 -> 0 | R43: =IF('Consommation et énergies'!$D$8="",0,IF('Consommation et énergies'!$D$8='Consommation et énergies'!$AF$95,(Indicateurs!$D$51*I43)/1000,IF(OR('Consommation et énergies'!$D$8='Consommation et énergies'!$AF$102,'Consommation et énergies'!$D$8='Consommation et énergies'!$AF$103,'Consommation et énergies'!$D$8='Consommation et énergies'!$AF$104,'Consommation et énergies'!$D$8='Consommation et énergies'!$AF$105),"Inconnu",(VLOOKUP('Consommation et énergies'!$D$8,Indicateurs!$B$54:$D$60,3,FALSE)*I43)/1000))) -> 0
C44: Penser à aérer 5 min tous les jours pour renouveler l'air et évacuer l'excès d'humidité | F44: =IF('Chauffage ventilation'!L25='Recap visite'!C44,"oui","non") -> non | R44: =IF('Consommation et énergies'!$D$8="",0,IF('Consommation et énergies'!$D$8='Consommation et énergies'!$AF$95,(Indicateurs!$D$51*I44)/1000,IF(OR('Consommation et énergies'!$D$8='Consommation et énergies'!$AF$102,'Consommation et énergies'!$D$8='Consommation et énergies'!$AF$103,'Consommation et énergies'!$D$8='Consommation et énergies'!$AF$104,'Consommation et énergies'!$D$8='Consommation et énergies'!$AF$105),"Inconnu",(VLOOKUP('Consommation et énergies'!$D$8,Indicateurs!$B$54:$D$60,3,FALSE)*I44)/1000))) -> 0
C45: Dégager les radiateurs pour permettre à la chaleur de se diffuser | F45: =IF('Chauffage ventilation'!L27='Recap visite'!C45,"oui","non") -> non | R45: =IF('Consommation et énergies'!$D$8="",0,IF('Consommation et énergies'!$D$8='Consommation et énergies'!$AF$95,(Indicateurs!$D$51*I45)/1000,IF(OR('Consommation et énergies'!$D$8='Consommation et énergies'!$AF$102,'Consommation et énergies'!$D$8='Consommation et énergies'!$AF$103,'Consommation et énergies'!$D$8='Consommation et énergies'!$AF$104,'Consommation et énergies'!$D$8='Consommation et énergies'!$AF$105),"Inconnu",(VLOOKUP('Consommation et énergies'!$D$8,Indicateurs!$B$54:$D$60,3,FALSE)*I45)/1000))) -> 0
C46: Dégager les grilles d'aération pour permettre le renouvellement d'air | F46: =IF('Chauffage ventilation'!L28='Recap visite'!C46,"oui","non") -> non | R46: =IF('Consommation et énergies'!$D$8="",0,IF('Consommation et énergies'!$D$8='Consommation et énergies'!$AF$95,(Indicateurs!$D$51*I46)/1000,IF(OR('Consommation et énergies'!$D$8='Consommation et énergies'!$AF$102,'Consommation et énergies'!$D$8='Consommation et énergies'!$AF$103,'Consommation et énergies'!$D$8='Consommation et énergies'!$AF$104,'Consommation et énergies'!$D$8='Consommation et énergies'!$AF$105),"Inconnu",(VLOOKUP('Consommation et énergies'!$D$8,Indicateurs!$B$54:$D$60,3,FALSE)*I46)/1000))) -> 0
F47: oui | R47: =IF(OR('Consommation et énergies'!$D$8='Consommation et énergies'!$AF$102,'Consommation et énergies'!$D$8='Consommation et énergies'!$AF$103,'Consommation et énergies'!$D$8='Consommation et énergies'!$AF$104,'Consommation et énergies'!$D$8='Consommation et énergies'!$AF$105),"Inconnu",SUM(R42:R46)) -> 0
C49: Eau chaude et eau froide
C50: Ecogestes préconisés | D50: Installé? | E50: Nb si installation | F50: Conseillé ? | G50: Nombre | H50: Investissement | I50: Economie en kWh | J50: Economie en m3 | K50: Economie en €
C51: Couper l'eau lors du brossage de dents et/ou du rasage | F51: =IF(OR(Eau!J24<>"",Eau!J26<>""),"oui","non") -> non | I51: =Eau!N26 -> 0 | J51: =Eau!L24+Eau!L26 -> 0 | K51: =Eau!M24+Eau!M26 -> 0 | R51: =IF('Consommation et énergies'!$D$11="",0,IF('Consommation et énergies'!$D$11='Consommation et énergies'!$AF$95,(Indicateurs!$D$52*I51)/1000,IF(OR('Consommation et énergies'!E54='Consommation et énergies'!$AF$102,'Consommation et énergies'!$D$8='Consommation et énergies'!$AF$103,'Consommation et énergies'!$D$8='Consommation et énergies'!$AF$104,'Consommation et énergies'!$D$8='Consommation et énergies'!$AF$105),"Inconnu",(VLOOKUP('Consommation et énergies'!$D$11,Indicateurs!$B$54:$D$60,3,FALSE)*I51)/1000))) -> 0
C52: Couper l'eau lors de la vaisselle (ou utiliser des bacs) | F52: =IF(Eau!J25='Recap visite'!C52,"oui","non") -> non | I52: =Eau!N25 -> 0 | J52: =Eau!L25 -> 0 | K52: =Eau!M25 -> 0 | R52: =IF('Consommation et énergies'!$D$11="",0,IF('Consommation et énergies'!$D$11='Consommation et énergies'!$AF$95,(Indicateurs!$D$52*I52)/1000,IF(OR('Consommation et énergies'!E55='Consommation et énergies'!$AF$102,'Consommation et énergies'!$D$8='Consommation et énergies'!$AF$103,'Consommation et énergies'!$D$8='Consommation et énergies'!$AF$104,'Consommation et énergies'!$D$8='Consommation et énergies'!$AF$105),"Inconnu",(VLOOKUP('Consommation et énergies'!$D$11,Indicateurs!$B$54:$D$60,3,FALSE)*I52)/1000))) -> 0
C53: Réduire le temps passé sous la douche à 5 minutes maximum | F53: =IF(Eau!J27='Recap visite'!C53,"oui","non") -> non | I53: =Eau!N27 -> 0 | J53: =Eau!L27 -> 0 | K53: =Eau!M27 -> 0 | R53: =IF('Consommation et énergies'!$D$11="",0,IF('Consommation et énergies'!$D$11='Consommation et énergies'!$AF$95,(Indicateurs!$D$52*I53)/1000,IF(OR('Consommation et énergies'!E57='Consommation et énergies'!$AF$102,'Consommation et énergies'!$D$8='Consommation et énergies'!$AF$103,'Consommation et énergies'!$D$8='Consommation et énergies'!$AF$104,'Consommation et énergies'!$D$8='Consommation et énergies'!$AF$105),"Inconnu",(VLOOKUP('Consommation et énergies'!$D$11,Indicateurs!$B$54:$D$60,3,FALSE)*I53)/1000))) -> 0
C54: Couper l'eau pendant la douche lorsqu'elle coule inutilement | F54: =IF(Eau!J28='Recap visite'!C54,"oui","non") -> non | I54: =IF(F19="oui",0,Eau!N28) -> 0 | J54: =IF($F$19="oui",0,Eau!L28) -> 0 | K54: =IF($F$19="oui",0,Eau!M28) -> 0 | R54: =IF('Consommation et énergies'!$D$11="",0,IF('Consommation et énergies'!$D$11='Consommation et énergies'!$AF$95,(Indicateurs!$D$52*I54)/1000,IF(OR('Consommation et énergies'!E58='Consommation et énergies'!$AF$102,'Consommation et énergies'!$D$8='Consommation et énergies'!$AF$103,'Consommation et énergies'!$D$8='Consommation et énergies'!$AF$104,'Consommation et énergies'!$D$8='Consommation et énergies'!$AF$105),"Inconnu",(VLOOKUP('Consommation et énergies'!$D$11,Indicateurs!$B$54:$D$60,3,FALSE)*I54)/1000))) -> 0
C55: Remplacer les bains par des douches | F55: =IF(Eau!J29='Recap visite'!C55,"oui","non") -> non | I55: =Eau!N29 -> 0 | J55: =Eau!L29 -> 0 | K55: =Eau!M29 -> 0 | R55: =IF('Consommation et énergies'!$D$11="",0,IF('Consommation et énergies'!$D$11='Consommation et énergies'!$AF$95,(Indicateurs!$D$52*I55)/1000,IF(OR('Consommation et énergies'!E59='Consommation et énergies'!$AF$102,'Consommation et énergies'!$D$8='Consommation et énergies'!$AF$103,'Consommation et énergies'!$D$8='Consommation et énergies'!$AF$104,'Consommation et énergies'!$D$8='Consommation et énergies'!$AF$105),"Inconnu",(VLOOKUP('Consommation et énergies'!$D$11,Indicateurs!$B$54:$D$60,3,FALSE)*I55)/1000))) -> 0
F56: oui | R56: =IF(OR('Consommation et énergies'!$D$11='Consommation et énergies'!$AF$102,'Consommation et énergies'!$D$11='Consommation et énergies'!$AF$103,'Consommation et énergies'!$D$11='Consommation et énergies'!$AF$104,'Consommation et énergies'!$D$11='Consommation et énergies'!$AF$105),"Inconnu",SUM(R51:R55)) -> 0
C58: Appareils et équipements électrique
C59: Ecogestes préconisés | D59: Installé? | E59: Nb si installation | F59: Conseillé ? | G59: Nombre | H59: Investissement | I59: Economie en kWh | J59: Economie en m3 | K59: Economie en €
C60: Eloigner les appareils de froid de toute source de chaleur | F60: =IF(OR(Froid!N14<>"",Froid!N39<>"",Froid!N64<>""),"oui","non") -> non | I60: =Froid!O64+Froid!O39+Froid!O14 -> 0 | K60: =I60*'Consommation et énergies'!$Z$28 -> 0 | R60: =(I60*Indicateurs!$D$53)/1000 -> 0
C61: Adapter la température du réfrigérateur (5°C) et/ou du congélateur (-18°C) | F61: =IF(OR(Froid!N15<>"",Froid!N65<>"",Froid!N40<>""),"oui","non") -> non | I61: =Froid!O15+Froid!O65+Froid!O40 -> 0 | K61: =I61*'Consommation et énergies'!$Z$28 -> 0 | R61: =(I61*Indicateurs!$D$53)/1000 -> 0
C62: Penser à dégivrer régulièrement et à maintenir l'étanchéité | F62: =IF(OR(Froid!N16<>"",Froid!N41<>"",Froid!N66<>""),"oui","non") -> non | I62: =Froid!O16+Froid!O41+Froid!O66 -> 0 | K62: =I62*'Consommation et énergies'!$Z$28 -> 0 | R62: =(I62*Indicateurs!$D$53)/1000 -> 0
C63: Remplir à son maximum le lave-linge et/ou lave-vaisselle à chaque utilisation | F63: =IF(OR('Lavage sechage'!J14<>"",'Lavage sechage'!J62<>""),"oui","non") -> non | I63: ='Lavage sechage'!K14+'Lavage sechage'!K62 -> 0 | J63: ='Lavage sechage'!L14+'Lavage sechage'!L62 -> 0 | K63: =(I63*'Consommation et énergies'!$Z$28)+(J63*'Consommation et énergies'!$Y$59) -> 0 | R63: =(I63*Indicateurs!$D$53)/1000 -> 0
C64: Utiliser la touche éco ou baisser la température du lave-linge et/ou lave-vaisselle | F64: =IF(OR('Lavage sechage'!J15<>"",'Lavage sechage'!J63<>""),"oui","non") -> non | I64: ='Lavage sechage'!K15+'Lavage sechage'!K63 -> 0 | K64: =I64*'Consommation et énergies'!$Z$28 -> 0 | R64: =(I64*Indicateurs!$D$53)/1000 -> 0
C65: Chosir la vitesse maximum d'éssorage du lave-linge | F65: =IF('Lavage sechage'!J41<>"","oui","non") -> non | I65: ='Lavage sechage'!K41 -> 0 | K65: =I65*'Consommation et énergies'!$Z$28 -> 0 | R65: =(I65*Indicateurs!$D$53)/1000 -> 0
C66: Favoriser le séchage du linge à l'air libre | F66: =IF('Lavage sechage'!J40<>"","oui","non") -> non | I66: ='Lavage sechage'!K40 -> 0 | K66: =I66*'Consommation et énergies'!$Z$28 -> 0 | R66: =(I66*Indicateurs!$D$53)/1000 -> 0
C67: Eteindre systématiquement les lumières inutiles et adapter le nombre d'éclairage | F67: =IF(OR(Eclairage!K29>0,Eclairage!J12="Oui, je peux"),"oui","non") -> non | I67: =SUM(Eclairage!K29) -> 0 | K67: =I67*'Consommation et énergies'!$Z$28 -> 0 | R67: =(I67*Indicateurs!$D$53)/1000 -> 0
C68: Penser à éteindre les veilles des appareils (en utilisant par exemple une multiprise coupe-veille) | F68: =IF(Veilles!D10="oui","oui","non") -> non | I68: =IF(OR(F33="oui",F34="oui"),0,SUM(I33:I34)) -> 0 | K68: =I68*'Consommation et énergies'!$Z$28 -> 0 | R68: =(I68*Indicateurs!$D$53)/1000 -> 0
F69: oui | R69: =SUM(R60:R68) -> 0
F70: TOTAL Ecogestes | I70: =SUM(I42:I43,I52:I55,I60:I68) -> 0 | J70: =SUM(J42:J46,J51:J55,J60:J68) -> 0 | K70: =SUM(K42:K46,K51:K55,K60:K68) -> 0 | R70: =SUM(R69,R56,R47) -> 0
F72: TOTAL Ecogestes + équipements | I72: =I70+I37 -> 0 | J72: =J70+J37 -> 0 | K72: =K70+K37 -> 0
C75: Points de vigilances
C76: Type de commentaire | D76: Commentaires
C77: Consommation énergies | D77: =IF(Indicateurs!H68="Importante","- La consommation d'énergie paraît élevée par rapport aux besoins","-") -> -
C78: Humidité | D78: =IF('Données bâti'!G48>65,"- Le taux d'humidité mesuré est important. Un excès d'humidité dégrade le confort et la qualité de l'air, et entraîne des risques de moisissures.","-") -> -
C79: Ventilation | D79: =IF('Chauffage ventilation'!F28="non","- Il est important que les bouches d'aération soient dégagées pour permettre le renouvellement d'air et éviter l'excès d'humidité","-") -> -
C80: Chauffage appoints | D80: =IF(OR('Consommation et énergies'!N14='Consommation et énergies'!AN96,'Consommation et énergies'!N14='Consommation et énergies'!AN97,'Consommation et énergies'!N14='Consommation et énergies'!AN99),"- Les chauffages d'appoint à combustion doivent être utilisés dans des pièces ventilées. Une mauvaise utilisation ou un appareil defectueux peut entraîner des risques d'intoxication au monoxyde de carbone","-") -> -
C81: Salubrité | D81: =IF(AND('Données bâti'!G59="oui",'Données bâti'!G60="non"),"- Suspicion d'insalubrité. Une procédure auprès du service hygiène serait souhaitable","-") -> -
C82: Impayé electrique | D82: =IF('Consommation et énergies'!N26="oui","- Impayé d'électricité. Une solution doit être trouvée avec le fournisseur d'énergie, éventuellement en lien avec l'assistante sociale","-") -> -
C83: Impayé gaz | D83: =IF(AND('Consommation et énergies'!N43="oui",'Consommation et énergies'!O45="Gaz naturel"),"- Impayé de gaz. Une solution doit être trouvée avec le fournisseur d'énergie, éventuellement en lien avec l'assistante sociale","-") -> -
C84: Tarifs sociaux | D84: =IF(OR('Données ménage'!U100="Eligible au TPN et n'en bénéficie pas",'Données ménage'!U100="Eligible au TSS et TPN et n'en bénéficie pas",'Données ménage'!U100="Eligible au TSS et n'en bénéficie pas"),"- Demande de TPN et/ou TSS à effectuer","-") -> -
C85: Abonnement électicité | D85: =IF('Consommation et énergies'!Z31="non","- L'abonnement électrique paraît mal dimensionné par rapport aux besoins de la famille.","-") -> -
C86: Abonnement gaz | D86: =IF(AND('Consommation et énergies'!O45="Gaz naturel",'Consommation et énergies'!Z48="non"),"- L'abonnement de gaz paraît mal dimensionné par rapport aux besoins de la famille. Pour davantages d'informations, contacter l'Espace Info-Energie le plus proche de chez vous","-") -> -
C87: Ballon eau chaude | D87: =IF(AND(Eau!L11="Electricité",Eau!L12="non"), "- Le ballon d'eau chaude fonctionne en permanence. La pose d'un commutateur jour/nuit permettrait d'optimiser la consommation d'eau chaude","-") -> -
C88: Optimisation HC | D88: =IF(AND(Eau!L12=Eau!AB87,Eau!L11="Electricité"),"- Activer la marche auto du ballon d'eau chaude permettrait de profiter davantage du tarif Heures Creuses et donc de réaliser des économies","-") -> -
AC95: Ne pas effacer
AC96: 1
AC97: 2
AC98: 3
AC99: 4
AC100: 5
AC101: 6
AC102: 7
AC103: 8

Sheet Rapport visite
J2: RAPPORT DE VISITE
B4: ="Nom de l'occupant: "&Indicateurs!B2&" "&Indicateurs!C2 -> Nom de l'occupant: - | I4: ="Date d'émission du rapport: "&TEXT(Indicateurs!O2,"jj/mm/aaaa") -> Date d'émission du rapport: 21/07/2023
B5: ="Adresse de l'occupant: "&Indicateurs!D2 -> Adresse de l'occupant: - | I5: ="Date de la visite: "&TEXT(Indicateurs!R2,"jj/mm/aaaa") -> Date de la visite: 21/07/2023
B6: ="Code Postal: "&Indicateurs!E2 -> Code Postal: - | I6: ="Chargé(s) de visite: "&Indicateurs!P2&IF('Données ménage'!H20<>"","/"&Indicateurs!Q2,"") -> Chargé(s) de visite: Amélie LOMBARD / ROY MATHIS
B7: ="Ville: "&Indicateurs!F2 -> Ville: - | I7: ="Météo lors de la visite: "&Indicateurs!BC2&"/ "&Indicateurs!BD2&"°C " -> Météo lors de la visite: Pluvieux/ humide/ -°C
B9: LES OCCUPANTS | I9: LE LOGEMENT
C10: L'occupation du logement
C11: ="Statut d'occupation: "&Indicateurs!S2 -> Statut d'occupation: Locataire social
C12: ="Date d'entrée dans le logement: "&Indicateurs!U2 -> Date d'entrée dans le logement: -
C13: ="Nombre d'occupants: "&Indicateurs!V2 -> Nombre d'occupants: -
C15: Situation économique et sociale
C16: ="Aides à l'énergie perçues: "&Indicateurs!AG2&IF(Indicateurs!AH2<>"-"," ("&Indicateurs!AH2&")","") -> Aides à l'énergie perçues: -
C17: ="Eligible aides ANAH: "&Indicateurs!AK2 -> Eligible aides ANAH: Inconnu
C18: ="Tarifs sociaux énergie: "&Indicateurs!DJ2 -> Tarifs sociaux énergie: Non éligible | J18: Caractéristiques du bâti
J19: ="Type de logement: "&Indicateurs!AP2 -> Type de logement: Collectif
B20: LES CONSOMMATIONS | J20: ="Nombre de lots (si collectif): "&Indicateurs!AQ2 -> Nombre de lots (si collectif): > 50 lots
C21: Les énergies | J21: ="Nombre de pièces: "&Indicateurs!AM2 -> Nombre de pièces: -
C22: Chauffage: | J22: ="Surface: "&Indicateurs!AN2&" m²" -> Surface: - m²
C23: ="Energie de chauffage: "&Indicateurs!CQ2 -> Energie de chauffage: - | J23: ="Année de construction: "&Indicateurs!AO2 -> Année de construction: -
C24: ="Type de chaudière: "&Indicateurs!CU2 -> Type de chaudière: - | J24: ="Etat de la toiture: "&Indicateurs!AT2 -> Etat de la toiture: Bon
C25: ="Type de compteur: "&Indicateurs!DK2 -> Type de compteur: - | J25: ="Evacuation des eaux de pluie: "&Indicateurs!AU2 -> Evacuation des eaux de pluie: Oui
C26: ="Présence d'appoints: "&Indicateurs!DA2 -> Présence d'appoints: - | J26: ="Signes de remontées capillaires: "&Indicateurs!AV2 -> Signes de remontées capillaires: Non
C28: Eau chaude sanitaire: | J28: Etat du logement
C29: ="Energie ECS: "&Indicateurs!CR2 -> Energie ECS: - | J29: Fenêtres:
C30: ="Type de production: "&Indicateurs!CS2 -> Type de production: - | J30: ="Type de vitrage: "&Indicateurs!BX2 -> Type de vitrage: Double vitrage
C31: ="Type de compteur: "&Indicateurs!DP2 -> Type de compteur: Individuel | J31: ="Etat des meuiseries: "&Indicateurs!BV2 -> Etat des meuiseries: Bon
C32: ="Présence commutateur J/N (si électrique): "&Indicateurs!DG2 -> Présence commutateur J/N (si électrique): - | J32: ="Infiltration d'air par les fenêtres: "&Indicateurs!BY2 -> Infiltration d'air par les fenêtres: -
J34: Confort intérieur:
C35: Cuisson: | J35: ="T° mesurée dans la pièce principale: "&Indicateurs!BF2&" °C" -> T° mesurée dans la pièce principale: - °C
C36: ="Energie cuisson: "&Indicateurs!CT2 -> Energie cuisson: - | J36: ="T° mesurée du mur donnant sur l'extérieur: "&Indicateurs!BG2&" °C" -> T° mesurée du mur donnant sur l'extérieur: - °C
J37: ="Difficulté à chauffer: "&Indicateurs!BQ2 -> Difficulté à chauffer: -
C38: Les factures d'énergie | J38: ="Privation de chauffage en hiver: "&Indicateurs!BM2 -> Privation de chauffage en hiver: Non
C39: Electricité: | J39: ="Confort perçu par les occupants (0 à 5 important): "&Indicateurs!BK2 -> Confort perçu par les occupants (0 à 5 important): -
C40: ="Consommation annuelle: "&TEXT(Indicateurs!EA2,"0 000")&" kWh" -> Consommation annuelle: - kWh
C41: ="Coût annuel: "&TEXT(Indicateurs!EB2,"0")&" €" -> Coût annuel: - € | J41: Ventilation et humidité:
C42: ="Adéquation abonnement: "&Indicateurs!EC2 -> Adéquation abonnement: - | J42: ="Type de ventilation: "&Indicateurs!BN2 -> Type de ventilation: -
J43: ="Grilles d'extraction d'air obstruées: "&Indicateurs!BS2 -> Grilles d'extraction d'air obstruées: -
C44: ="Autre énergie: "&Indicateurs!EH2 -> Autre énergie: - | J44: ="Taux d'humidité mesuré extérieur/intérieur: "&Indicateurs!BE2&"% / "&Indicateurs!BH2&"%" -> Taux d'humidité mesuré extérieur/intérieur: 93% / 60%
C45: ="Consommation annuelle: "&TEXT(Indicateurs!EL2,"0 000")&" kWh" -> Consommation annuelle: - kWh | J45: ="Moisissures/traces d'humidité: "&Indicateurs!BO2 -> Moisissures/traces d'humidité: Non
C46: ="Coût annuel: "&TEXT(Indicateurs!EM2,"0")&" €" -> Coût annuel: - € | J46: ="Humidité perçue par l'occupant (0 nul à 5 très humide): "&Indicateurs!BL2 -> Humidité perçue par l'occupant (0 nul à 5 très humide): -
C47: ="Adéquation abonnement: "&Indicateurs!EN2 -> Adéquation abonnement: -
J48: Salubrité du logement:
C49: Eau froide | J49: ="Procédure d'insalubrité en cours: "&Indicateurs!BT2 -> Procédure d'insalubrité en cours: -
C50: ="Consommation annuelle: "&Indicateurs!ES2 -> Consommation annuelle: - | J50: ="Presomption d'indécence ou d'insalubrité: "&Indicateurs!BU2 -> Presomption d'indécence ou d'insalubrité: Non
C51: ="Coût annuel: "&Indicateurs!ET2 -> Coût annuel: -
J52: Autres observations:
C53: Repères de consommation | J53: =Indicateurs!CC2&IF(Indicateurs!CB2<>"","; ","")&Indicateurs!CC2&IF(Indicateurs!CC2<>"","; ","")&Indicateurs!CD2&IF(Indicateurs!CD2<>"","; ","")&Indicateurs!CE2&IF(Indicateurs!CE2<>"","; ","")&Indicateurs!CF2&IF(Indicateurs!CF2<>"","; ","")&Indicateurs!CG2&IF(Indicateurs!CG2<>"","; ","")&Indicateurs!CH2&IF(Indicateurs!CH2<>"","; ","")&Indicateurs!CI2&IF(Indicateurs!CI2<>"","; ","")&Indicateurs!CJ2&IF(Indicateurs!CJ2<>"","; ","")&Indicateurs!CK2&IF(Indicateurs!CK2<>"","; ","")&Indicateurs!CL2&IF(Indicateurs!CL2<>"","; ","")&Indicateurs!CM2&IF(Indicateurs!CM2<>"","; ","")&Indicateurs!CN2&IF(Indicateurs!CN2<>"","; ","")&Indicateurs!CO2&IF(Indicateurs!CO2<>"","; ","")&Indicateurs!CP2 -> Aucune
C54: ="Evaluation de la consommation: "&Indicateurs!ER2 -> Evaluation de la consommation: Non mesurable
C55: ="Taux d'effort énergétique: "&TEXT(Indicateurs!EO2,0)&" %" -> Taux d'effort énergétique: - %
C56: ="Consommation moyenne chauffage : "&TEXT(Indicateurs!EP2,0)&" kWh/m²/an "&Indicateurs!EQ2 -> Consommation moyenne chauffage : - kWh/m²/an (théorique)
J60: RAPPORT DE VISITE
C62: A noter: les économies présentées ci-dessous ont été estimées sur la base du diagnostic réalisé, et peuvent ne pas tout à fait correspondre à la réalité.
C64: =Indicateurs!IX2 -> 
B67: LES ECOGESTES PRECONISES
C68: Chauffage, ventilation et humidité
C69: =Indicateurs!GF2 -> 
C70: =Indicateurs!GG2 -> 
C71: =Indicateurs!GH2 -> 
C72: =Indicateurs!GI2 -> 
C73: =Indicateurs!GJ2 -> 
J74: ="Economie estimée grâce à ces écogestes: "&TEXT(Indicateurs!II2,0)&" €" -> Economie estimée grâce à ces écogestes: 0 €
C76: Eau chaude et eau froide
C77: =Indicateurs!GK2 -> 
C78: =Indicateurs!GL2 -> 
C79: =Indicateurs!GM2 -> 
C80: =Indicateurs!GN2 -> 
C81: =Indicateurs!GO2 -> 
J82: ="Economie estimée grâce à ces écogestes: "&TEXT(Indicateurs!IL2,0)&" €" -> Economie estimée grâce à ces écogestes: 0 €
C84: Electricité spécifique
C85: =Indicateurs!GP2 -> 
C86: =Indicateurs!GQ2 -> 
C87: =Indicateurs!GR2 -> 
C88: =Indicateurs!GS2 -> 
C89: =Indicateurs!GT2 -> 
C90: =Indicateurs!GU2 -> 
C91: =Indicateurs!GV2 -> 
J92: ="Economie estimée grâce à ces écogestes: "&TEXT(Indicateurs!IO2,0)&" €" -> Economie estimée grâce à ces écogestes: 0 €
B94: Les équipements économes préconisés
C95: Chauffage, ventilation et humidité | J95: Electricité spécifique
C96: =Indicateurs!FL2&" "&Indicateurs!IY2 ->  | J96: =Indicateurs!FY2&" "&Indicateurs!JL2 -> 
C97: =Indicateurs!FM2&" "&Indicateurs!IZ2 ->  | J97: =Indicateurs!FZ2&" "&Indicateurs!JM2 -> 
C98: =Indicateurs!FN2&" "&Indicateurs!JA2 ->  | J98: =Indicateurs!GA2&" "&Indicateurs!JN2 -> 
C99: =Indicateurs!FO2&" "&Indicateurs!JB2 ->  | J99: =Indicateurs!GB2&" "&Indicateurs!JO2 -> 
C100: =Indicateurs!FP2&" "&Indicateurs!JC2 ->  | J100: =Indicateurs!GC2&" "&Indicateurs!JP2 -> 
C101: =Indicateurs!FQ2&" "&Indicateurs!JD2 ->  | J101: =Indicateurs!GD2&" "&Indicateurs!JQ2 -> 
C102: =Indicateurs!FR2&" "&Indicateurs!JE2 ->  | J102: =Indicateurs!GE2&" "&Indicateurs!JR2 -> 
C103: ="Economie estimée grâce à ces équipements: "&TEXT(Indicateurs!IA2,0)&" €" -> Economie estimée grâce à ces équipements: 0 € | J103: ="Economie estimée grâce à ces équipements: "&TEXT(Indicateurs!IC2,0)&" €" -> Economie estimée grâce à ces équipements: 0 €
C105: Eau chaude et eau froide | J105: Les équipements économes offerts
C106: =Indicateurs!FT2&" "&Indicateurs!JG2 ->  | J106: ="Nombre d'équipements offerts: "&Indicateurs!HK2 -> Nombre d'équipements offerts: 0
C107: =Indicateurs!FU2&" "&Indicateurs!JH2 ->  | J107: ="Valeur des équipements offerts: "&Indicateurs!HL2&" €" -> Valeur des équipements offerts: 0 €
C108: =Indicateurs!FV2&" "&Indicateurs!JI2 ->  | J108: ="Economie estimée grâce aux équipements offerts: "&TEXT(Indicateurs!HY2,0)&" €" -> Economie estimée grâce aux équipements offerts: 0 €
C109: =Indicateurs!FW2&" "&Indicateurs!JJ2 -> 
C110: ="Economie estimée grâce à ces équipements: "&TEXT(Indicateurs!IB2,0)&" €" -> Economie estimée grâce à ces équipements: 0 €
B112: COMMENTAIRE | J112: SYNTHESE DES ECONOMIES ESTIMEES
K113: ="Grâce aux écogestes: "&TEXT(Indicateurs!IR2,0)&" €" -> Grâce aux écogestes: 0 €
K114: ="Grâce aux équipements installés: "&TEXT(Indicateurs!HY2,0)&" €" -> Grâce aux équipements installés: 0 €
K115: ="Grâce à un investissement de votre part (hors électroménager): "&TEXT(Indicateurs!HJ2,0)&" €" -> Grâce à un investissement de votre part (hors électroménager): 0 €
K117: ="Soit une économie totale de: "&TEXT(Indicateurs!IV2,0)&" €" -> Soit une économie totale de: 0 €
K118: ="(correspondant à "&TEXT(Indicateurs!ID2,0)&" kWh et "&TEXT(Indicateurs!IE2,0)&" m3 d'eau)" -> (correspondant à 0 kWh et 0 m3 d'eau)

Sheet MAJ Données
B3: Plafond des aides
B5: Plafond ressources aide ACS
B6: Date de mise à jour: | C6: 2023-07-21
B7: Source: | C7: http://vosdroits.service-public.fr/particuliers/F13375.xhtml
B8: Nombre de personnes composant le foyer | C8: Montant du plafond annuel en France métropolitaine
B9: 1 personne | C9: 13120
B10: 2 personnes | C10: 19680
B11: 3 personnes | C11: 23616
B12: 4 personnes | C12: 27533
B13: Au-delà de 4 personnes, par personne à charge supplémentaire | C13: 5248
B16: Plafond annuel de ressources CMU complémentaire
B17: Date de mise à jour: | C17: 2023-07-21
B18: Source: | C18: http://vosdroits.service-public.fr/particuliers/F10027.xhtml
B19: Nombre de personnes composant le foyer | C19: Montant du plafond annuel en France métropolitaine
B20: 1 personne | C20: 9719
B21: 2 personnes | C21: 14578
B22: 3 personnes | C22: 17494
B23: 4 personnes | C23: 20409
B24: au-delà de 4 personnes, par personne supplémentaire | C24: 3887
B27: Plafond ressources aides ANAH
B28: Date de mise à jour: | C28: 2015-06-26
B29: Source: | C29: http://www.anah.fr/les-aides/vous-etes-proprietaire-occupant/etes-vous-eligible-aux-aides-de-lanah/
B30: Région concernée par le SLIME | C30: Ile-de-France
C31: Ile-de-France | E31: Autres régions
B32: Nombre de personnes composant le ménage | C32: Ménages aux ressources très modestes (€) | D32: Ménages aux ressources modestes (€) | E32: Ménages aux ressources très modestes (€) | F32: Ménages aux ressources modestes (€)
B33: 1 | C33: 19792 | D33: 24094 | E33: 14300 | F33: 18332
B34: 2 | C34: 29050 | D34: 35362 | E34: 20913 | F34: 26811
B35: 3 | C35: 34887 | D35: 42471 | E35: 25152 | F35: 32242
B36: 4 | C36: 40735 | D36: 49592 | E36: 29384 | F36: 37669
B37: 5 | C37: 46604 | D37: 56733 | E37: 33663 | F37: 43117
B38: Par personne supplémentaire | C38: 5867 | D38: 7132 | E38: 4239 | F38: 5431
B41: Déduction Tarifs Sociaux de l'Energie
B43: Déduction forfaitaire TPN électricité
B44: Date de mise à jour: | C44: 2017-08-21
B45: Déduction forfaitaire en fonction de l’UC (en euros TTC/an) | C45: 3 kVA | D45: 6 kVA | E45: 9 kVA et plus
B46: UC = 1 (Une personne seule) | C46: 71 | D46: 87 | E46: 94
B47: 1 < UC < 2 (Un adulte avec un enfant) | C47: 88 | D47: 109 | E47: 117
B48: 1 < UC < 2 (Un couple sans enfant ou avec un enfant)
B49: 1 < UC < 2 (Un adulte avec deux enfants)
B50: UC >=2 (Un couple/adulte avec deux enfants et plus) | C50: 106 | D50: 131 | E50: 140
B53: Déduction forfaitaire TSS gaz
B54: Date de mise à jour: | C54: 2017-08-21
B55: Déduction ou versement forfaitaire en fonction de la composition du foyer en €TTC/an | C55: Individuel | F55: Collectif
C56: 0-1000 kWh/an [cuisson] | D56: 1000-6000 kWh/an [eau chaude] | E56: > 6000 kWh/an [chauffage] | F56: [chauffage]
B57: UC = 1 (Une personne seule) | C57: 23 | D57: 72 | E57: 123 | F57: 100
B58: 1 < UC < 2 (Un adulte avec un enfant) | C58: 30 | D58: 95 | E58: 153 | F58: 123
B59: 1 < UC < 2 (Un couple sans enfant ou avec un enfant)
B60: 1 < UC < 2 (Un adulte avec deux enfants)
B61: UC >=2 (Un couple/adulte avec deux enfants et plus) | C61: 38 | D61: 117 | E61: 185 | F61: 147
B64: Prix des énergies/eau
B66: Tarifs électricité
B67: Date de mise à jour: | C67: 2023-07-21
B68: Source: | C68: http://developpement-durable.bsocom.fr/statistiques/ReportFolders/reportFolders.aspx
B69: Puissance souscrite (kVA) | C69: Abonnement annuel TTC (euros) | D69: Prix du kWh TTC (euros) Heures Pleines | E69: Prix du kWh TTC (euros) Heures Creuses | F69: Blanc HP | G69: Blanc HC | H69: Rouge HP | I69: Rouge HC
B70: 3 (Base) | C70: 104.89 | D70: 0.1558
B71: 6 (Base) | C71: 143.87 | D71: 0.2062
B72: 9 (Base) | C72: 171.28 | D72: 0.1605
B73: 12 (Base) | C73: 205.42 | D73: 0.1605
B74: 15 (Base) | C74: 237.67 | D74: 0.1605
B75: 6 (HP/HC) | C75: 151.64 | D75: 0.2228 | E75: 0.1615
B76: 9 (HP/HC) | C76: 185.03 | D76: 0.1821 | E76: 0.136
B77: 12 (HP/HC) | C77: 223.21 | D77: 0.1821 | E77: 0.136
B78: 15 (HP/HC) | C78: 260.37 | D78: 0.1821 | E78: 0.136
B79: 18 (HP/HC) | C79: 295.64 | D79: 0.1821 | E79: 0.136
B80: 24 (HP/HC) | C80: 362.01 | D80: 0.1821 | E80: 0.136
B81: 9 (Tempo) | C81: 121.494 | D81: 0.100314 | E81: 0.083994 | F81: 0.140034 | G81: 0.117474 | H81: 0.559314 | I81: 0.214194
B82: 12 (Tempo) | C82: 198.715 | D82: 0.100314 | E82: 0.083994 | F82: 0.140034 | G82: 0.117474 | H82: 0.559314 | I82: 0.214194
B83: 30 (Tempo) | C83: 408.4 | D83: 0.1605 | E83: 0.083994 | F83: 0.140034 | G83: 0.117474 | H83: 0.559314 | I83: 0.214194
B84: 36 (Tempo) | C84: 477.7 | D84: 0.1605 | E84: 0.083994 | F84: 0.140034 | G84: 0.117474 | H84: 0.559314 | I84: 0.214194
B87: Tarifs Gaz
B88: Date de mise à jour: | C88: 2023-07-21
B89: Source: | C89: http://developpement-durable.bsocom.fr/statistiques/ReportFolders/reportFolders.aspx
B90: Type d'abonnement | C90: Abonnement annuel TTC (euros) | D90: Prix du kWh TTC (euros)
B91: GN base < 1000kWh | C91: 102.12 | D91: 0.1284
B92: B0 zone 1 | C92: 102.12 | D92: 0.1284
B93: B1 zone 1 | C93: 249.84 | D93: 0.1043
B94: B2i zone 1 | C94: 249.84 | D94: 0.1043
B97: Prix moyen complet kWh par type d'énergie (abonnement inclus)
B98: Date de mise à jour: | C98: 2023-07-21
B99: Source: | C99: http://developpement-durable.bsocom.fr/statistiques/ReportFolders/reportFolders.aspx
B100: Energie | C100: Tarif comple kWh TTC (euros)
B101: Electricité | C101: 0.2228
B102: Gaz naturel | C102: 0.1043
B103: Gaz propane en citerne | C103: 0.1465
B104: Fioul domestique | C104: 1.257
B105: Réseau de chaleur | C105: 0.086255
B106: Bois (granulés) | C106: 0.05675
B107: Bois (bûches) | C107: 0.04
B108: Gaz bouteille | C108: 0.197
B109: Aucune | C109: 0
B110: Autre | C110: 0.1
B111: Inconnue | C111: 0.1
B113: Prix du mètre cube d'eau froide (en € TTC) | C113: 4
B114: Date de mise à jour | C114: 2023-02-01
B117: Emission CO² par type d'énergie
B119: Emission en gramme de CO² par kWh
B120: Date de mise à jour | C120: 2014-02-01
B121: Electricité (chauffage) | C121: 180
B122: Electricité (ECS) | C122: 40
B123: Electricité spécifique | C123: 84
B124: Gaz naturel | C124: 234
B125: Gaz propane en citerne | C125: 274
B126: Gaz bouteille | C126: 274
B127: Fioul domestique | C127: 300
B128: Réseau de chaleur | C128: 160
B129: Bois (granulés) | C129: 13
B130: Bois (bûches) | C130: 13
B133: Le matériel économe
B136: Chauffage, ventilation et humidité
B137: Equipements préconisés | C137: Economie grâce à l'équipement | F137: Prix unitaire | G137: Unité
B138: Film de survitrage | C138: 0.05 | D138: sur les consommations de chauffage | F138: 6.5 | G138: m²
B139: Joints de fenêtre | C139: 0.04 | D139: sur les consommations de chauffage | F139: 1.3 | G139: m
B140: Bas de porte | C140: 0.01 | D140: sur les consommations de chauffage | F140: 8 | G140: article
B141: Film/panneau réfléchissant | C141: 0.05 | D141: sur les consommations de chauffage | F141: 8 | G141: m²
B142: Manchon isolant tuyauterie | C142: 0.04 | D142: sur les consommations de chauffage | F142: 1.5 | G142: m
B143: Thermomètre hygromètre | C143: Non mesurable | F143: 15 | G143: article
B144: Thermomètre simple | C144: Non mesurable | F144: 4 | G144: article
B145: Prise programmable | C145: Non mesurable | F145: 10 | G145: article
B147: Eau chaude et eau froide
B148: Equipements préconisés | C148: Débit équipement | F148: Prix unitaire | G148: Unité
B149: Variateur de dédit douche/stop douche | C149: - | F149: 8 | G149: article
B150: Economiseur d'eau Evier | C150: 8 | D150: litres/minutes | F150: 3 | G150: article
B151: Economiseur d'eau lavabo | C151: 6 | D151: litres/minutes | F151: 3 | G151: article
B152: Economiseur d'eau autre | C152: 8 | D152: litres/minutes | F152: 3 | G152: article
B153: système éco-WC | C153: 2 | D153: litres économisés /chasse d'eau | F153: 4 | G153: article
B154: douchette(s) économe(s) | C154: 9 | D154: litres/minutes | F154: 18 | G154: article
B155: joints de robinetterie | C155: - | F155: 1 | G155: article
B157: Appareils et équipements électriques
B158: Equipements préconisés | F158: Prix unitaire | G158: Unité
B159: Ampoule LBC culot E27 | F159: 6 | G159: article
B160: Ampoule LBC culot B22 | F160: 6 | G160: article
B161: Ampoule LBC culot E14 | F161: 6 | G161: article
B162: Ampoule LBC autre culot | F162: 6 | G162: article
B163: Ampoule LED culot GU 5,3 | F163: 12 | G163: article
B164: Ampoule LED culot GU 10 | F164: 12 | G164: article
B165: Ampoule LED autre culot | F165: 18 | G165: article
B166: Autre type d'ampoule | F166: 8 | G166: article
B167: Ampoule(s) LED spot | F167: 18 | G167: article
B168: Remplacement appareil de froid | F168: 300 à 600€ | G168: article
B169: Remplacement appareil de lavage/séchage | F169: 200 à 400 € | G169: article
B170: Thermomètre réfrigérateur | F170: 6 | G170: article
B171: Multiprise coupe veille | F171: 25 | G171: article
B172: Multiprise à interrupteur | F172: 8 | G172: article

Sheet Indicateurs
A1: Num contact | B1: Nom | C1: Prénom | D1: Voie | E1: Code Postal | F1: Commune | G1: N° appartement | H1: Bâtiment | I1: Pallier | J1: Digicode | K1: Téléphone fixe | L1: Téléphone portable | M1: Photos ext | N1: Photos int | O1: Date du jour | P1: Chargé visite 1 | Q1: chargé visite 2 | R1: Date 1ère visite | S1: Statut | T1: Nom du bailleur | U1: Date entrée log. | V1: Nb occupants | W1: Dont enfants | X1: Dont +60 ans | Y1: Profil ménage | Z1: Pb respiratoire | AA1: Nb concernés | AB1: Dont enfants | AC1: Présence continue | AD1: Suivi TS | AE1: Nom TS | AF1: Revenus annuels | AG1: Aide FSL | AH1: Année FSL | AI1: CMU-C | AJ1: ACS | AK1: ANAH | AL1: PACT energie | AM1: Nb pièces | AN1: Surface | AO1: Année const | AP1: Type hab | AQ1: nb lots | AR1: Mitoyenneté | AS1: Forme | AT1: Etat toit | AU1: Ruissellement | AV1: Remontée eau | AW1: Combles | AX1: Réno | AY1: Année trav | AZ1: Travaux 1 | BA1: Travaux 2 | BB1: Travaux 3 | BC1: Météo | BD1: T° ext | BE1: Tx humidité ext | BF1: T° interieure | BG1: T° mur | BH1: Tx humidité | BI1: Murs froids | BJ1: Confort ressenti | BK1: Niveau confort | BL1: Niveau humidité | BM1: Privation chauffage | BN1: Ventilation | BO1: trace humidité | BP1: pièce humide | BQ1: difficulté chauffer | BR1: aération | BS1: grille d'aération | BT1: Procédure insalubrité | BU1: insalubrité susp | BV1: Etat menuiserie | BW1: nb fenetres | BX1: Vitrage | BY1: Infiltration air fenêtres | BZ1: Infiltration air portes | CA1: radiateurs devant Fenetres | CB1: Obs1 | CC1: Obs2 | CD1: Obs3 | CE1: Obs4 | CF1: Obs5 | CG1: Obs6 | CH1: Obs7 | CI1: Obs8 | CJ1: Obs9 | CK1: Obs10 | CL1: Obs11 | CM1: Obs12 | CN1: Obs13 | CO1: Obs14 | CP1: obstot | CQ1: NRJ chauffage | CR1: NRJ ECS | CS1: Type ECS | CT1: NRJ cuisson | CU1: Type chaudiere | CV1: Age chaudiere | CW1: Programmation/ régulation | CX1: Emetteurs | CY1: Nb émetteurs | CZ1: Robinets thermostatiques | DA1: Présence appoints | DB1: Nb appoints | DC1: Types appoints | DD1: Utilisation | DE1: Raison utilisation | DF1: Volume ballon eau | DG1: commut J/N | DH1: fuite groupe sécurité | DI1: fuite eau | DJ1: Tarifs sociaux | DK1: compteur chauffage | DL1: Relevé compteur chauffage | DM1: Relevé compteur élec HC | DN1: Relevé compteur élec HC | DO1: compteur ECS | DP1: compteur eau | DQ1: Relevé compteur eau chaude | DR1: Relevé compteur eau froide | DS1: difficulté paiement electricité | DT1: Impayé electricité | DU1: Montant impayé électricité | DV1: Disponibilité factures électricité | DW1: Fournisseur électricité | DX1: Abonnement électricité | DY1: Besoins electricité | DZ1: Besoins cuisson | EA1: Conso electricité kWh | EB1: Coût élec euros | EC1: Adéquation abonnement | ED1: Difficulté paiement autres factures | EE1: Impayé autres factures | EF1: Montant Impayé autres factures | EG1: Autres factures disponibles | EH1: Energie autres factures | EI1: abonnement autres factures | EJ1: fournisseur autres factures | EK1: Besoins autres factures | EL1: conso autres factures | EM1: Coût autres factures | EN1: Adequation abonnement autres factures | EO1: %effort Energétique | EP1: kWhchauf/m2 | EQ1: kwh/m² r-t | ER1: Type conso | ES1: conso eau | ET1: coût eau | EU1: Age réfrigérateur | EV1: remplacement 1 | EW1: Age congélateur | EX1: remplacement 2 | EY1: Age combiné | EZ1: remplacement 3 | FA1: Age lave-linge | FB1: remplacement 4 | FC1: Age sèche linge | FD1: remplacement 5 | FE1: Age lave-vaisselle | FF1: remplacement 6 | FG1: remplacement total | FH1: Tx équipement | FI1: pts lumineux | FJ1: présence ampoules classiques | FK1: Présence veilles | FL1: Equ 1 | FM1: Equ 2 | FN1: Equ 3 | FO1: Equ 4 | FP1: Equ 5 | FQ1: Equ 6 | FR1: Equ 7 | FS1: Equ 8 | FT1: Equ 9 | FU1: Equ 10 | FV1: Equ 11 | FW1: Equ 12 | FX1: Equ 13 | FY1: Equ 14 | FZ1: Equ 15 | GA1: Equ 16 | GB1: Equ 17 | GC1: Equ 18 | GD1: Equ 19 | GE1: Equ 20 | GF1: Eco geste 1 | GG1: Eco geste 2 | GH1: Eco geste 3 | GI1: Eco geste 4 | GJ1: Eco geste 5 | GK1: Eco geste 6 | GL1: Eco geste 7 | GM1: Eco geste 8 | GN1: Eco geste 9 | GO1: Eco geste 10 | GP1: Eco geste 11 | GQ1: Eco geste 12 | GR1: Eco geste 13 | GS1: Eco geste 14 | GT1: Eco geste 15 | GU1: Eco geste 16 | GV1: Eco geste 17 | GW1: Eco geste 18 | GX1: Eco geste 19 | GY1: Investissement ménage hos électro | GZ1: Economie équipements chauffage investissement personnel (kWh) | HA1: Economie équipements chauffage investissement personnel (€) | HB1: Economie équipements eau investissement personnel (kWh) | HC1: Economie équipements eau investissement personnel (m3) | HD1: Economie équipements eau investissement personnel (€) | HE1: Economie équipements electricité investissement personnel (kWh) | HF1: Economie équipements electricité investissement personnel (m3) | HG1: Economie équipements électricité investissement personnel (€) | HH1: Total économie équipements investissement personnel (kWh) | HI1: Total économie équipements investissement personnel (m3) | HJ1: Total économie équipements investissement personnel (€) | HK1: Nb Eq offerts | HL1: Coût équipements offerts | HM1: Economie équipements chauffage offerts (kWh) | HN1: Economie équipements chauffage offerts (€) | HO1: Economie équipements chauffage offerts (kg CO2) | HP1: Economie équipements eau offerts (kWh) | HQ1: Economie équipements eau offerts (m3) | HR1: Economie équipements eau offerts (€) | HS1: Economie équipements eau offerts (Kg CO²) | HT1: Economie équipements electricité offerts(kWh) | HU1: Economie équipements electricité offerts (€) | HV1: Economie équipements electricité offerts (Kg CO²) | HW1: Totale économie équipements offerts (kWh) | HX1: Totale économie équipements offerts (m3) | HY1: Totale économie équipements offerts (€) | HZ1: Totale économie équipements offerts (Kg CO²) | IA1: Total économies équipements chauffage (€) | IB1: Total économie équipements eau (€) | IC1: Total économie équipements électricité (€) | ID1: Total économies équipements (kWh) | IE1: Total économies équipements (m3) | IF1: Total économies équipements (€) | IG1: Total économies équipements (Kg CO²) | IH1: Economies chauffage Ecogestes (kWh) | II1: Economies chauffage Ecogestes (€) | IJ1: Economies eau Ecogestes (kWh) | IK1: Economies eau Ecogestes (m3) | IL1: Economies eau Ecogestes (€) | IM1: Economies électricité Ecogestes (kWh) | IN1: Economies électricité Ecogestes (m3) | IO1: Economies électricité Ecogestes (€) | IP1: Total économie écogestes (kWh) | IQ1: Total économie écogestes (m3) | IR1: Total économie écogestes (€) | IS1: Total économie écogestes (Kg CO²) | IT1: Economie Totale ecogestes + équipements (kWh) | IU1: Economie Totale ecogestes + équipements (m3) | IV1: Economie Totale ecogestes + équipements (€) | IW1: Economie Totale ecogestes + équipements (Kg CO2) | IX1: Avertissement | IY1: InstallEqu 1 | IZ1: InstallEqu 2 | JA1: InstallEqu 3 | JB1: InstallEqu 4 | JC1: InstallEqu 5 | JD1: InstallEqu 6 | JE1: InstallEqu 7 | JF1: InstallEqu 8 | JG1: InstallEqu 9 | JH1: InstallEqu 10 | JI1: InstallEqu 11 | JJ1: InstallEqu 12 | JK1: InstallEqu 13 | JL1: InstallEqu 14 | JM1: InstallEqu 15 | JN1: InstallEqu 16 | JO1: InstallEqu 17 | JP1: InstallEqu 18 | JQ1: InstallEqu 19 | JR1: InstallEqu 20 | JS1: Classification 1 | JT1: Classification 2 | JU1: Classification 3 | JV1: Difficulté 1 | JW1: Difficulté 2 | JX1: Difficulté 3 | JY1: Difficulté 4 | JZ1: Difficulté 5 | KA1: Difficulté 6 | KB1: Orientation 1 | KC1: Orientation 2 | KD1: Orientation 3 | KE1: Orientation 4 | KF1: Orientation 5 | KG1: Orientation 6 | KH1: Accord suivi
A2: =IF('Données ménage'!D10<>"",'Données ménage'!D10,"-") -> - | B2: =IF('Données ménage'!D9<>"",'Données ménage'!D9,"-") -> - | C2: =IF('Données ménage'!H9="","",'Données ménage'!H9) ->  | D2: =IF('Données ménage'!D11<>"",'Données ménage'!D11,"-") -> - | E2: =IF('Données ménage'!D12<>"",'Données ménage'!D12,"-") -> - | F2: =IF('Données ménage'!D12<>"",'Données ménage'!H11,"-") -> - | G2: =IF('Données ménage'!D13="","-",'Données ménage'!D13) -> - | H2: =IF('Données ménage'!H13="","-",'Données ménage'!H13) -> - | I2: =IF('Données ménage'!D14="","-",'Données ménage'!D14) -> - | J2: =IF('Données ménage'!H14="","-",'Données ménage'!H14) -> - | K2: =IF('Données ménage'!D15="","-",'Données ménage'!D15) -> - | L2: =IF('Données ménage'!H15="","-",'Données ménage'!H15) -> - | M2: =IF('Données bâti'!I25<>"",'Données bâti'!I25,"-") -> Non | N2: =IF('Données bâti'!G37<>"",'Données bâti'!G37,"-") -> Non | O2: =TODAY() -> 2023-07-21 | P2: =IF('Données ménage'!D20<>"",'Données ménage'!D20,"-") -> Amélie LOMBARD / ROY MATHIS | Q2: =IF('Données ménage'!H20<>"",'Données ménage'!H20,"") ->  | R2: =IF('Données ménage'!D22="","-",'Données ménage'!D22) -> 2023-07-21 | S2: =IF('Données ménage'!D38<>"",'Données ménage'!D38,"-") -> Locataire social | T2: =IF('Données ménage'!G38="","-",'Données ménage'!G38) -> VOSGELIS | U2: =IF('Données ménage'!D39="","-",'Données ménage'!D39) -> - | V2: =IF('Données ménage'!D27="","-",'Données ménage'!D27) -> - | W2: =IF('Données ménage'!D28="","-",'Données ménage'!D28) -> - | X2: =IF('Données ménage'!D29="","-",'Données ménage'!D29) -> - | Y2: =IF('Données ménage'!H27<>"",'Données ménage'!H27,"-") -> - | Z2: =IF('Données ménage'!D30="","-",'Données ménage'!D30) -> - | AA2: =IF('Données ménage'!G30="","-",'Données ménage'!G30) -> - | AB2: =IF('Données ménage'!G31="","-",'Données ménage'!G31) -> - | AC2: =IF('Données ménage'!D32="","-",'Données ménage'!D32) -> - | AD2: =IF('Données ménage'!D48="","-",'Données ménage'!D48) -> - | AE2: =IF('Données ménage'!H48="","-",'Données ménage'!H48) -> - | AF2: =IF(AND('Données ménage'!H45="",'Données ménage'!H47=""),"-",IF(('Données ménage'!H45+'Données ménage'!H47)>3000,('Données ménage'!H45+'Données ménage'!H47),"-")) -> - | AG2: =IF('Données ménage'!D51="","-",'Données ménage'!D51) -> - | AH2: =IF(AG2="Non","Aucune aide",IF(AND('Données ménage'!H51<>"",AG2="Oui"),'Données ménage'!H51,"-")) -> - | AI2: =IF('Données ménage'!D52="Oui","En bénéficie",IF(AND('Données ménage'!D52="Non",'Données ménage'!H52="Eligible"),"Eligible et n'en bénéficie pas",IF(AND('Données ménage'!D52="Non",'Données ménage'!H52="Non éligible"),"Non éligible",IF(AND('Données ménage'!D52="",'Données ménage'!H52="Eligible"),"Eligible","Inconnu")))) -> Inconnu | AJ2: =IF('Données ménage'!H53="Non éligible","Non éligible",IF('Données ménage'!D52="Oui","Non",IF('Données ménage'!D53="oui","En bénéficie",IF(AND('Données ménage'!D53="non",'Données ménage'!H53="Eligible"),"Eligible et n'en bénéficie pas","Inconnu")))) -> Inconnu | AK2: ='Données ménage'!H54 -> Inconnu | AL2: ='Données ménage'!H55 -> Inconnu | AM2: =IF('Données bâti'!E13<>"",'Données bâti'!E13,"-") -> - | AN2: =IF('Données bâti'!E14<>"",'Données bâti'!E14,"-") -> - | AO2: =IF('Données bâti'!E16="","-",'Données bâti'!E16) -> - | AP2: =IF('Données bâti'!E17="","-",'Données bâti'!E17) -> Collectif | AQ2: =IF('Données bâti'!$M$13>0,'Données bâti'!$M$13,"-") -> > 50 lots | AR2: =IF(AND($AP$2="Collectif",'Données bâti'!M11<>""),'Données bâti'!M11,IF(AND($AP$2="Individuel",'Données bâti'!H12<>""),'Données bâti'!H12,"-")) -> - | AS2: =IF(AND(AP2="Collectif",'Données bâti'!M12<>""),'Données bâti'!M12,IF(AND(AP2="Individuel",'Données bâti'!H13<>""),'Données bâti'!H13,"-")) -> - | AT2: =IF('Données bâti'!I29="","-",IF('Données bâti'!I30="Oui","Bon","Dégradé")) -> Bon | AU2: =IF('Données bâti'!I30<>"",'Données bâti'!I30,"-") -> Oui | AV2: =IF('Données bâti'!I31="","-",IF('Données bâti'!I31="oui","Non","Oui")) -> Non | AW2: =IF(AND($AP$2="Individuel",'Données bâti'!H14<>""),'Données bâti'!H14,"-") -> - | AX2: =IF(AND($AP$2="Collectif",'Données bâti'!M14<>""),'Données bâti'!M14,IF(AND($AP$2="Individuel",'Données bâti'!H15<>""),'Données bâti'!H15,"-")) -> Oui | AY2: =IF(AND($AP$2="Collectif",'Données bâti'!N15<>""),'Données bâti'!N15,IF(AND($AP$2="Individuel",'Données bâti'!J15<>""),'Données bâti'!J15,"-")) -> < 5 ans | AZ2: =IF(AND($AP$2="Collectif",'Données bâti'!N16<>""),'Données bâti'!N16,IF(AND($AP$2="Individuel",'Données bâti'!J16<>""),'Données bâti'!J16,"-")) -> Isolation murs | BA2: =IF(AND($AP$2="Collectif",'Données bâti'!N17<>""),'Données bâti'!N17,IF(AND($AP$2="Individuel",'Données bâti'!J17<>""),'Données bâti'!J17,"")) -> Changement fenêtres | BB2: =IF(AND($AP$2="Collectif",'Données bâti'!N18<>""),'Données bâti'!N18,IF(AND($AP$2="Individuel",'Données bâti'!J18<>""),'Données bâti'!J18,"")) -> Ravalement de façade | BC2: =IF('Données bâti'!I26<>"",'Données bâti'!I26,"-") -> Pluvieux/ humide | BD2: =IF('Données bâti'!I27<>"",'Données bâti'!I27,"-") -> - | BE2: =IF('Données bâti'!I28<>"",'Données bâti'!I28*100,"-") -> 93 | BF2: =IF('Données bâti'!G47<>"",'Données bâti'!G47,"-") -> - | BG2: =IF(AND(BD2<10,'Données bâti'!G46<>""),'Données bâti'!G46,"-") -> - | BH2: =IF('Données bâti'!G48<>"",'Données bâti'!G48,"-") -> 60 | BI2: =IF('Données bâti'!G39<>"",'Données bâti'!G39,"-") -> - | BJ2: =IF('Données bâti'!G40<>"",'Données bâti'!G40,"-") -> Normal | BK2: =IF('Données bâti'!G41<>"",'Données bâti'!G41,"-") -> - | BL2: =IF('Données bâti'!G42<>"",'Données bâti'!G42,"-") -> - | BM2: =IF('Consommation et énergies'!W17<>"",'Consommation et énergies'!W17,"-") -> Non | BN2: =IF('Données bâti'!G43<>"",'Données bâti'!G43,"-") -> - | BO2: =IF('Chauffage ventilation'!G94<>"",'Chauffage ventilation'!G94,"-") -> Non | BP2: =IF('Chauffage ventilation'!H94<>"",'Chauffage ventilation'!H94,"-") -> - | BQ2: =IF('Données bâti'!G38<>"",'Données bâti'!G38,"-") -> - | BR2: =IF('Chauffage ventilation'!F25<>"",'Chauffage ventilation'!F25,"-") -> - | BS2: =IF('Chauffage ventilation'!F28<>"",'Chauffage ventilation'!F28,"-") -> - | BT2: =IF('Données bâti'!G60<>"",'Données bâti'!G60,"-") -> - | BU2: =IF('Données bâti'!G59="","-",'Données bâti'!G59) -> Non | BV2: =IF('Données bâti'!G45<>"",'Données bâti'!G45,"-") -> Bon | BW2: =IF('Chauffage ventilation'!F35<>"",'Chauffage ventilation'!F35,"-") -> - | BX2: =IF('Chauffage ventilation'!F37="Oui, en partie","en partie simple vitrage",IF('Chauffage ventilation'!F37="Non","Double vitrage",IF('Chauffage ventilation'!F37="Oui, toutes","Simple vitrage","-"))) -> Double vitrage | BY2: =IF('Chauffage ventilation'!F46<>"",'Chauffage ventilation'!F46,"-") -> - | BZ2: =IF('Chauffage ventilation'!F58<>"",'Chauffage ventilation'!F58,"-") -> - | CA2: =IF('Chauffage ventilation'!F69<>"",'Chauffage ventilation'!F69,"-") -> Non | CB2: =IF('Données bâti'!C51=TRUE,'Données bâti'!D51,"") ->  | CC2: =IF('Données bâti'!C52=TRUE,'Données bâti'!D52,"") ->  | CD2: =IF('Données bâti'!C53=TRUE,'Données bâti'!D53,"") ->  | CE2: =IF('Données bâti'!C54=TRUE,'Données bâti'!D54,"") ->  | CF2: =IF('Données bâti'!C55=TRUE,'Données bâti'!D55,"") ->  | CG2: =IF('Données bâti'!C56=TRUE,'Données bâti'!D56,"") ->  | CH2: =IF('Données bâti'!C57=TRUE,'Données bâti'!D57,"") ->  | CI2: =IF('Données bâti'!H51=TRUE,'Données bâti'!I51,"") ->  | CJ2: =IF('Données bâti'!H52=TRUE,'Données bâti'!I52,"") ->  | CK2: =IF('Données bâti'!H53=TRUE,'Données bâti'!I53,"") ->  | CL2: =IF('Données bâti'!H54=TRUE,'Données bâti'!I53,"") ->  | CM2: =IF('Données bâti'!H55=TRUE,'Données bâti'!I55,"") ->  | CN2: =IF('Données bâti'!H56=TRUE,'Données bâti'!I56,"") ->  | CO2: =IF('Données bâti'!H57=TRUE,'Données bâti'!I57,"") ->  | CP2: =IF(AND(CO2="",CN2="",CM2="",CL2="",CK2="",CJ2="",CI2="",CH2="",CG2="",CF2="",CE2="",CD2="",CC2="",CB2=""),"Aucune","") -> Aucune | CQ2: =IF('Consommation et énergies'!D8='Consommation et énergies'!AF101,"Non répertoriée",IF('Consommation et énergies'!D8<>"",'Consommation et énergies'!D8,"-")) -> - | CR2: =IF('Consommation et énergies'!D11='Consommation et énergies'!AF101,"Non répertoriée",IF('Consommation et énergies'!D11<>"",'Consommation et énergies'!D11,"-")) -> - | CS2: =IF('Consommation et énergies'!N11<>"",'Consommation et énergies'!N11,"-") -> - | CT2: =IF('Consommation et énergies'!D12='Consommation et énergies'!AF101,"Non répertoriée",IF('Consommation et énergies'!D12<>"",'Consommation et énergies'!D12,"-")) -> - | CU2: =IF('Consommation et énergies'!N8<>"",'Consommation et énergies'!N8,"-") -> - | CV2: =IF('Consommation et énergies'!N9<>"",'Consommation et énergies'!N9,"-") -> - | CW2: =IF('Chauffage ventilation'!G95="","-",IF('Chauffage ventilation'!G95="Oui","Non","Oui")) -> Oui | CX2: =IF('Consommation et énergies'!D10<>"",'Consommation et énergies'!D10,"-") -> - | CY2: =IF('Chauffage ventilation'!L70<>"",'Chauffage ventilation'!L70,"-") -> - | CZ2: =IF('Consommation et énergies'!N10<>"",'Consommation et énergies'!N10,"-") -> - | DA2: =IF('Consommation et énergies'!D14<>"",'Consommation et énergies'!D14,"-") -> - | DB2: =IF('Consommation et énergies'!N15<>"",'Consommation et énergies'!N15,"-") -> - | DC2: =IF('Consommation et énergies'!N14='Consommation et énergies'!AN101,"Non répertorié",IF('Consommation et énergies'!N14<>"",'Consommation et énergies'!N14,"-")) -> - | DD2: =IF('Consommation et énergies'!W14<>"",'Consommation et énergies'!W14,"-") -> - | DE2: =IF('Consommation et énergies'!W15<>"",'Consommation et énergies'!W15,"-") -> - | DF2: =IF(Eau!E13<>"",Eau!E13,"-") -> - | DG2: =IF(Eau!L12="","-",Eau!L12) -> - | DH2: =IF(Eau!D66=Eau!AG90,"Oui",IF(Eau!D67=Eau!AG90,"Oui",IF(Eau!D68=Eau!AG90,"Oui","-"))) -> - | DI2: =IF(Eau!F62<>"",Eau!F62,"-") -> Non | DJ2: ='Données ménage'!U100 -> Non éligible | DK2: =IF('Consommation et énergies'!W8<>"",'Consommation et énergies'!W8,"-") -> - | DL2: =IF('Consommation et énergies'!P68<>"",'Consommation et énergies'!P68,"-") -> - | DM2: =IF('Consommation et énergies'!W66<>"",'Consommation et énergies'!W66,"-") -> - | DN2: =IF('Consommation et énergies'!M66<>"",'Consommation et énergies'!M66,"-") -> - | DO2: =IF('Consommation et énergies'!W11<>"",'Consommation et énergies'!W11,"-") -> - | DP2: =IF('Consommation et énergies'!D61<>"",'Consommation et énergies'!D61,"-") -> Individuel | DQ2: =IF('Consommation et énergies'!P70<>"",'Consommation et énergies'!P70,"-") -> - | DR2: =IF('Consommation et énergies'!P71<>"",'Consommation et énergies'!P71,"-") -> - | DS2: =IF('Consommation et énergies'!D26<>"",'Consommation et énergies'!D26,"-") -> - | DT2: =IF('Consommation et énergies'!N26<>"",'Consommation et énergies'!N26,"-") -> - | DU2: =IF('Consommation et énergies'!X26<>"",'Consommation et énergies'!X26,"-") -> - | DV2: =IF('Consommation et énergies'!D28<>"",'Consommation et énergies'!D28,"-") -> - | DW2: =IF('Consommation et énergies'!P28='Consommation et énergies'!AX97,"Non répertorié",IF('Consommation et énergies'!P28<>"",'Consommation et énergies'!P28,"-")) -> - | DX2: =IF('Consommation et énergies'!P29<>"",'Consommation et énergies'!P29,"-") -> - | DY2: =IF('Consommation et énergies'!D8<>"",'Consommation et énergies'!AF155,"-") -> - | DZ2: =IF(DY2<>"-",'Consommation et énergies'!AF156,"-") -> - | EA2: =IF(AND('Consommation et énergies'!P30<>"",'Consommation et énergies'!P30<>"Renseigner les consos",'Consommation et énergies'!P30<>"Indiquer une période",'Consommation et énergies'!P30<>"Renseigner les cases jaunes"),'Consommation et énergies'!P30,"-") -> - | EB2: =IF('Consommation et énergies'!Z30<>0,'Consommation et énergies'!Z30,"-") -> - | EC2: =IF(EB2<>"-",'Consommation et énergies'!Z31,"-") -> - | ED2: =IF(EG2="-","-",IF('Consommation et énergies'!D45<>"",'Consommation et énergies'!D45,"-")) -> - | EE2: =IF('Consommation et énergies'!N43<>"",'Consommation et énergies'!N43,"-") -> - | EF2: =IF('Consommation et énergies'!X43<>"",'Consommation et énergies'!X43,"-") -> - | EG2: =IF('Consommation et énergies'!D43<>"",'Consommation et énergies'!D43,"-") -> - | EH2: =IF('Consommation et énergies'!O45<>"",'Consommation et énergies'!O45,"-") -> - | EI2: =IF('Consommation et énergies'!O48<>"",'Consommation et énergies'!O48,"-") -> - | EJ2: =IF('Consommation et énergies'!O46='Consommation et énergies'!AX97,"Non répertorié",IF('Consommation et énergies'!O46<>"",'Consommation et énergies'!O46,"-")) -> - | EK2: =IF('Consommation et énergies'!O47<>"",'Consommation et énergies'!O47,"-") -> - | EL2: =IF(AND('Consommation et énergies'!O49<>"",'Consommation et énergies'!O49<>"Renseigner les consos",'Consommation et énergies'!O49<>"Indiquer une période",'Consommation et énergies'!O49<>"Renseigner les cases jaunes"),'Consommation et énergies'!O49,"-") -> - | EM2: =IF('Consommation et énergies'!Z47<>0,'Consommation et énergies'!Z47,"-") -> - | EN2: =IF(Indicateurs!EM2<>"-",'Consommation et énergies'!Z48,"-") -> - | EO2: =IF(AF2="-","-",IF(AND(E68<>"-",AF2>3000),(F68/AF2)*100,"-")) -> - | EP2: =IF(AND('Chauffage ventilation'!I21<>"",'Données bâti'!E14>0),'Chauffage ventilation'!I21/'Données bâti'!E14,IF(AND('Chauffage ventilation'!K21<>"",'Données bâti'!E14>0),'Chauffage ventilation'!K21/'Données bâti'!E14,"-")) -> - | EQ2: =IF(AND('Chauffage ventilation'!I21="",'Chauffage ventilation'!K21=""),"",IF('Chauffage ventilation'!K21="","(réel)","(théorique)")) -> (théorique) | ER2: =H68 -> Non mesurable | ES2: =IF('Consommation et énergies'!P59<>"",'Consommation et énergies'!P59,"-") -> - | ET2: ='Consommation et énergies'!Y60 -> - | EU2: =IF(Froid!F8="Non","Non équipé",IF(Froid!F8="","-",IF(Froid!E13="oui","Moins de 5 ans",IF(AND(Froid!E13="non",Froid!F13=Froid!X91),Froid!G13,IF(AND(Froid!E13="non",Froid!F13=Froid!X92),"Plus de 5 ans","-"))))) -> - | EV2: =IF(Froid!N13<>"","réfrigérateur","") ->  | EW2: =IF(Froid!F33="Non","Non équipé",IF(Froid!F33="","-",IF(Froid!E38="Oui","Moins de 5 ans",IF(AND(Froid!E38="non",Froid!F38=Froid!Y38),Froid!G38,IF(AND(Froid!E38="non",Froid!F38=Froid!Z38),"Plus de 5 ans","-"))))) -> - | EX2: =IF(Froid!N38<>"","congélateur","") ->  | EY2: =IF(Froid!F58="Non","Non équipé",IF(Froid!F58="","-",IF(Froid!E63="Oui","Moins de 5 ans",IF(AND(Froid!E63="non",Froid!F63=Froid!Y63),Froid!G63,IF(AND(Froid!E63="non",Froid!F63=Froid!Z63),"Plus de 5 ans","-"))))) -> - | EZ2: =IF(Froid!N63<>"","combiné froid","") ->  | FA2: =IF('Lavage sechage'!E9="Non","Non équipé",IF('Lavage sechage'!E9="","-",IF('Lavage sechage'!D13="Oui","Moins de 5 ans",'Lavage sechage'!F13))) -> - | FB2: =IF('Lavage sechage'!J13<>"","lave-linge","") ->  | FC2: =IF('Lavage sechage'!E35="Non","Non équipé",IF('Lavage sechage'!E35="","-",IF('Lavage sechage'!D39="Oui","Moins de 5 ans",'Lavage sechage'!F39))) -> - | FD2: =IF('Lavage sechage'!J39<>"","Sèche-linge","") ->  | FE2: =IF('Lavage sechage'!E57="Non","Non équipé",IF('Lavage sechage'!E57="","-",IF('Lavage sechage'!D61="Oui","Moins de 5 ans",'Lavage sechage'!F61))) -> - | FF2: =IF('Lavage sechage'!J61<>"","lave-vaisselle","") ->  | FG2: =IF(AND(FF2="",FD2="",FB2="",EZ2="",EX2="",EV2=""),"Aucun","") -> Aucun | FH2: =IF(Veilles!D9<>"",Veilles!D9,"-") -> - | FI2: =IF(Eclairage!J14<>"",Eclairage!J14,"-") -> - | FJ2: =IF(Eclairage!F10="","-",IF(Eclairage!F10=Eclairage!U39,"Non",IF(Eclairage!F10=Eclairage!U40,"Oui, en partie",IF(Eclairage!F10=Eclairage!U41,"Oui, toutes")))) -> - | FK2: =IF(Veilles!D10<>"",Veilles!D10,"-") -> - | FL2: =IF('liste preconisations'!A5="","",IF(OR('liste preconisations'!A5="Total général",'liste preconisations'!A5="(vide)"),"",'liste preconisations'!A5)) ->  | FM2: =IF('liste preconisations'!A6="","",IF(OR('liste preconisations'!A6="Total général",'liste preconisations'!A6="(vide)"),"",'liste preconisations'!A6)) ->  | FN2: =IF('liste preconisations'!A7="","",IF(OR('liste preconisations'!A7="Total général",'liste preconisations'!A7="(vide)"),"",'liste preconisations'!A7)) ->  | FO2: =IF('liste preconisations'!A8="","",IF(OR('liste preconisations'!A8="Total général",'liste preconisations'!A8="(vide)"),"",'liste preconisations'!A8)) ->  | FP2: =IF('liste preconisations'!A9="","",IF(OR('liste preconisations'!A9="Total général",'liste preconisations'!A9="(vide)"),"",'liste preconisations'!A9)) ->  | FQ2: =IF('liste preconisations'!A10="","",IF(OR('liste preconisations'!A10="Total général",'liste preconisations'!A10="(vide)"),"",'liste preconisations'!A10)) ->  | FR2: =IF('liste preconisations'!A11="","",IF(OR('liste preconisations'!A11="Total général",'liste preconisations'!A11="(vide)"),"",'liste preconisations'!A11)) ->  | FS2: =IF('liste preconisations'!A12="","",IF(OR('liste preconisations'!A12="Total général",'liste preconisations'!A12="(vide)"),"",'liste preconisations'!A12)) ->  | FT2: =IF('liste preconisations'!D5="","",IF(OR('liste preconisations'!D5="Total général",'liste preconisations'!D5="(vide)"),"",'liste preconisations'!D5)) ->  | FU2: =IF('liste preconisations'!D6="","",IF(OR('liste preconisations'!D6="Total général",'liste preconisations'!D6="(vide)"),"",'liste preconisations'!D6)) ->  | FV2: =IF('liste preconisations'!D7="","",IF(OR('liste preconisations'!D7="Total général",'liste preconisations'!D7="(vide)"),"",'liste preconisations'!D7)) ->  | FW2: =IF('liste preconisations'!D8="","",IF(OR('liste preconisations'!D8="Total général",'liste preconisations'!D8="(vide)"),"",'liste preconisations'!D8)) ->  | FX2: =IF('liste preconisations'!D9="","",IF(OR('liste preconisations'!D9="Total général",'liste preconisations'!D9="(vide)"),"",'liste preconisations'!D9)) ->  | FY2: =IF('liste preconisations'!G5="","",IF(OR('liste preconisations'!G5="Total général",'liste preconisations'!G5="(vide)"),"",'liste preconisations'!G5)) ->  | FZ2: =IF('liste preconisations'!G6="","",IF(OR('liste preconisations'!G6="Total général",'liste preconisations'!G6="(vide)"),"",'liste preconisations'!G6)) ->  | GA2: =IF('liste preconisations'!G7="","",IF(OR('liste preconisations'!G7="Total général",'liste preconisations'!G7="(vide)"),"",'liste preconisations'!G7)) ->  | GB2: =IF('liste preconisations'!G8="","",IF(OR('liste preconisations'!G8="Total général",'liste preconisations'!G8="(vide)"),"",'liste preconisations'!G8)) ->  | GC2: =IF('liste preconisations'!G9="","",IF(OR('liste preconisations'!G9="Total général",'liste preconisations'!G9="(vide)"),"",'liste preconisations'!G9)) ->  | GD2: =IF('liste preconisations'!G10="","",IF(OR('liste preconisations'!G10="Total général",'liste preconisations'!G10="(vide)"),"",'liste preconisations'!G10)) ->  | GE2: =IF('liste preconisations'!G11="","",IF(OR('liste preconisations'!G11="Total général",'liste preconisations'!G11="(vide)"),"",'liste preconisations'!G11)) ->  | GF2: =IF('liste preconisations'!J5="","",IF(OR('liste preconisations'!J5="Total général",'liste preconisations'!J5="(vide)"),"",'liste preconisations'!J5)) ->  | GG2: =IF('liste preconisations'!J6="","",IF(OR('liste preconisations'!J6="Total général",'liste preconisations'!J6="(vide)"),"",'liste preconisations'!J6)) ->  | GH2: =IF('liste preconisations'!J7="","",IF(OR('liste preconisations'!J7="Total général",'liste preconisations'!J7="(vide)"),"",'liste preconisations'!J7)) ->  | GI2: =IF('liste preconisations'!J8="","",IF(OR('liste preconisations'!J8="Total général",'liste preconisations'!J8="(vide)"),"",'liste preconisations'!J8)) ->  | GJ2: =IF('liste preconisations'!J9="","",IF(OR('liste preconisations'!J9="Total général",'liste preconisations'!J9="(vide)"),"",'liste preconisations'!J9)) ->  | GK2: =IF('liste preconisations'!M5="","",IF(OR('liste preconisations'!M5="Total général",'liste preconisations'!M5="(vide)"),"",'liste preconisations'!M5)) ->  | GL2: =IF('liste preconisations'!M6="","",IF(OR('liste preconisations'!M6="Total général",'liste preconisations'!M6="(vide)"),"",'liste preconisations'!M6)) ->  | GM2: =IF('liste preconisations'!M7="","",IF(OR('liste preconisations'!M7="Total général",'liste preconisations'!M7="(vide)"),"",'liste preconisations'!M7)) ->  | GN2: =IF('liste preconisations'!M8="","",IF(OR('liste preconisations'!M8="Total général",'liste preconisations'!M8="(vide)"),"",'liste preconisations'!M8)) ->  | GO2: =IF('liste preconisations'!M9="","",IF(OR('liste preconisations'!M9="Total général",'liste preconisations'!M9="(vide)"),"",'liste preconisations'!M9)) ->  | GP2: =IF('liste preconisations'!P5="","",IF(OR('liste preconisations'!P5="Total général",'liste preconisations'!P5="(vide)"),"",'liste preconisations'!P5)) ->  | GQ2: =IF('liste preconisations'!P6="","",IF(OR('liste preconisations'!P6="Total général",'liste preconisations'!P6="(vide)"),"",'liste preconisations'!P6)) ->  | GR2: =IF('liste preconisations'!P7="","",IF(OR('liste preconisations'!P7="Total général",'liste preconisations'!P7="(vide)"),"",'liste preconisations'!P7)) ->  | GS2: =IF('liste preconisations'!P8="","",IF(OR('liste preconisations'!P8="Total général",'liste preconisations'!P8="(vide)"),"",'liste preconisations'!P8)) ->  | GT2: =IF('liste preconisations'!P9="","",IF(OR('liste preconisations'!P9="Total général",'liste preconisations'!P9="(vide)"),"",'liste preconisations'!P9)) ->  | GU2: =IF('liste preconisations'!P10="","",IF(OR('liste preconisations'!P10="Total général",'liste preconisations'!P10="(vide)"),"",'liste preconisations'!P10)) ->  | GV2: =IF('liste preconisations'!P11="","",IF(OR('liste preconisations'!P11="Total général",'liste preconisations'!P11="(vide)"),"",'liste preconisations'!P11)) ->  | GW2: =IF('liste preconisations'!P12="","",IF(OR('liste preconisations'!P12="Total général",'liste preconisations'!P12="(vide)"),"",'liste preconisations'!P12)) ->  | GX2: =IF('liste preconisations'!P13="","",IF(OR('liste preconisations'!P13="Total général",'liste preconisations'!P13="(vide)"),"",'liste preconisations'!P13)) ->  | GY2: ='Recap visite'!H37 -> 0 | GZ2: =SUM('Recap visite'!I7:I14)-SUM('Recap visite'!M7:M14) -> 0 | HA2: =SUM('Recap visite'!K7:K14)-SUM('Recap visite'!N7:N14) -> 0 | HB2: =SUM('Recap visite'!I19:I23)-SUM('Recap visite'!M19:M23) -> 0 | HC2: =SUM('Recap visite'!J19:J23)-SUM('Recap visite'!L19:L23) -> 0 | HD2: =SUM('Recap visite'!K19:K23)-SUM('Recap visite'!N19:N23) -> 0 | HE2: =SUM('Recap visite'!I28:I34)-SUM('Recap visite'!M28:M34) -> 0 | HF2: =SUM('Recap visite'!J28:J34)-SUM('Recap visite'!L28:L34) -> 0 | HG2: =SUM('Recap visite'!K28:K34)-SUM('Recap visite'!N28:N34) -> 0 | HH2: =SUM(GZ2,HB2,HE2) -> 0 | HI2: =SUM(HC2,HF2) -> 0 | HJ2: =SUM(HA2,HD2,HG2) -> 0 | HK2: =SUM('Recap visite'!E7:E14,'Recap visite'!E19:E23,'Recap visite'!E28:E34) -> 0 | HL2: ='Recap visite'!P37 -> 0 | HM2: =SUM('Recap visite'!M7:M14) -> 0 | HN2: =SUM('Recap visite'!N7:N14) -> 0 | HO2: ='Recap visite'!Q15 -> 0 | HP2: =SUM('Recap visite'!M19:M23) -> 0 | HQ2: =SUM('Recap visite'!L19:L23) -> 0 | HR2: =SUM('Recap visite'!N19:N23) -> 0 | HS2: ='Recap visite'!Q24 -> 0 | HT2: =SUM('Recap visite'!M28:M34) -> 0 | HU2: =SUM('Recap visite'!N28:N34) -> 0 | HV2: ='Recap visite'!Q35 -> 0 | HW2: ='Recap visite'!M37 -> 0 | HX2: ='Recap visite'!L37 -> 0 | HY2: ='Recap visite'!N37 -> 0 | HZ2: ='Recap visite'!Q37 -> 0 | IA2: =SUM('Recap visite'!K7:K11) -> 0 | IB2: =SUM('Recap visite'!K19:K23) -> 0 | IC2: =SUM('Recap visite'!K28:K34) -> 0 | ID2: ='Recap visite'!I37 -> 0 | IE2: ='Recap visite'!J37 -> 0 | IF2: ='Recap visite'!K37 -> 0 | IG2: ='Recap visite'!R37 -> 0 | IH2: =SUM('Recap visite'!I42:I46) -> 0 | II2: =SUM('Recap visite'!K42:K46) -> 0 | IJ2: =SUM('Recap visite'!I51:I55) -> 0 | IK2: =SUM('Recap visite'!J51:J55) -> 0 | IL2: =SUM('Recap visite'!K51:K55) -> 0 | IM2: =SUM('Recap visite'!I60:I68) -> 0 | IN2: =SUM('Recap visite'!J60:J68) -> 0 | IO2: =SUM('Recap visite'!K60:K68) -> 0 | IP2: =SUM('Recap visite'!I42:I46,'Recap visite'!I51:I55,'Recap visite'!I60:I68) -> 0 | IQ2: =SUM('Recap visite'!J42:J46,'Recap visite'!J51:J55,'Recap visite'!J60:J68) -> 0 | IR2: =SUM('Recap visite'!K42:K46,'Recap visite'!K51:K55,'Recap visite'!K60:K68) -> 0 | IS2: ='Recap visite'!R70 -> 0 | IT2: =ID2+IP2 -> 0 | IU2: =IE2+IQ2 -> 0 | IV2: =IF2+IR2 -> 0 | IW2: ='Recap visite'!R70+'Recap visite'!R37 -> 0 | IX2: =IF(AND('Consommation et énergies'!W8="Collectif",'Consommation et énergies'!D61="Collectif"),"Attention, vos charges d'eau et de chauffage étant collectives, les économies estimées sur les consommations de chauffage et d'eau sont valables à l'échelle de l'immeuble et non du logement. Elles sont indiquées à titre informatif",IF(AND('Consommation et énergies'!W8="Collectif",'Consommation et énergies'!D61<>"Collectif"),"Attention, vos charges de chauffage étant réparties collectivement, les économies éstimées sur les consommations de chauffage sont valables à l'échelle de l'immeuble et non du logement. Elles sont indiquées à titre informatif",IF(AND('Consommation et énergies'!W8<>"Collectif",'Consommation et énergies'!D61="Collectif"),"Attention, vos charges d'eau froide étant réparties collectivement, les économies éstimées sur les consommations d'eau sont valables à l'échelle de l'immeuble et non du logement. Elles sont indiquées à titre informatif",""))) ->  | IY2: =IF(FL2="","",IF(VLOOKUP(FL2,'Recap visite'!$C$7:$P$14,3,0)>0,"("&VLOOKUP(FL2,'Recap visite'!$C$7:$P$14,3,0)&" équipement(s) offert(s))","")) ->  | IZ2: =IF(FM2="","",IF(VLOOKUP(FM2,'Recap visite'!$C$7:$P$14,3,0)>0,"("&VLOOKUP(FM2,'Recap visite'!$C$7:$P$14,3,0)&" équipement(s) offert(s))","")) ->  | JA2: =IF(FN2="","",IF(VLOOKUP(FN2,'Recap visite'!$C$7:$P$14,3,0)>0,"("&VLOOKUP(FN2,'Recap visite'!$C$7:$P$14,3,0)&" équipement(s) offert(s))","")) ->  | JB2: =IF(FO2="","",IF(VLOOKUP(FO2,'Recap visite'!$C$7:$P$14,3,0)>0,"("&VLOOKUP(FO2,'Recap visite'!$C$7:$P$14,3,0)&" équipement(s) offert(s))","")) ->  | JC2: =IF(FP2="","",IF(VLOOKUP(FP2,'Recap visite'!$C$7:$P$14,3,0)>0,"("&VLOOKUP(FP2,'Recap visite'!$C$7:$P$14,3,0)&" équipement(s) offert(s))","")) ->  | JD2: =IF(FQ2="","",IF(VLOOKUP(FQ2,'Recap visite'!$C$7:$P$14,3,0)>0,"("&VLOOKUP(FQ2,'Recap visite'!$C$7:$P$14,3,0)&" équipement(s) offert(s))","")) ->  | JE2: =IF(FR2="","",IF(VLOOKUP(FR2,'Recap visite'!$C$7:$P$14,3,0)>0,"("&VLOOKUP(FR2,'Recap visite'!$C$7:$P$14,3,0)&" équipement(s) offert(s))","")) ->  | JF2: =IF(FS2="","",IF(VLOOKUP(FS2,'Recap visite'!$C$7:$P$14,3,0)>0,"("&VLOOKUP(FS2,'Recap visite'!$C$7:$P$14,3,0)&" équipement(s) offert(s))","")) ->  | JG2: =IF(FT2="","",IF(VLOOKUP(FT2,'Recap visite'!$C$19:$P$23,3,0)>0,"("&VLOOKUP(FT2,'Recap visite'!$C$19:$P$23,3,0)&" équipement(s) offert(s))","")) ->  | JH2: =IF(FU2="","",IF(VLOOKUP(FU2,'Recap visite'!$C$19:$P$23,3,0)>0,"("&VLOOKUP(FU2,'Recap visite'!$C$19:$P$23,3,0)&" équipement(s) offert(s))","")) ->  | JI2: =IF(FV2="","",IF(VLOOKUP(FV2,'Recap visite'!$C$19:$P$23,3,0)>0,"("&VLOOKUP(FV2,'Recap visite'!$C$19:$P$23,3,0)&" équipement(s) offert(s))","")) ->  | JJ2: =IF(FW2="","",IF(VLOOKUP(FW2,'Recap visite'!$C$19:$P$23,3,0)>0,"("&VLOOKUP(FW2,'Recap visite'!$C$19:$P$23,3,0)&" équipement(s) offert(s))","")) ->  | JK2: =IF(FX2="","",IF(VLOOKUP(FX2,'Recap visite'!$C$19:$P$23,3,0)>0,"("&VLOOKUP(FX2,'Recap visite'!$C$19:$P$23,3,0)&" équipement(s) offert(s))","")) ->  | JL2: =IF(FY2="","",IF(VLOOKUP(FY2,'Recap visite'!$C$28:$P$34,3,0)>0,"("&VLOOKUP(FY2,'Recap visite'!$C$28:$P$34,3,0)&" équipement(s) offert(s))","")) ->  | JM2: =IF(FZ2="","",IF(VLOOKUP(FZ2,'Recap visite'!$C$28:$P$34,3,0)>0,"("&VLOOKUP(FZ2,'Recap visite'!$C$28:$P$34,3,0)&" équipement(s) offert(s))","")) ->  | JN2: =IF(GA2="","",IF(VLOOKUP(GA2,'Recap visite'!$C$28:$P$34,3,0)>0,"("&VLOOKUP(GA2,'Recap visite'!$C$28:$P$34,3,0)&" équipement(s) offert(s))","")) ->  | JO2: =IF(GB2="","",IF(VLOOKUP(GB2,'Recap visite'!$C$28:$P$34,3,0)>0,"("&VLOOKUP(GB2,'Recap visite'!$C$28:$P$34,3,0)&" équipement(s) offert(s))","")) ->  | JP2: =IF(GC2="","",IF(VLOOKUP(GC2,'Recap visite'!$C$28:$P$34,3,0)>0,"("&VLOOKUP(GC2,'Recap visite'!$C$28:$P$34,3,0)&" équipement(s) offert(s))","")) ->  | JQ2: =IF(GD2="","",IF(VLOOKUP(GD2,'Recap visite'!$C$28:$P$34,3,0)>0,"("&VLOOKUP(GD2,'Recap visite'!$C$28:$P$34,3,0)&" équipement(s) offert(s))","")) ->  | JR2: =IF(GE2="","",IF(VLOOKUP(GE2,'Recap visite'!$C$28:$P$34,3,0)>0,"("&VLOOKUP(GE2,'Recap visite'!$C$28:$P$34,3,0)&" équipement(s) offert(s))","")) ->  | JS2: =IF(Accompagnement!$N$17=1,Accompagnement!C16,"") ->  | JT2: =IF(Accompagnement!$N$17=2,Accompagnement!C17,"") ->  | JU2: =IF(Accompagnement!$N$17=3,Accompagnement!C18,"") ->  | JV2: =IF(Accompagnement!N8=TRUE,Accompagnement!C8,"") ->  | JW2: =IF(Accompagnement!N9=TRUE,Accompagnement!C9,"") ->  | JX2: =IF(Accompagnement!N10=TRUE,Accompagnement!C10,"") ->  | JY2: =IF(Accompagnement!N11=TRUE,Accompagnement!C11,"") ->  | JZ2: =IF(Accompagnement!N12=TRUE,Accompagnement!C12,"") ->  | KA2: =IF(Accompagnement!N13=TRUE,Accompagnement!D13,"") ->  | KB2: =IF(Accompagnement!N25=TRUE,Accompagnement!C25,"") ->  | KC2: =IF(Accompagnement!N26=TRUE,"Opérateur travaux:"&" "&Accompagnement!E26,"") ->  | KD2: =IF(Accompagnement!N27=TRUE,Accompagnement!C27,"") ->  | KE2: =IF(Accompagnement!N28=TRUE,Accompagnement!C28,"") ->  | KF2: =IF(Accompagnement!N29=TRUE,Accompagnement!C29,"") ->  | KG2: =IF(Accompagnement!N30=TRUE,Accompagnement!D30,"") ->  | KH2: =IF(Accompagnement!N32=TRUE,"oui","non") -> non
B36: Données à ne pas modifier
B37: Récap consos théoriques | D37: kWh | E37: m3 | F37: €
B38: Eau froide | E38: =Eau!X171 ->  | F38: =E38*Eau!L9 -> 
B39: Eau chaude | D39: =Eau!X173 ->  | E39: =Eau!X172 ->  | F39: =E39*Eau!L10 -> 
B40: Chauffage | D40: =IF('Chauffage ventilation'!I21="",'Chauffage ventilation'!K21,'Chauffage ventilation'!I21) -> INDIQUER LA SURFACE DU LOGEMENT, LA HAUTEUR SOUS PLAFOND ET L'ANNEE DE CONSTRUCTION DANS L'ONGLET 'Données bâti' | F40: =D40*'Consommation et énergies'!AF159 -> 
B41: Cuisson | D41: =VLOOKUP('Données ménage'!D27,Veilles!Q64:U78,5,0) ->  | F41: =D41*VLOOKUP('Consommation et énergies'!D12,'Consommation et énergies'!AF111:AG121,2,0) -> 
B42: Electricité spécifique | D42: =SUM(Veilles!X63:X66)-Veilles!Y66 ->  | F42: =Q22*'Consommation et énergies'!Z28 -> 0
B43: Total | D43: =SUM(D38:D42) ->  | F43: =SUM(F38:F42) -> 
B45: Conso electrique | D45: =Veilles!X69 -> 
B46: Chauffage inclus | C46: =IF(OR('Consommation et énergies'!AF155="Electricité spécifique + chauffage + ECS",'Consommation et énergies'!AF155="Electricité spécifique + chauffage"),"oui","non") -> non
B47: Hors chauffage | C47: =IF(C46="oui",D45-D40,0) -> 0
B48: ECS inclus | C48: =IF('Consommation et énergies'!D11='Consommation et énergies'!AF95,"Oui","Non") -> Non
B49: Hors ECS | C49: =IF(C48="Oui",D45-D39,0) -> 0
B51: Electricité (chauffage) | D51: ='MAJ Données'!C121 -> 180
B52: Electricité (ECS) | D52: ='MAJ Données'!C122 -> 40
B53: Electricité spécifique | D53: ='MAJ Données'!C123 -> 84
B54: Gaz naturel | D54: ='MAJ Données'!C124 -> 234
B55: Gaz propane en citerne | D55: ='MAJ Données'!C125 -> 274
B56: Gaz bouteille | D56: ='MAJ Données'!C126 -> 274
B57: Fioul domestique | D57: ='MAJ Données'!C127 -> 300
B58: Réseau de chaleur | D58: ='MAJ Données'!C128 -> 160
B59: Bois (granulés) | D59: ='MAJ Données'!C129 -> 13
B60: Bois (bûches) | D60: ='MAJ Données'!C130 -> 13
B61: Aucune
B62: Autre
B63: Inconnue
B64: Chauffage d'appoint uniquement
B66: Evaluation consommation
B67: Conso chauffage | C67: Conso ECS | D67: Conso Elec | E67: Conso totale kWh | F67: Conso totale € | G67: Moyenne théorique (kWh) | H67: Rapport moyenne
B68: =IF(OR('Consommation et énergies'!AJ155="oui",'Consommation et énergies'!AJ156="oui"),"oui","non") -> non | C68: =IF(OR('Consommation et énergies'!AK155="oui",'Consommation et énergies'!AK156="oui"),"oui","non") -> non | D68: =IF('Consommation et énergies'!Z30>0,"oui","non") -> non | E68: =IF(AND($B$68="oui",$C$68="oui",$D$68="oui",$EM$2="-"),EA2,IF(AND($B$68="oui",$C$68="oui",$D$68="oui",$EM$2<>"-"),EL2+EA2,"-")) -> - | F68: =IF(AND($B$68="oui",$C$68="oui",$D$68="oui",$EM$2="-"),EB2,IF(AND($B$68="oui",$C$68="oui",$D$68="oui",$EM$2<>"-"),EM2+EB2,"-")) -> - | G68: ='Chauffage ventilation'!AG133+Eau!W173+Indicateurs!D41+Indicateurs!D42 ->  | H68: =IF(E68="-","Non mesurable",IF(E68<(85%*G68),"Faible",IF(E68>(110%*G68),"Importante","Normale"))) -> Non mesurable

Sheet liste preconisations
A1: Equipements Chauffage | D1: Equipements Eau | G1: Equipements Electricité | J1: Ecogestes Chauffage | M1: Ecogestes Eau | P1: Ecogestes Electricité
A2: Conseillé ? | B2: oui | D2: Conseillé ? | E2: oui | G2: Conseillé ? | H2: oui | J2: Conseillé ? | K2: oui | M2: Conseillé ? | N2: oui | P2: Conseillé ? | Q2: oui
A4: Étiquettes de lignes | D4: Étiquettes de lignes | G4: Étiquettes de lignes | J4: Étiquettes de lignes | M4: Étiquettes de lignes | P4: Étiquettes de lignes
A5: Total général | D5: Total général | G5: Total général | J5: Total général | M5: Total général | P5: Total général
